Workbook

Sheet Main
B10: 2017-05-14
B12: Sheet No. | C12: Template Name | D12: Summary
B13: 1 | C13: Future Intra | D13: For Intraday trading in F&O segment
B14: 2 | C14: Cash Intra | D14: For Intraday trading in cash market segment
B15: 3 | C15: Mid-cap Intra | D15: For Intraday trading in Mid-cap stocks
B16: 4 | C16: Bulk Deals | D16: Reveals Bulk Deals carried on NSE & BSE
B17: 5 | C17: Call Tracker

Sheet Future Intra
M5: Back to Main Page
A6: FOR INTRA DAY TRADING | L6: =Main!B10 -> 2017-05-14
A9: Sr.no | B9: Sector | C9: Scrip | D9: CLOSE RATE | E9: Pivot Point | F9: Supports | I9: Resistances
B10: Sector | D10: Point | E10: Point | F10: S1 | G10: S2 | H10: S3 | I10: R1 | J10: R2 | K10: R3 | L10: HIGH | M10: LOW | N10: OI | O10: % Change in OI
A11: 1 | B11: Index | C11: BANKNIFTY | D11: 26400.35 | E11: 26296.87 | F11: 26163.83 | G11: 25927.32 | H11: 25794.28 | I11: 26533.38 | J11: 26666.42 | K11: 26902.93 | L11: 26429.9 | M11: 26060.35 | N11: 3330040 | O11: 6.12%
A12: 2 | B12: Index | C12: NIFTY | D12: 10820.10 | E12: 10794.68 | F12: 10762.17 | G12: 10704.23 | H12: 10671.72 | I12: 10852.62 | J12: 10885.13 | K12: 10943.07 | L12: 10827.2 | M12: 10736.75 | N12: 26127450 | O12: 4.20%
A13: 3 | B13: Index | C13: NIFTYCPSE | D13: 2627.40 | E13: 875.80 | F13: 1751.60 | G13: 875.80 | H13: 1751.60 | I13: 1751.60 | J13: 875.80 | K13: 1751.60 | L13: 0 | M13: 0 | N13: 0 | O13: 0.00%
A14: 4 | B14: Index | C14: NIFTYINFRA | D14: 3441.10 | E14: 1147.03 | F14: 2294.07 | G14: 1147.03 | H14: 2294.07 | I14: 2294.07 | J14: 1147.03 | K14: 2294.07 | L14: 0 | M14: 0 | N14: 0 | O14: 0.00%
A15: 5 | B15: Index | C15: NIFTYIT | D15: 13521.00 | E15: 13501.33 | F15: 13454.67 | G15: 13388.33 | H15: 13341.67 | I15: 13567.67 | J15: 13614.33 | K15: 13680.67 | L15: 13548 | M15: 13435 | N15: 63950 | O15: -0.62%
A16: 6 | B16: Index | C16: NIFTYMID50 | D16: 5288.00 | E16: 5234.67 | F16: 5181.33 | G16: 5074.67 | H16: 5021.33 | I16: 5341.33 | J16: 5394.67 | K16: 5501.33 | L16: 5288 | M16: 5128 | N16: 601600 | O16: 0.00%
A17: 7 | B17: Index | C17: NIFTYPSE | D17: 4077.45 | E17: 1359.15 | F17: 2718.30 | G17: 1359.15 | H17: 2718.30 | I17: 2718.30 | J17: 1359.15 | K17: 2718.30 | L17: 0 | M17: 0 | N17: 0 | O17: 0.00%
A18: 8 | B18: Cement | C18: ACC | D18: 1459.75 | E18: 1467.20 | F18: 1446.95 | G18: 1434.15 | H18: 1413.90 | I18: 1480.00 | J18: 1500.25 | K18: 1513.05 | L18: 1487.45 | M18: 1454.4 | N18: 2088800 | O18: 8.72%
A19: 9 | B19: Others | C19: ADANIENT | D19: 128.70 | E19: 127.47 | F19: 124.93 | G19: 121.17 | H19: 118.63 | I19: 131.23 | J19: 133.77 | K19: 137.53 | L19: 130 | M19: 123.7 | N19: 14492000 | O19: -3.41%
A20: 10 | B20: Others | C20: ADANIPORTS | D20: 413.00 | E20: 412.82 | F20: 411.13 | G20: 409.27 | H20: 407.58 | I20: 414.68 | J20: 416.37 | K20: 418.23 | L20: 414.5 | M20: 410.95 | N20: 14732500 | O20: 2.63%
A21: 11 | B21: Power | C21: ADANIPOWER | D21: 23.95 | E21: 23.97 | F21: 23.43 | G21: 22.92 | H21: 22.38 | I21: 24.48 | J21: 25.02 | K21: 25.53 | L21: 24.5 | M21: 23.45 | N21: 99160000 | O21: 1.70%
A22: 12 | B22: Pharma | C22: AJANTPHARM | D22: 1063.30 | E22: 1074.52 | F22: 1046.93 | G22: 1030.57 | H22: 1002.98 | I22: 1090.88 | J22: 1118.47 | K22: 1134.83 | L22: 1102.1 | M22: 1058.15 | N22: 1171000 | O22: 2.05%
A23: 13 | B23: Banking | C23: ALBK | D23: 45.70 | E23: 45.78 | F23: 45.07 | G23: 44.43 | H23: 43.72 | I23: 46.42 | J23: 47.13 | K23: 47.77 | L23: 46.5 | M23: 45.15 | N23: 15521000 | O23: 1.37%
A24: 14 | B24: Automobile | C24: AMARAJABAT | D24: 865.90 | E24: 864.75 | F24: 854.55 | G24: 843.20 | H24: 833.00 | I24: 876.10 | J24: 886.30 | K24: 897.65 | L24: 874.95 | M24: 853.4 | N24: 1713600 | O24: -1.29%
A25: 15 | B25: Cement | C25: AMBUJACEM | D25: 218.15 | E25: 219.15 | F25: 216.25 | G25: 214.35 | H25: 211.45 | I25: 221.05 | J25: 223.95 | K25: 225.85 | L25: 222.05 | M25: 217.25 | N25: 15642500 | O25: 11.24%
A26: 16 | B26: Banking | C26: ANDHRABANK | D26: 36.65 | E26: 36.30 | F26: 35.65 | G26: 34.65 | H26: 34.00 | I26: 37.30 | J26: 37.95 | K26: 38.95 | L26: 36.95 | M26: 35.3 | N26: 25716000 | O26: -2.61%
A27: 17 | B27: Others | C27: APOLLOHOSP | D27: 1046.45 | E27: 1038.60 | F27: 1025.05 | G27: 1003.65 | H27: 990.10 | I27: 1060.00 | J27: 1073.55 | K27: 1094.95 | L27: 1052.15 | M27: 1017.2 | N27: 864000 | O27: -6.39%
A28: 18 | B28: Automobile | C28: APOLLOTYRE | D28: 279.85 | E28: 281.18 | F28: 272.92 | G28: 265.98 | H28: 257.72 | I28: 288.12 | J28: 296.38 | K28: 303.32 | L28: 289.45 | M28: 274.25 | N28: 10293000 | O28: -4.91%
A29: 19 | B29: Textile | C29: ARVIND | D29: 431.10 | E29: 430.78 | F29: 426.82 | G29: 422.53 | H29: 418.57 | I29: 435.07 | J29: 439.03 | K29: 443.32 | L29: 434.75 | M29: 426.5 | N29: 6044000 | O29: -3.94%
A30: 20 | B30: Automobile | C30: ASHOKLEY | D30: 162.75 | E30: 162.33 | F30: 161.72 | G30: 160.68 | H30: 160.07 | I30: 163.37 | J30: 163.98 | K30: 165.02 | L30: 162.95 | M30: 161.3 | N30: 59283000 | O30: 2.46%
A31: 21 | B31: FMCG | C31: ASIANPAINT | D31: 1289.00 | E31: 1270.35 | F31: 1244.90 | G31: 1200.80 | H31: 1175.35 | I31: 1314.45 | J31: 1339.90 | K31: 1384.00 | L31: 1295.8 | M31: 1226.25 | N31: 5778600 | O31: 7.63%
A32: 22 | B32: Pharma | C32: AUROPHARMA | D32: 611.95 | E32: 605.28 | F32: 593.17 | G32: 574.38 | H32: 562.27 | I32: 624.07 | J32: 636.18 | K32: 654.97 | L32: 617.4 | M32: 586.5 | N32: 21324200 | O32: -1.08%
A33: 23 | B33: Banking | C33: AXISBANK | D33: 554.70 | E33: 552.27 | F33: 547.53 | G33: 540.37 | H33: 535.63 | I33: 559.43 | J33: 564.17 | K33: 571.33 | L33: 557 | M33: 545.1 | N33: 50652000 | O33: -0.67%
A34: 24 | B34: Automobile | C34: BAJAJ-AUTO | D34: 2831.10 | E34: 2834.30 | F34: 2813.55 | G34: 2796.00 | H34: 2775.25 | I34: 2851.85 | J34: 2872.60 | K34: 2890.15 | L34: 2855.05 | M34: 2816.75 | N34: 2076750 | O34: 1.76%
A35: 25 | B35: Others | C35: BAJAJFINSV | D35: 5370.65 | E35: 5346.35 | F35: 5307.70 | G35: 5244.75 | H35: 5206.10 | I35: 5409.30 | J35: 5447.95 | K35: 5510.90 | L35: 5385 | M35: 5283.4 | N35: 670625 | O35: -1.81%
A36: 26 | B36: Finance | C36: BAJFINANCE | D36: 1869.05 | E36: 1864.88 | F36: 1843.77 | G36: 1818.48 | H36: 1797.37 | I36: 1890.17 | J36: 1911.28 | K36: 1936.57 | L36: 1886 | M36: 1839.6 | N36: 5558500 | O36: -2.44%
A37: 27 | B37: Others | C37: BALKRISIND | D37: 1202.50 | E37: 1201.00 | F37: 1189.50 | G37: 1176.50 | H37: 1165.00 | I37: 1214.00 | J37: 1225.50 | K37: 1238.50 | L37: 1212.5 | M37: 1188 | N37: 1053600 | O37: -2.80%
A38: 28 | B38: Others | C38: BALRAMCHIN | D38: 66.50 | E38: 66.70 | F38: 65.45 | G38: 64.40 | H38: 63.15 | I38: 67.75 | J38: 69.00 | K38: 70.05 | L38: 67.95 | M38: 65.65 | N38: 16513000 | O38: -1.07%
A39: 29 | B39: Banking | C39: BANKBARODA | D39: 143.10 | E39: 141.68 | F39: 139.22 | G39: 135.33 | H39: 132.87 | I39: 145.57 | J39: 148.03 | K39: 151.92 | L39: 144.15 | M39: 137.8 | N39: 49044000 | O39: -3.72%
A40: 30 | B40: Banking | C40: BANKINDIA | D40: 100.45 | E40: 100.17 | F40: 98.63 | G40: 96.82 | H40: 95.28 | I40: 101.98 | J40: 103.52 | K40: 105.33 | L40: 101.7 | M40: 98.35 | N40: 26340000 | O40: -2.66%
A41: 31 | B41: FMCG | C41: BATAINDIA | D41: 791.50 | E41: 788.00 | F41: 781.00 | G41: 770.50 | H41: 763.50 | I41: 798.50 | J41: 805.50 | K41: 816.00 | L41: 795 | M41: 777.5 | N41: 2937000 | O41: -8.37%
A42: 32 | B42: Capital_Goods | C42: BEL | D42: 128.30 | E42: 128.97 | F42: 127.13 | G42: 125.97 | H42: 124.13 | I42: 130.13 | J42: 131.97 | K42: 133.13 | L42: 130.8 | M42: 127.8 | N42: 35041050 | O42: 1.91%
A43: 33 | B43: Infrastructure | C43: BEML | D43: 1088.70 | E43: 1072.47 | F43: 1047.03 | G43: 1005.37 | H43: 979.93 | I43: 1114.13 | J43: 1139.57 | K43: 1181.23 | L43: 1097.9 | M43: 1030.8 | N43: 2363400 | O43: -1.24%
A44: 34 | B44: Others | C44: BERGEPAINT | D44: 278.20 | E44: 276.35 | F44: 270.80 | G44: 263.40 | H44: 257.85 | I44: 283.75 | J44: 289.30 | K44: 296.70 | L44: 281.9 | M44: 268.95 | N44: 1775400 | O44: 8.61%
A45: 35 | B45: Finance | C45: BHARATFIN | D45: 1166.40 | E45: 1160.50 | F45: 1151.90 | G45: 1137.40 | H45: 1128.80 | I45: 1175.00 | J45: 1183.60 | K45: 1198.10 | L45: 1169.1 | M45: 1146 | N45: 5141000 | O45: -3.24%
A46: 36 | B46: Automobile | C46: BHARATFORG | D46: 727.90 | E46: 728.87 | F46: 723.03 | G46: 718.17 | H46: 712.33 | I46: 733.73 | J46: 739.57 | K46: 744.43 | L46: 734.7 | M46: 724 | N46: 8990400 | O46: -1.11%
A47: 37 | B47: Telecom | C47: BHARTIARTL | D47: 387.90 | E47: 391.13 | F47: 378.77 | G47: 369.63 | H47: 357.27 | I47: 400.27 | J47: 412.63 | K47: 421.77 | L47: 403.5 | M47: 382 | N47: 53682600 | O47: -0.33%
A48: 38 | B48: Capital_Goods | C48: BHEL | D48: 81.10 | E48: 81.43 | F48: 80.32 | G48: 79.53 | H48: 78.42 | I48: 82.22 | J48: 83.33 | K48: 84.12 | L48: 82.55 | M48: 80.65 | N48: 46357500 | O48: 2.30%
A49: 39 | B49: Pharma | C49: BIOCON | D49: 631.05 | E49: 630.63 | F49: 619.27 | G49: 607.48 | H49: 596.12 | I49: 642.42 | J49: 653.78 | K49: 665.57 | L49: 642 | M49: 618.85 | N49: 6555600 | O49: -1.75%
A50: 40 | B50: Automobile | C50: BOSCHLTD | D50: 18729.10 | E50: 18766.97 | F50: 18637.23 | G50: 18545.37 | H50: 18415.63 | I50: 18858.83 | J50: 18988.57 | K50: 19080.43 | L50: 18896.7 | M50: 18675.1 | N50: 161075 | O50: 0.05%
A51: 41 | B51: Oil_Gas | C51: BPCL | D51: 400.20 | E51: 397.82 | F51: 394.08 | G51: 387.97 | H51: 384.23 | I51: 403.93 | J51: 407.67 | K51: 413.78 | L51: 401.55 | M51: 391.7 | N51: 14230800 | O51: -4.40%
A52: 42 | B52: FMCG | C52: BRITANNIA | D52: 5505.75 | E52: 5482.08 | F52: 5448.67 | G52: 5391.58 | H52: 5358.17 | I52: 5539.17 | J52: 5572.58 | K52: 5629.67 | L52: 5515.5 | M52: 5425 | N52: 867200 | O52: -0.30%
A53: 43 | B53: Pharma | C53: CADILAHC | D53: 395.30 | E53: 395.63 | F53: 391.27 | G53: 387.23 | H53: 382.87 | I53: 399.67 | J53: 404.03 | K53: 408.07 | L53: 400 | M53: 391.6 | N53: 9019200 | O53: 2.34%
A54: 44 | B54: Banking | C54: CANBK | D54: 246.90 | E54: 247.13 | F54: 243.02 | G54: 239.13 | H54: 235.02 | I54: 251.02 | J54: 255.13 | K54: 259.02 | L54: 251.25 | M54: 243.25 | N54: 11079200 | O54: 0.38%
A55: 45 | B55: Others | C55: CANFINHOME | D55: 388.10 | E55: 387.47 | F55: 381.88 | G55: 375.67 | H55: 370.08 | I55: 393.68 | J55: 399.27 | K55: 405.48 | L55: 393.05 | M55: 381.25 | N55: 6078750 | O55: -0.86%
A56: 46 | B56: Finance | C56: CAPF | D56: 592.50 | E56: 593.13 | F56: 582.32 | G56: 572.13 | H56: 561.32 | I56: 603.32 | J56: 614.13 | K56: 624.32 | L56: 603.95 | M56: 582.95 | N56: 7343200 | O56: 2.97%
A57: 47 | B57: Oil_Gas | C57: CASTROLIND | D57: 178.00 | E57: 178.18 | F57: 176.37 | G57: 174.73 | H57: 172.92 | I57: 179.82 | J57: 181.63 | K57: 183.27 | L57: 180 | M57: 176.55 | N57: 12793200 | O57: -1.68%
A58: 48 | B58: Automobile | C58: CEATLTD | D58: 1442.30 | E58: 1440.43 | F58: 1422.87 | G58: 1403.43 | H58: 1385.87 | I58: 1459.87 | J58: 1477.43 | K58: 1496.87 | L58: 1458 | M58: 1421 | N58: 1916250 | O58: -1.83%
A59: 49 | B59: Textile | C59: CENTURYTEX | D59: 1111.90 | E59: 1100.43 | F59: 1078.87 | G59: 1045.83 | H59: 1024.27 | I59: 1133.47 | J59: 1155.03 | K59: 1188.07 | L59: 1122 | M59: 1067.4 | N59: 6624750 | O59: -0.78%
A60: 50 | B60: Power | C60: CESC | D60: 1064.00 | E60: 1062.03 | F60: 1056.07 | G60: 1048.13 | H60: 1042.17 | I60: 1069.97 | J60: 1075.93 | K60: 1083.87 | L60: 1068 | M60: 1054.1 | N60: 6065950 | O60: 0.01%
A61: 51 | B61: Power | C61: CGPOWER | D61: 78.95 | E61: 79.22 | F61: 78.03 | G61: 77.12 | H61: 75.93 | I61: 80.13 | J61: 81.32 | K61: 82.23 | L61: 80.4 | M61: 78.3 | N61: 18108000 | O61: -0.72%
A62: 52 | B62: Others | C62: CHENNPETRO | D62: 296.40 | E62: 299.53 | F62: 289.07 | G62: 281.73 | H62: 271.27 | I62: 306.87 | J62: 317.33 | K62: 324.67 | L62: 310 | M62: 292.2 | N62: 3964500 | O62: 0.15%
A63: 53 | B63: Others | C63: CHOLAFIN | D63: 1596.45 | E63: 1590.42 | F63: 1576.83 | G63: 1557.22 | H63: 1543.63 | I63: 1610.03 | J63: 1623.62 | K63: 1643.23 | L63: 1604 | M63: 1570.8 | N63: 1036500 | O63: 0.58%
A64: 54 | B64: Pharma | C64: CIPLA | D64: 573.70 | E64: 574.08 | F64: 565.82 | G64: 557.93 | H64: 549.67 | I64: 581.97 | J64: 590.23 | K64: 598.12 | L64: 582.35 | M64: 566.2 | N64: 9926000 | O64: 3.26%
A65: 55 | B65: Others | C65: COALINDIA | D65: 271.30 | E65: 271.50 | F65: 269.80 | G65: 268.30 | H65: 266.60 | I65: 273.00 | J65: 274.70 | K65: 276.20 | L65: 273.2 | M65: 270 | N65: 17635200 | O65: -1.78%
A66: 56 | B66: FMCG | C66: COLPAL | D66: 1110.35 | E66: 1106.80 | F66: 1099.65 | G66: 1088.95 | H66: 1081.80 | I66: 1117.50 | J66: 1124.65 | K66: 1135.35 | L66: 1113.95 | M66: 1096.1 | N66: 1663900 | O66: -5.00%
A67: 57 | B67: Others | C67: CONCOR | D67: 1414.70 | E67: 1403.97 | F67: 1387.93 | G67: 1361.17 | H67: 1345.13 | I67: 1430.73 | J67: 1446.77 | K67: 1473.53 | L67: 1420 | M67: 1377.2 | N67: 1811250 | O67: 3.95%
A68: 58 | B68: Capital_Goods | C68: CUMMINSIND | D68: 776.70 | E68: 774.88 | F68: 767.92 | G68: 759.13 | H68: 752.17 | I68: 783.67 | J68: 790.63 | K68: 799.42 | L68: 781.85 | M68: 766.1 | N68: 806400 | O68: -2.25%
A69: 59 | B69: FMCG | C69: DABUR | D69: 368.35 | E69: 368.65 | F69: 366.35 | G69: 364.35 | H69: 362.05 | I69: 370.65 | J69: 372.95 | K69: 374.95 | L69: 370.95 | M69: 366.65 | N69: 14332500 | O69: 1.87%
A70: 60 | B70: Cement | C70: DALMIABHA | D70: 2806.15 | E70: 2798.73 | F70: 2773.47 | G70: 2740.78 | H70: 2715.52 | I70: 2831.42 | J70: 2856.68 | K70: 2889.37 | L70: 2824 | M70: 2766.05 | N70: 630300 | O70: -7.20%
A71: 61 | B71: Banking | C71: DCBBANK | D71: 190.75 | E71: 191.23 | F71: 187.62 | G71: 184.48 | H71: 180.87 | I71: 194.37 | J71: 197.98 | K71: 201.12 | L71: 194.85 | M71: 188.1 | N71: 8446500 | O71: 4.74%
A72: 62 | B72: Finance | C72: DHFL | D72: 630.05 | E72: 631.55 | F72: 625.50 | G72: 620.95 | H72: 614.90 | I72: 636.10 | J72: 642.15 | K72: 646.70 | L72: 637.6 | M72: 627 | N72: 28291500 | O72: -1.23%
A73: 63 | B73: Media | C73: DISHTV | D73: 72.40 | E73: 72.77 | F73: 71.88 | G73: 71.37 | H73: 70.48 | I73: 73.28 | J73: 74.17 | K73: 74.68 | L73: 73.65 | M73: 72.25 | N73: 45738000 | O73: 0.43%
A74: 64 | B74: Pharma | C74: DIVISLAB | D74: 1204.30 | E74: 1204.40 | F74: 1184.95 | G74: 1165.60 | H74: 1146.15 | I74: 1223.75 | J74: 1243.20 | K74: 1262.55 | L74: 1223.85 | M74: 1185.05 | N74: 2358400 | O74: -0.57%
A75: 65 | B75: Realty | C75: DLF | D75: 213.65 | E75: 214.08 | F75: 210.17 | G75: 206.68 | H75: 202.77 | I75: 217.57 | J75: 221.48 | K75: 224.97 | L75: 218 | M75: 210.6 | N75: 41035000 | O75: -3.07%
A76: 66 | B76: Pharma | C76: DRREDDY | D76: 1993.10 | E76: 1993.17 | F76: 1963.28 | G76: 1933.47 | H76: 1903.58 | I76: 2022.98 | J76: 2052.87 | K76: 2082.68 | L76: 2023.05 | M76: 1963.35 | N76: 5124250 | O76: -1.04%
A77: 67 | B77: Automobile | C77: EICHERMOT | D77: 30972.50 | E77: 30996.87 | F77: 30722.93 | G77: 30473.37 | H77: 30199.43 | I77: 31246.43 | J77: 31520.37 | K77: 31769.93 | L77: 31270.8 | M77: 30747.3 | N77: 193875 | O77: -3.23%
A78: 68 | B78: Infrastructure | C78: ENGINERSIN | D78: 153.90 | E78: 154.30 | F78: 152.20 | G78: 150.50 | H78: 148.40 | I78: 156.00 | J78: 158.10 | K78: 159.80 | L78: 156.4 | M78: 152.6 | N78: 9576000 | O78: -0.51%
A79: 69 | B79: Finance | C79: EQUITAS | D79: 166.15 | E79: 166.08 | F79: 164.42 | G79: 162.68 | H79: 161.02 | I79: 167.82 | J79: 169.48 | K79: 171.22 | L79: 167.75 | M79: 164.35 | N79: 20128000 | O79: -1.15%
A80: 70 | B80: Automobile | C80: ESCORTS | D80: 951.95 | E80: 951.25 | F80: 942.60 | G80: 933.25 | H80: 924.60 | I80: 960.60 | J80: 969.25 | K80: 978.60 | L80: 959.9 | M80: 941.9 | N80: 4094200 | O80: 2.14%
A81: 71 | B81: Automobile | C81: EXIDEIND | D81: 262.00 | E81: 261.52 | F81: 258.23 | G81: 254.47 | H81: 251.18 | I81: 265.28 | J81: 268.57 | K81: 272.33 | L81: 264.8 | M81: 257.75 | N81: 8804000 | O81: -2.91%
A82: 72 | B82: Banking | C82: FEDERALBNK | D82: 90.30 | E82: 90.12 | F82: 89.43 | G82: 88.57 | H82: 87.88 | I82: 90.98 | J82: 91.67 | K82: 92.53 | L82: 90.8 | M82: 89.25 | N82: 92031500 | O82: -3.43%
A83: 73 | B83: Oil_Gas | C83: GAIL | D83: 344.60 | E83: 343.18 | F83: 340.17 | G83: 335.73 | H83: 332.72 | I83: 347.62 | J83: 350.63 | K83: 355.07 | L83: 346.2 | M83: 338.75 | N83: 13548360 | O83: 5.05%
A84: 74 | B84: Pharma | C84: GLENMARK | D84: 516.30 | E84: 513.80 | F84: 508.90 | G84: 501.50 | H84: 496.60 | I84: 521.20 | J84: 526.10 | K84: 533.50 | L84: 518.7 | M84: 506.4 | N84: 5897800 | O84: -1.53%
A85: 75 | B85: Infrastructure | C85: GMRINFRA | D85: 18.80 | E85: 18.68 | F85: 18.47 | G85: 18.13 | H85: 17.92 | I85: 19.02 | J85: 19.23 | K85: 19.57 | L85: 18.9 | M85: 18.35 | N85: 296775000 | O85: -0.02%
A86: 76 | B86: Others | C86: GODFRYPHLP | D86: 831.45 | E86: 833.82 | F86: 824.63 | G86: 817.82 | H86: 808.63 | I86: 840.63 | J86: 849.82 | K86: 856.63 | L86: 843 | M86: 827 | N86: 646900 | O86: -0.15%
A87: 77 | B87: FMCG | C87: GODREJCP | D87: 1078.45 | E87: 1074.97 | F87: 1065.03 | G87: 1051.62 | H87: 1041.68 | I87: 1088.38 | J87: 1098.32 | K87: 1111.73 | L87: 1084.9 | M87: 1061.55 | N87: 2660800 | O87: -0.57%
A88: 78 | B88: FMCG | C88: GODREJIND | D88: 593.70 | E88: 587.53 | F88: 578.17 | G88: 562.63 | H88: 553.27 | I88: 603.07 | J88: 612.43 | K88: 627.97 | L88: 596.9 | M88: 572 | N88: 2448000 | O88: -0.67%
A89: 79 | B89: Pharma | C89: GRANULES | D89: 94.40 | E89: 95.17 | F89: 92.63 | G89: 90.87 | H89: 88.33 | I89: 96.93 | J89: 99.47 | K89: 101.23 | L89: 97.7 | M89: 93.4 | N89: 15710000 | O89: -1.01%
A90: 80 | B90: Cement | C90: GRASIM | D90: 1106.00 | E90: 1101.73 | F90: 1091.77 | G90: 1077.53 | H90: 1067.57 | I90: 1115.97 | J90: 1125.93 | K90: 1140.17 | L90: 1111.7 | M90: 1087.5 | N90: 6253500 | O90: -1.96%
A91: 81 | B91: Others | C91: GSFC | D91: 133.35 | E91: 132.73 | F91: 130.37 | G91: 127.38 | H91: 125.02 | I91: 135.72 | J91: 138.08 | K91: 141.07 | L91: 135.1 | M91: 129.75 | N91: 18580500 | O91: 0.68%
A92: 82 | B92: Others | C92: HAVELLS | D92: 548.45 | E92: 550.28 | F92: 539.17 | G92: 529.88 | H92: 518.77 | I92: 559.57 | J92: 570.68 | K92: 579.97 | L92: 561.4 | M92: 541 | N92: 6208000 | O92: -6.21%
A93: 83 | B93: Others | C93: HCC | D93: 16.60 | E93: 16.75 | F93: 16.35 | G93: 16.10 | H93: 15.70 | I93: 17.00 | J93: 17.40 | K93: 17.65 | L93: 17.15 | M93: 16.5 | N93: 45117000 | O93: -3.84%
A94: 84 | B94: Technology | C94: HCLTECH | D94: 935.35 | E94: 936.53 | F94: 932.07 | G94: 928.78 | H94: 924.32 | I94: 939.82 | J94: 944.28 | K94: 947.57 | L94: 941 | M94: 933.25 | N94: 12058900 | O94: -0.85%
A95: 85 | B95: Finance | C95: HDFC | D95: 1928.80 | E95: 1922.97 | F95: 1915.93 | G95: 1903.07 | H95: 1896.03 | I95: 1935.83 | J95: 1942.87 | K95: 1955.73 | L95: 1930 | M95: 1910.1 | N95: 18479500 | O95: -0.92%
A96: 86 | B96: Banking | C96: HDFCBANK | D96: 2012.60 | E96: 2002.83 | F96: 1988.07 | G96: 1963.53 | H96: 1948.77 | I96: 2027.37 | J96: 2042.13 | K96: 2066.67 | L96: 2017.6 | M96: 1978.3 | N96: 25199500 | O96: -0.29%
A97: 88 | B97: Automobile | C97: HEROMOTOCO | D97: 3632.05 | E97: 3633.32 | F97: 3606.73 | G97: 3581.42 | H97: 3554.83 | I97: 3658.63 | J97: 3685.22 | K97: 3710.53 | L97: 3659.9 | M97: 3608 | N97: 1612000 | O97: -0.27%
A98: 89 | B98: Technology | C98: HEXAWARE | D98: 411.90 | E98: 410.08 | F98: 403.12 | G98: 394.33 | H98: 387.37 | I98: 418.87 | J98: 425.83 | K98: 434.62 | L98: 417.05 | M98: 401.3 | N98: 6588000 | O98: 0.21%
A99: 90 | B99: Metals | C99: HINDALCO | D99: 242.70 | E99: 241.77 | F99: 239.78 | G99: 236.87 | H99: 234.88 | I99: 244.68 | J99: 246.67 | K99: 249.58 | L99: 243.75 | M99: 238.85 | N99: 42948500 | O99: -2.39%
A100: 91 | B100: Oil_Gas | C100: HINDPETRO | D100: 319.35 | E100: 316.92 | F100: 312.13 | G100: 304.92 | H100: 300.13 | I100: 324.13 | J100: 328.92 | K100: 336.13 | L100: 321.7 | M100: 309.7 | N100: 30306150 | O100: -3.72%
A101: 92 | B101: FMCG | C101: HINDUNILVR | D101: 1509.35 | E101: 1504.43 | F101: 1496.47 | G101: 1483.58 | H101: 1475.62 | I101: 1517.32 | J101: 1525.28 | K101: 1538.17 | L101: 1512.4 | M101: 1491.55 | N101: 9181200 | O101: -0.18%
A102: 93 | B102: Metals | C102: HINDZINC | D102: 300.25 | E102: 298.57 | F102: 295.93 | G102: 291.62 | H102: 288.98 | I102: 302.88 | J102: 305.52 | K102: 309.83 | L102: 301.2 | M102: 294.25 | N102: 14560000 | O102: 0.44%
A103: 94 | B103: Finance | C103: IBULHSGFIN | D103: 1244.40 | E103: 1236.97 | F103: 1220.68 | G103: 1196.97 | H103: 1180.68 | I103: 1260.68 | J103: 1276.97 | K103: 1300.68 | L103: 1253.25 | M103: 1213.25 | N103: 14683300 | O103: 1.03%
A104: 95 | B104: Banking | C104: ICICIBANK | D104: 310.25 | E104: 309.20 | F104: 307.40 | G104: 304.55 | H104: 302.75 | I104: 312.05 | J104: 313.85 | K104: 316.70 | L104: 311 | M104: 306.35 | N104: 99272250 | O104: 1.04%
A105: 96 | B105: Others | C105: ICICIPRULI | D105: 456.50 | E105: 456.68 | F105: 450.37 | G105: 444.23 | H105: 437.92 | I105: 462.82 | J105: 469.13 | K105: 475.27 | L105: 463 | M105: 450.55 | N105: 6494800 | O105: -1.40%
A106: 97 | B106: Banking | C106: IDBI | D106: 67.35 | E106: 67.32 | F106: 66.43 | G106: 65.52 | H106: 64.63 | I106: 68.23 | J106: 69.12 | K106: 70.03 | L106: 68.2 | M106: 66.4 | N106: 67510000 | O106: 0.49%
A107: 98 | B107: Telecom | C107: IDEA | D107: 51.75 | E107: 53.75 | F107: 49.10 | G107: 46.45 | H107: 41.80 | I107: 56.40 | J107: 61.05 | K107: 63.70 | L107: 58.4 | M107: 51.1 | N107: 173012000 | O107: 8.37%
A108: 99 | B108: Finance | C108: IDFC | D108: 54.90 | E108: 54.75 | F108: 53.95 | G108: 53.00 | H108: 52.20 | I108: 55.70 | J108: 56.50 | K108: 57.45 | L108: 55.55 | M108: 53.8 | N108: 157212000 | O108: -0.30%
A109: 100 | B109: Banking | C109: IDFCBANK | D109: 43.95 | E109: 44.05 | F109: 43.35 | G109: 42.75 | H109: 42.05 | I109: 44.65 | J109: 45.35 | K109: 45.95 | L109: 44.75 | M109: 43.45 | N109: 202355000 | O109: -0.10%
A110: 101 | B110: Finance | C110: IFCI | D110: 18.75 | E110: 18.88 | F110: 18.47 | G110: 18.18 | H110: 17.77 | I110: 19.17 | J110: 19.58 | K110: 19.87 | L110: 19.3 | M110: 18.6 | N110: 74152000 | O110: 0.07%
A111: 102 | B111: Oil_Gas | C111: IGL | D111: 267.10 | E111: 264.72 | F111: 261.38 | G111: 255.67 | H111: 252.33 | I111: 270.43 | J111: 273.77 | K111: 279.48 | L111: 268.05 | M111: 259 | N111: 8217000 | O111: -8.71%
A112: 103 | B112: Cement | C112: INDIACEM | D112: 138.10 | E112: 137.02 | F112: 134.63 | G112: 131.17 | H112: 128.78 | I112: 140.48 | J112: 142.87 | K112: 146.33 | L112: 139.4 | M112: 133.55 | N112: 26015500 | O112: -5.67%
A113: 104 | B113: Banking | C113: INDIANB | D113: 318.00 | E113: 314.25 | F113: 308.85 | G113: 299.70 | H113: 294.30 | I113: 323.40 | J113: 328.80 | K113: 337.95 | L113: 319.65 | M113: 305.1 | N113: 4374000 | O113: -9.48%
A114: 105 | B114: Others | C114: INDIGO | D114: 1165.80 | E114: 1160.02 | F114: 1148.03 | G114: 1130.27 | H114: 1118.28 | I114: 1177.78 | J114: 1189.77 | K114: 1207.53 | L114: 1172 | M114: 1142.25 | N114: 4075800 | O114: -4.01%
A115: 106 | B115: Banking | C115: INDUSINDBK | D115: 1891.80 | E115: 1884.63 | F115: 1874.47 | G115: 1857.13 | H115: 1846.97 | I115: 1901.97 | J115: 1912.13 | K115: 1929.47 | L115: 1894.8 | M115: 1867.3 | N115: 7666200 | O115: -2.31%
A116: 107 | B116: Technology | C116: INFIBEAM | D116: 168.15 | E116: 168.53 | F116: 165.62 | G116: 163.08 | H116: 160.17 | I116: 171.07 | J116: 173.98 | K116: 176.52 | L116: 171.45 | M116: 166 | N116: 32556000 | O116: 1.08%
A117: 108 | B117: Telecom | C117: INFRATEL | D117: 320.60 | E117: 319.53 | F117: 316.72 | G117: 312.83 | H117: 310.02 | I117: 323.42 | J117: 326.23 | K117: 330.12 | L117: 322.35 | M117: 315.65 | N117: 7733300 | O117: 0.20%
A118: 109 | B118: Technology | C118: INFY | D118: 1182.45 | E118: 1178.82 | F118: 1173.13 | G118: 1163.82 | H118: 1158.13 | I118: 1188.13 | J118: 1193.82 | K118: 1203.13 | L118: 1184.5 | M118: 1169.5 | N118: 42769800 | O118: -1.02%
A119: 110 | B119: Oil_Gas | C119: IOC | D119: 169.90 | E119: 170.68 | F119: 168.17 | G119: 166.43 | H119: 163.92 | I119: 172.42 | J119: 174.93 | K119: 176.67 | L119: 173.2 | M119: 168.95 | N119: 39597000 | O119: -3.95%
A120: 111 | B120: Infrastructure | C120: IRB | D120: 259.50 | E120: 259.02 | F120: 256.48 | G120: 253.47 | H120: 250.93 | I120: 262.03 | J120: 264.57 | K120: 267.58 | L120: 261.55 | M120: 256 | N120: 20192500 | O120: -1.05%
A121: 112 | B121: FMCG | C121: ITC | D121: 280.70 | E121: 279.58 | F121: 278.22 | G121: 275.73 | H121: 274.37 | I121: 282.07 | J121: 283.43 | K121: 285.92 | L121: 280.95 | M121: 277.1 | N121: 84705600 | O121: -2.11%
A122: 113 | B122: Others | C122: JETAIRWAYS | D122: 482.05 | E122: 485.40 | F122: 473.05 | G122: 464.05 | H122: 451.70 | I122: 494.40 | J122: 506.75 | K122: 515.75 | L122: 497.75 | M122: 476.4 | N122: 7909200 | O122: -0.20%
A123: 114 | B123: Metals | C123: JINDALSTEL | D123: 256.25 | E123: 254.77 | F123: 248.58 | G123: 240.92 | H123: 234.73 | I123: 262.43 | J123: 268.62 | K123: 276.28 | L123: 260.95 | M123: 247.1 | N123: 32820750 | O123: -5.04%
A124: 115 | B124: Others | C124: JISLJALEQS | D124: 106.80 | E124: 106.38 | F124: 104.37 | G124: 101.93 | H124: 99.92 | I124: 108.82 | J124: 110.83 | K124: 113.27 | L124: 108.4 | M124: 103.95 | N124: 38484000 | O124: -0.54%
A125: 116 | B125: Realty | C125: JPASSOCIAT | D125: 18.75 | E125: 18.83 | F125: 18.47 | G125: 18.18 | H125: 17.82 | I125: 19.12 | J125: 19.48 | K125: 19.77 | L125: 19.2 | M125: 18.55 | N125: 232662000 | O125: 0.09%
A126: 117 | B126: Metals | C126: JSWSTEEL | D126: 325.40 | E126: 324.52 | F126: 321.88 | G126: 318.37 | H126: 315.73 | I126: 328.03 | J126: 330.67 | K126: 334.18 | L126: 327.15 | M126: 321 | N126: 68520000 | O126: -0.21%
A127: 118 | B127: Others | C127: JUBLFOOD | D127: 2490.55 | E127: 2488.45 | F127: 2449.10 | G127: 2407.65 | H127: 2368.30 | I127: 2529.90 | J127: 2569.25 | K127: 2610.70 | L127: 2527.8 | M127: 2447 | N127: 2568500 | O127: 3.37%
A128: 119 | B128: Others | C128: JUSTDIAL | D128: 423.15 | E128: 418.98 | F128: 405.57 | G128: 387.98 | H128: 374.57 | I128: 436.57 | J128: 449.98 | K128: 467.57 | L128: 432.4 | M128: 401.4 | N128: 4247600 | O128: 7.78%
A129: 120 | B129: Others | C129: KAJARIACER | D129: 540.20 | E129: 542.85 | F129: 535.00 | G129: 529.80 | H129: 521.95 | I129: 548.05 | J129: 555.90 | K129: 561.10 | L129: 550.7 | M129: 537.65 | N129: 1912000 | O129: -14.46%
A130: 121 | B130: Banking | C130: KOTAKBANK | D130: 1264.85 | E130: 1261.08 | F130: 1251.42 | G130: 1237.98 | H130: 1228.32 | I130: 1274.52 | J130: 1284.18 | K130: 1297.62 | L130: 1270.75 | M130: 1247.65 | N130: 16464000 | O130: -0.24%
A131: 122 | B131: Technology | C131: KPIT | D131: 260.60 | E131: 260.70 | F131: 258.35 | G131: 256.10 | H131: 253.75 | I131: 262.95 | J131: 265.30 | K131: 267.55 | L131: 263.05 | M131: 258.45 | N131: 8392500 | O131: -2.51%
A132: 123 | B132: Others | C132: KSCL | D132: 499.60 | E132: 498.18 | F132: 494.42 | G132: 489.23 | H132: 485.47 | I132: 503.37 | J132: 507.13 | K132: 512.32 | L132: 501.95 | M132: 493 | N132: 2371500 | O132: -0.94%
A133: 124 | B133: Banking | C133: KTKBANK | D133: 113.95 | E133: 113.58 | F133: 112.42 | G133: 110.88 | H133: 109.72 | I133: 115.12 | J133: 116.28 | K133: 117.82 | L133: 114.75 | M133: 112.05 | N133: 25642600 | O133: -1.07%
A134: 125 | B134: Finance | C134: L&TFH | D134: 179.05 | E134: 179.07 | F134: 177.58 | G134: 176.12 | H134: 174.63 | I134: 180.53 | J134: 182.02 | K134: 183.48 | L134: 180.55 | M134: 177.6 | N134: 34879500 | O134: 0.58%
A135: 126 | B135: Finance | C135: LICHSGFIN | D135: 503.00 | E135: 502.22 | F135: 498.28 | G135: 493.57 | H135: 489.63 | I135: 506.93 | J135: 510.87 | K135: 515.58 | L135: 506.15 | M135: 497.5 | N135: 15625500 | O135: 1.81%
A136: 127 | B136: Capital_Goods | C136: LT | D136: 1387.00 | E136: 1380.73 | F136: 1372.67 | G136: 1358.33 | H136: 1350.27 | I136: 1395.07 | J136: 1403.13 | K136: 1417.47 | L136: 1388.8 | M136: 1366.4 | N136: 13271250 | O136: -1.53%
A137: 128 | B137: Pharma | C137: LUPIN | D137: 753.60 | E137: 754.25 | F137: 744.50 | G137: 735.40 | H137: 725.65 | I137: 763.35 | J137: 773.10 | K137: 782.20 | L137: 764 | M137: 745.15 | N137: 14705700 | O137: -0.20%
A138: 129 | B138: Automobile | C138: M&M | D138: 872.10 | E138: 866.87 | F138: 857.73 | G138: 843.37 | H138: 834.23 | I138: 881.23 | J138: 890.37 | K138: 904.73 | L138: 876 | M138: 852.5 | N138: 13580000 | O138: -2.09%
A139: 130 | B139: Finance | C139: M&MFIN | D139: 504.60 | E139: 503.72 | F139: 496.88 | G139: 489.17 | H139: 482.33 | I139: 511.43 | J139: 518.27 | K139: 525.98 | L139: 510.55 | M139: 496 | N139: 9096250 | O139: -1.91%
A140: 131 | B140: Others | C140: MANAPPURAM | D140: 123.00 | E140: 122.95 | F140: 121.55 | G140: 120.10 | H140: 118.70 | I140: 124.40 | J140: 125.80 | K140: 127.25 | L140: 124.35 | M140: 121.5 | N140: 17010000 | O140: -0.11%
A141: 132 | B141: FMCG | C141: MARICO | D141: 310.85 | E141: 312.28 | F141: 308.07 | G141: 305.28 | H141: 301.07 | I141: 315.07 | J141: 319.28 | K141: 322.07 | L141: 316.5 | M141: 309.5 | N141: 5915000 | O141: -4.09%
A142: 133 | B142: Automobile | C142: MARUTI | D142: 8767.40 | E142: 8765.68 | F142: 8733.72 | G142: 8700.03 | H142: 8668.07 | I142: 8799.37 | J142: 8831.33 | K142: 8865.02 | L142: 8797.65 | M142: 8732 | N142: 3105450 | O142: -1.52%
A143: 134 | B143: FMCG | C143: MCDOWELL-N | D143: 3256.45 | E143: 3256.47 | F143: 3224.98 | G143: 3193.52 | H143: 3162.03 | I143: 3287.93 | J143: 3319.42 | K143: 3350.88 | L143: 3287.95 | M143: 3225 | N143: 2342750 | O143: 1.60%
A144: 135 | B144: Others | C144: MCX | D144: 772.20 | E144: 769.78 | F144: 759.57 | G144: 746.93 | H144: 736.72 | I144: 782.42 | J144: 792.63 | K144: 805.27 | L144: 780 | M144: 757.15 | N144: 3540200 | O144: -0.97%
A145: 136 | B145: Finance | C145: MFSL | D145: 517.40 | E145: 518.30 | F145: 512.10 | G145: 506.80 | H145: 500.60 | I145: 523.60 | J145: 529.80 | K145: 535.10 | L145: 524.5 | M145: 513 | N145: 2804000 | O145: 0.57%
A146: 137 | B146: Others | C146: MGL | D146: 872.30 | E146: 865.00 | F146: 856.50 | G146: 840.70 | H146: 832.20 | I146: 880.80 | J146: 889.30 | K146: 905.10 | L146: 873.5 | M146: 849.2 | N146: 3009600 | O146: -5.64%
A147: 138 | B147: Technology | C147: MINDTREE | D147: 1012.95 | E147: 1016.03 | F147: 999.17 | G147: 985.38 | H147: 968.52 | I147: 1029.82 | J147: 1046.68 | K147: 1060.47 | L147: 1032.9 | M147: 1002.25 | N147: 4110000 | O147: 6.73%
A148: 139 | B148: Automobile | C148: MOTHERSUMI | D148: 339.05 | E148: 337.47 | F148: 332.13 | G148: 325.22 | H148: 319.88 | I148: 344.38 | J148: 349.72 | K148: 356.63 | L148: 342.8 | M148: 330.55 | N148: 13632000 | O148: -1.19%
A149: 140 | B149: Automobile | C149: MRF | D149: 74977.85 | E149: 75040.38 | F149: 74537.47 | G149: 74097.08 | H149: 73594.17 | I149: 75480.77 | J149: 75983.68 | K149: 76424.07 | L149: 75543.3 | M149: 74600 | N149: 35520 | O149: -1.50%
A150: 141 | B150: Others | C150: MRPL | D150: 106.75 | E150: 106.80 | F150: 105.35 | G150: 103.95 | H150: 102.50 | I150: 108.20 | J150: 109.65 | K150: 111.05 | L150: 108.25 | M150: 105.4 | N150: 5598000 | O150: -1.97%
A151: 142 | B151: Finance | C151: MUTHOOTFIN | D151: 437.75 | E151: 436.28 | F151: 431.47 | G151: 425.18 | H151: 420.37 | I151: 442.57 | J151: 447.38 | K151: 453.67 | L151: 441.1 | M151: 430 | N151: 1626000 | O151: 2.65%
A152: 143 | B152: Others | C152: NATIONALUM | D152: 78.30 | E152: 77.77 | F152: 76.83 | G152: 75.37 | H152: 74.43 | I152: 79.23 | J152: 80.17 | K152: 81.63 | L152: 78.7 | M152: 76.3 | N152: 52848000 | O152: -1.00%
A153: 144 | B153: Others | C153: NBCC | D153: 100.00 | E153: 100.50 | F153: 98.30 | G153: 96.60 | H153: 94.40 | I153: 102.20 | J153: 104.40 | K153: 106.10 | L153: 102.7 | M153: 98.8 | N153: 18546000 | O153: -2.52%
A154: 145 | B154: Infrastructure | C154: NCC | D154: 122.50 | E154: 122.73 | F154: 120.77 | G154: 119.03 | H154: 117.07 | I154: 124.47 | J154: 126.43 | K154: 128.17 | L154: 124.7 | M154: 121 | N154: 34648000 | O154: 0.96%
A155: 146 | B155: Others | C155: NESTLEIND | D155: 9516.05 | E155: 9425.23 | F155: 9237.22 | G155: 8958.38 | H155: 8770.37 | I155: 9704.07 | J155: 9892.08 | K155: 10170.92 | L155: 9613.25 | M155: 9146.4 | N155: 329800 | O155: -0.06%
A156: 147 | B156: Power | C156: NHPC | D156: 27.75 | E156: 27.90 | F156: 27.50 | G156: 27.25 | H156: 26.85 | I156: 28.15 | J156: 28.55 | K156: 28.80 | L156: 28.3 | M156: 27.65 | N156: 30510000 | O156: 0.80%
A157: 148 | B157: Technology | C157: NIITTECH | D157: 1062.20 | E157: 1056.75 | F157: 1044.50 | G157: 1026.80 | H157: 1014.55 | I157: 1074.45 | J157: 1086.70 | K157: 1104.40 | L157: 1069 | M157: 1039.05 | N157: 2910000 | O157: -6.39%
A158: 149 | B158: Metals | C158: NMDC | D158: 116.60 | E158: 116.92 | F158: 115.78 | G158: 114.97 | H158: 113.83 | I158: 117.73 | J158: 118.87 | K158: 119.68 | L158: 118.05 | M158: 116.1 | N158: 30048000 | O158: 1.95%
A159: 150 | B159: Power | C159: NTPC | D159: 168.35 | E159: 169.02 | F159: 167.13 | G159: 165.92 | H159: 164.03 | I159: 170.23 | J159: 172.12 | K159: 173.33 | L159: 170.9 | M159: 167.8 | N159: 39828000 | O159: 2.21%
A160: 151 | B160: Technology | C160: OFSS | D160: 4124.95 | E160: 4155.05 | F160: 4079.95 | G160: 4034.95 | H160: 3959.85 | I160: 4200.05 | J160: 4275.15 | K160: 4320.15 | L160: 4230.15 | M160: 4110.05 | N160: 126000 | O160: 2.94%
A161: 152 | B161: Oil_Gas | C161: OIL | D161: 236.25 | E161: 235.42 | F161: 232.93 | G161: 229.62 | H161: 227.13 | I161: 238.73 | J161: 241.22 | K161: 244.53 | L161: 237.9 | M161: 232.1 | N161: 2865357 | O161: 2.31%
A162: 153 | B162: Oil_Gas | C162: ONGC | D162: 188.50 | E162: 188.48 | F162: 187.27 | G162: 186.03 | H162: 184.82 | I162: 189.72 | J162: 190.93 | K162: 192.17 | L162: 189.7 | M162: 187.25 | N162: 37597500 | O162: -0.34%
A163: 154 | B163: Banking | C163: ORIENTBANK | D163: 83.05 | E163: 82.65 | F163: 81.65 | G163: 80.25 | H163: 79.25 | I163: 84.05 | J163: 85.05 | K163: 86.45 | L163: 83.65 | M163: 81.25 | N163: 18498000 | O163: -3.20%
A164: 155 | B164: Textile | C164: PAGEIND | D164: 24148.50 | E164: 24041.17 | F164: 23862.33 | G164: 23576.17 | H164: 23397.33 | I164: 24327.33 | J164: 24506.17 | K164: 24792.33 | L164: 24220 | M164: 23755 | N164: 53325 | O164: -1.71%
A165: 156 | B165: Others | C165: PCJEWELLER | D165: 201.10 | E165: 213.53 | F165: 182.57 | G165: 164.03 | H165: 133.07 | I165: 232.07 | J165: 263.03 | K165: 281.57 | L165: 244.5 | M165: 195 | N165: 8277000 | O165: -9.90%
A166: 157 | B166: Pharma | C166: PEL | D166: 2448.15 | E166: 2455.93 | F166: 2427.22 | G166: 2406.28 | H166: 2377.57 | I166: 2476.87 | J166: 2505.58 | K166: 2526.52 | L166: 2484.65 | M166: 2435 | N166: 2125174 | O166: 1.15%
A167: 158 | B167: Oil_Gas | C167: PETRONET | D167: 215.70 | E167: 213.07 | F167: 209.03 | G167: 202.37 | H167: 198.33 | I167: 219.73 | J167: 223.77 | K167: 230.43 | L167: 217.1 | M167: 206.4 | N167: 24588000 | O167: 0.86%
A168: 159 | B168: Finance | C168: PFC | D168: 83.10 | E168: 83.12 | F168: 82.33 | G168: 81.57 | H168: 80.78 | I168: 83.88 | J168: 84.67 | K168: 85.43 | L168: 83.9 | M168: 82.35 | N168: 78720000 | O168: 0.80%
A169: 160 | B169: FMCG | C169: PIDILITIND | D169: 1103.75 | E169: 1099.90 | F169: 1091.90 | G169: 1080.05 | H169: 1072.05 | I169: 1111.75 | J169: 1119.75 | K169: 1131.60 | L169: 1107.9 | M169: 1088.05 | N169: 1383000 | O169: -2.61%
A170: 161 | B170: Banking | C170: PNB | D170: 89.20 | E170: 89.48 | F170: 87.02 | G170: 84.83 | H170: 82.37 | I170: 91.67 | J170: 94.13 | K170: 96.32 | L170: 91.95 | M170: 87.3 | N170: 68606500 | O170: 0.43%
A171: 162 | B171: Power | C171: POWERGRID | D171: 207.40 | E171: 207.87 | F171: 206.08 | G171: 204.77 | H171: 202.98 | I171: 209.18 | J171: 210.97 | K171: 212.28 | L171: 209.65 | M171: 206.55 | N171: 30336000 | O171: -2.84%
A172: 163 | B172: Power | C172: PTC | D172: 98.60 | E172: 97.62 | F172: 94.43 | G172: 90.27 | H172: 87.08 | I172: 101.78 | J172: 104.97 | K172: 109.13 | L172: 100.8 | M172: 93.45 | N172: 27296000 | O172: 10.35%
A173: 164 | B173: Others | C173: PVR | D173: 1424.30 | E173: 1424.12 | F173: 1409.03 | G173: 1393.77 | H173: 1378.68 | I173: 1439.38 | J173: 1454.47 | K173: 1469.73 | L173: 1439.2 | M173: 1408.85 | N173: 994400 | O173: 1.93%
A174: 165 | B174: Cement | C174: RAMCOCEM | D174: 833.60 | E174: 828.13 | F174: 817.27 | G174: 800.93 | H174: 790.07 | I174: 844.47 | J174: 855.33 | K174: 871.67 | L174: 839 | M174: 811.8 | N174: 1301600 | O174: -0.55%
A175: 166 | B175: Others | C175: RAYMOND | D175: 1103.00 | E175: 1099.07 | F175: 1089.63 | G175: 1076.27 | H175: 1066.83 | I175: 1112.43 | J175: 1121.87 | K175: 1135.23 | L175: 1108.5 | M175: 1085.7 | N175: 5140800 | O175: 0.64%
A176: 167 | B176: Banking | C176: RBLBANK | D176: 517.35 | E176: 517.40 | F176: 514.90 | G176: 512.45 | H176: 509.95 | I176: 519.85 | J176: 522.35 | K176: 524.80 | L176: 519.9 | M176: 514.95 | N176: 4559200 | O176: 0.00%
A177: 168 | B177: Telecom | C177: RCOM | D177: 13.80 | E177: 14.00 | F177: 13.15 | G177: 12.50 | H177: 11.65 | I177: 14.65 | J177: 15.50 | K177: 16.15 | L177: 14.85 | M177: 13.35 | N177: 131432000 | O177: -1.35%
A178: 169 | B178: Capital_Goods | C178: RNAVAL | D178: 16.85 | E178: 16.80 | F178: 16.30 | G178: 15.75 | H178: 15.25 | I178: 17.35 | J178: 17.85 | K178: 18.40 | L178: 17.3 | M178: 16.25 | N178: 39051000 | O178: -7.50%
A179: 170 | B179: Power | C179: RECLTD | D179: 119.70 | E179: 119.55 | F179: 118.30 | G179: 116.90 | H179: 115.65 | I179: 120.95 | J179: 122.20 | K179: 123.60 | L179: 120.8 | M179: 118.15 | N179: 41382000 | O179: -0.73%
A180: 171 | B180: Finance | C180: RELCAPITAL | D180: 408.15 | E180: 407.78 | F180: 402.37 | G180: 396.58 | H180: 391.17 | I180: 413.57 | J180: 418.98 | K180: 424.77 | L180: 413.2 | M180: 402 | N180: 12996750 | O180: -0.29%
A181: 172 | B181: Oil_Gas | C181: RELIANCE | D181: 990.10 | E181: 988.07 | F181: 982.63 | G181: 975.17 | H181: 969.73 | I181: 995.53 | J181: 1000.97 | K181: 1008.43 | L181: 993.5 | M181: 980.6 | N181: 47828000 | O181: -0.42%
A182: 173 | B182: Power | C182: RELINFRA | D182: 416.75 | E182: 416.55 | F182: 410.20 | G182: 403.65 | H182: 397.30 | I182: 423.10 | J182: 429.45 | K182: 436.00 | L182: 422.9 | M182: 410 | N182: 9682400 | O182: -2.35%
A183: 174 | B183: Others | C183: REPCOHOME | D183: 587.55 | E183: 589.77 | F183: 578.83 | G183: 570.12 | H183: 559.18 | I183: 598.48 | J183: 609.42 | K183: 618.13 | L183: 600.7 | M183: 581.05 | N183: 788400 | O183: -0.19%
A184: 175 | B184: Power | C184: RPOWER | D184: 35.95 | E184: 36.00 | F184: 35.45 | G184: 34.95 | H184: 34.40 | I184: 36.50 | J184: 37.05 | K184: 37.55 | L184: 36.55 | M184: 35.5 | N184: 58253000 | O184: -3.09%
A185: 176 | B185: Metals | C185: SAIL | D185: 73.85 | E185: 73.85 | F185: 73.00 | G185: 72.15 | H185: 71.30 | I185: 74.70 | J185: 75.55 | K185: 76.40 | L185: 74.7 | M185: 73 | N185: 103284000 | O185: 1.67%
A186: 177 | B186: Banking | C186: SBIN | D186: 250.20 | E186: 248.78 | F186: 246.82 | G186: 243.43 | H186: 241.47 | I186: 252.17 | J186: 254.13 | K186: 257.52 | L186: 250.75 | M186: 245.4 | N186: 84921000 | O186: -2.59%
A187: 178 | B187: Cement | C187: SHREECEM | D187: 16284.85 | E187: 16248.20 | F187: 16146.65 | G187: 16008.45 | H187: 15906.90 | I187: 16386.40 | J187: 16487.95 | K187: 16626.15 | L187: 16349.75 | M187: 16110 | N187: 79800 | O187: 0.31%
A188: 179 | B188: Capital_Goods | C188: SIEMENS | D188: 1035.00 | E188: 1035.02 | F188: 1028.03 | G188: 1021.07 | H188: 1014.08 | I188: 1041.98 | J188: 1048.97 | K188: 1055.93 | L188: 1042 | M188: 1028.05 | N188: 1638500 | O188: 2.57%
A189: 180 | B189: Banking | C189: SOUTHBANK | D189: 25.70 | E189: 25.83 | F189: 25.32 | G189: 24.93 | H189: 24.42 | I189: 26.22 | J189: 26.73 | K189: 27.12 | L189: 26.35 | M189: 25.45 | N189: 152813151 | O189: 0.88%
A190: 181 | B190: Others | C190: SREINFRA | D190: 80.15 | E190: 79.48 | F190: 77.77 | G190: 75.38 | H190: 73.67 | I190: 81.87 | J190: 83.58 | K190: 85.97 | L190: 81.2 | M190: 77.1 | N190: 17017000 | O190: -2.04%
A191: 182 | B191: Textile | C191: SRF | D191: 2259.35 | E191: 2257.75 | F191: 2225.60 | G191: 2191.85 | H191: 2159.70 | I191: 2291.50 | J191: 2323.65 | K191: 2357.40 | L191: 2289.9 | M191: 2224 | N191: 510500 | O191: -5.02%
A192: 183 | B192: Finance | C192: SRTRANSFIN | D192: 1493.35 | E192: 1495.40 | F192: 1478.45 | G192: 1463.55 | H192: 1446.60 | I192: 1510.30 | J192: 1527.25 | K192: 1542.15 | L192: 1512.35 | M192: 1480.5 | N192: 3979200 | O192: -0.09%
A193: 184 | B193: Pharma | C193: STAR | D193: 534.75 | E193: 529.80 | F193: 520.60 | G193: 506.45 | H193: 497.25 | I193: 543.95 | J193: 553.15 | K193: 567.30 | L193: 539 | M193: 515.65 | N193: 2789400 | O193: -0.98%
A194: 185 | B194: Pharma | C194: SUNPHARMA | D194: 473.05 | E194: 479.85 | F194: 462.05 | G194: 451.05 | H194: 433.25 | I194: 490.85 | J194: 508.65 | K194: 519.65 | L194: 497.65 | M194: 468.85 | N194: 60415300 | O194: 0.56%
A195: 186 | B195: Media | C195: SUNTV | D195: 875.30 | E195: 867.65 | F195: 850.30 | G195: 825.30 | H195: 807.95 | I195: 892.65 | J195: 910.00 | K195: 935.00 | L195: 885 | M195: 842.65 | N195: 5816000 | O195: -5.01%
A196: 187 | B196: Power | C196: SUZLON | D196: 9.80 | E196: 9.85 | F196: 9.65 | G196: 9.50 | H196: 9.30 | I196: 10.00 | J196: 10.20 | K196: 10.35 | L196: 10.05 | M196: 9.7 | N196: 330595000 | O196: -0.28%
A197: 188 | B197: Banking | C197: SYNDIBANK | D197: 51.50 | E197: 51.25 | F197: 50.65 | G197: 49.80 | H197: 49.20 | I197: 52.10 | J197: 52.70 | K197: 53.55 | L197: 51.85 | M197: 50.4 | N197: 31203000 | O197: -3.05%
A198: 189 | B198: Fertilisers | C198: TATACHEM | D198: 779.05 | E198: 776.10 | F198: 769.40 | G198: 759.75 | H198: 753.05 | I198: 785.75 | J198: 792.45 | K198: 802.10 | L198: 782.8 | M198: 766.45 | N198: 4827750 | O198: 2.39%
A199: 190 | B199: Telecom | C199: TATACOMM | D199: 638.95 | E199: 627.38 | F199: 608.07 | G199: 577.18 | H199: 557.87 | I199: 658.27 | J199: 677.58 | K199: 708.47 | L199: 646.7 | M199: 596.5 | N199: 6570400 | O199: -2.83%
A200: 191 | B200: Technology | C200: TATAELXSI | D200: 1189.25 | E200: 1192.73 | F200: 1180.47 | G200: 1171.68 | H200: 1159.42 | I200: 1201.52 | J200: 1213.78 | K200: 1222.57 | L200: 1205 | M200: 1183.95 | N200: 2155200 | O200: -0.59%
A201: 192 | B201: FMCG | C201: TATAGLOBAL | D201: 288.85 | E201: 288.80 | F201: 285.65 | G201: 282.45 | H201: 279.30 | I201: 292.00 | J201: 295.15 | K201: 298.35 | L201: 291.95 | M201: 285.6 | N201: 21951000 | O201: -2.43%
A202: 193 | B202: Automobile | C202: TATAMOTORS | D202: 331.40 | E202: 332.43 | F202: 329.42 | G202: 327.43 | H202: 324.42 | I202: 334.42 | J202: 337.43 | K202: 339.42 | L202: 335.45 | M202: 330.45 | N202: 79200000 | O202: 3.35%
A203: 194 | B203: Automobile | C203: TATAMTRDVR | D203: 195.55 | E203: 196.55 | F203: 193.35 | G203: 191.15 | H203: 187.95 | I203: 198.75 | J203: 201.95 | K203: 204.15 | L203: 199.75 | M203: 194.35 | N203: 21991800 | O203: -1.50%
A204: 195 | B204: Power | C204: TATAPOWER | D204: 82.05 | E204: 81.92 | F204: 81.23 | G204: 80.42 | H204: 79.73 | I204: 82.73 | J204: 83.42 | K204: 84.23 | L204: 82.6 | M204: 81.1 | N204: 49770000 | O204: 0.02%
A205: 196 | B205: Metals | C205: TATASTEEL | D205: 608.15 | E205: 604.80 | F205: 596.80 | G205: 585.45 | H205: 577.45 | I205: 616.15 | J205: 624.15 | K205: 635.50 | L205: 612.8 | M205: 593.45 | N205: 20603559 | O205: -3.10%
A206: 197 | B206: Technology | C206: TCS | D206: 3473.65 | E206: 3475.02 | F206: 3455.63 | G206: 3437.62 | H206: 3418.23 | I206: 3493.03 | J206: 3512.42 | K206: 3530.43 | L206: 3494.4 | M206: 3457 | N206: 6600250 | O206: -1.40%
... 35 more rows

Sheet Cash Intra
M5: Back to Main Page
A6: FOR INTRA DAY TRADING | K6: =Main!B10 -> 2017-05-14
A8: Sr.no | B8: Scrip | C8: CLOSE RATE | D8: Pivot Point | E8: Supports | H8: Resistances
C9: Point | E9: S1 | F9: S2 | G9: S3 | H9: R1 | I9: R2 | J9: R3 | K9: HIGH | L9: LOW | M9: Total Trade Quanity in Lakhs
A10: 1 | B10: Nifty 50 | C10: 10806.5 | D10: 10781.00 | E10: 10749.95 | F10: 10693.40 | G10: 10662.35 | H10: 10837.55 | I10: 10868.60 | J10: 10925.15 | K10: 10812.05 | L10: 10724.45
A11: 2 | B11: Nifty Bank | C11: 26413.15 | D11: 26316.75 | E11: 26196.25 | F11: 25979.35 | G11: 25858.85 | H11: 26533.65 | I11: 26654.15 | J11: 26871.05 | K11: 26437.25 | L11: 26099.85
A12: 3 | B12: Nifty CPSE | C12: 2432.35 | D12: 2433.25 | E12: 2422.10 | F12: 2411.85 | G12: 2400.70 | H12: 2443.50 | I12: 2454.65 | J12: 2464.90 | K12: 2444.4 | L12: 2423
A13: 4 | B13: Nifty Infra | C13: 3395.4 | D13: 3392.93 | E13: 3380.82 | F13: 3366.23 | G13: 3354.12 | H13: 3407.52 | I13: 3419.63 | J13: 3434.22 | K13: 3405.05 | L13: 3378.35
A14: 5 | B14: Nifty IT | C14: 13478.6 | D14: 13463.68 | E14: 13408.22 | F14: 13337.83 | G14: 13282.37 | H14: 13534.07 | I14: 13589.53 | J14: 13659.92 | K14: 13519.15 | L14: 13393.3
A15: 6 | B15: Nifty PSE | C15: 3844 | D15: 3850.25 | E15: 3829.60 | F15: 3815.20 | G15: 3794.55 | H15: 3864.65 | I15: 3885.30 | J15: 3899.70 | K15: 3870.9 | L15: 3835.85
A16: 7 | B16: Nifty Midcap 50 | C16: 5231.05 | D16: 5215.80 | E16: 5194.15 | F16: 5157.25 | G16: 5135.60 | H16: 5252.70 | I16: 5274.35 | J16: 5311.25 | K16: 5237.45 | L16: 5178.9
A17: 8 | B17: ABB | C17: 1245.15 | D17: 1252.15 | E17: 1228.30 | F17: 1211.45 | G17: 1187.60 | H17: 1269.00 | I17: 1292.85 | J17: 1309.70 | K17: 1276 | L17: 1235.3 | M17: 1.38565
A18: 9 | B18: ACC | C18: 1466.55 | D18: 1475.63 | E18: 1452.27 | F18: 1437.98 | G18: 1414.62 | H18: 1489.92 | I18: 1513.28 | J18: 1527.57 | K18: 1499 | L18: 1461.35 | M18: 3.6186
A19: 10 | B19: AIAENG | C19: 1462.35 | D19: 1452.37 | E19: 1434.73 | F19: 1407.12 | G19: 1389.48 | H19: 1479.98 | I19: 1497.62 | J19: 1525.23 | K19: 1470 | L19: 1424.75 | M19: 0.22568
A20: 11 | B20: AUBANK | C20: 711.1 | D20: 710.17 | E20: 703.93 | F20: 696.77 | G20: 690.53 | H20: 717.33 | I20: 723.57 | J20: 730.73 | K20: 716.4 | L20: 703 | M20: 1.21654
A21: 12 | B21: ADANIENT | C21: 127.8 | D21: 126.87 | E21: 124.33 | F21: 120.87 | G21: 118.33 | H21: 130.33 | I21: 132.87 | J21: 136.33 | K21: 129.4 | L21: 123.4 | M21: 59.43405
A22: 13 | B22: ADANIPORTS | C22: 412.7 | D22: 412.68 | E22: 410.87 | F22: 409.03 | G22: 407.22 | H22: 414.52 | I22: 416.33 | J22: 418.17 | K22: 414.5 | L22: 410.85 | M22: 14.42596
A23: 14 | B23: ADANIPOWER | C23: 23.85 | D23: 23.95 | E23: 23.40 | F23: 22.95 | G23: 22.40 | H23: 24.40 | I23: 24.95 | J23: 25.40 | K23: 24.5 | L23: 23.5 | M23: 72.72649
A24: 15 | B24: ABFRL | C24: 150.6 | D24: 151.38 | E24: 143.37 | F24: 136.13 | G24: 128.12 | H24: 158.62 | I24: 166.63 | J24: 173.87 | K24: 159.4 | L24: 144.15 | M24: 40.97756
A25: 16 | B25: AJANTPHARM | C25: 1059.7 | D25: 1072.40 | E25: 1039.80 | F25: 1019.90 | G25: 987.30 | H25: 1092.30 | I25: 1124.90 | J25: 1144.80 | K25: 1105 | L25: 1052.5 | M25: 4.17145
A26: 17 | B26: ALKEM | C26: 2005.85 | D26: 1999.60 | E26: 1966.25 | F26: 1926.65 | G26: 1893.30 | H26: 2039.20 | I26: 2072.55 | J26: 2112.15 | K26: 2032.95 | L26: 1960 | M26: 0.21707
A27: 18 | B27: AMARAJABAT | C27: 863.4 | D27: 863.28 | E27: 850.97 | F27: 838.53 | G27: 826.22 | H27: 875.72 | I27: 888.03 | J27: 900.47 | K27: 875.6 | L27: 850.85 | M27: 5.00891
A28: 19 | B28: AMBUJACEM | C28: 217.15 | D28: 218.15 | E28: 215.15 | F28: 213.15 | G28: 210.15 | H28: 220.15 | I28: 223.15 | J28: 225.15 | K28: 221.15 | L28: 216.15 | M28: 39.17464
A29: 20 | B29: APOLLOHOSP | C29: 1044.9 | D29: 1036.65 | E29: 1020.75 | F29: 996.60 | G29: 980.70 | H29: 1060.80 | I29: 1076.70 | J29: 1100.85 | K29: 1052.55 | L29: 1012.5 | M29: 2.92768
A30: 21 | B30: APOLLOTYRE | C30: 280 | D30: 281.25 | E30: 272.85 | F30: 265.70 | G30: 257.30 | H30: 288.40 | I30: 296.80 | J30: 303.95 | K30: 289.65 | L30: 274.1 | M30: 37.76298
A31: 22 | B31: ARVIND | C31: 429.75 | D31: 429.28 | E31: 425.12 | F31: 420.48 | G31: 416.32 | H31: 433.92 | I31: 438.08 | J31: 442.72 | K31: 433.45 | L31: 424.65 | M31: 13.1464
A32: 23 | B32: ASHOKLEY | C32: 161.85 | D32: 161.47 | E32: 160.68 | F32: 159.52 | G32: 158.73 | H32: 162.63 | I32: 163.42 | J32: 164.58 | K32: 162.25 | L32: 160.3 | M32: 68.24338
A33: 24 | B33: ASIANPAINT | C33: 1286.45 | D33: 1269.40 | E33: 1246.90 | F33: 1207.35 | G33: 1184.85 | H33: 1308.95 | I33: 1331.45 | J33: 1371.00 | K33: 1291.9 | L33: 1229.85 | M33: 47.23019
A34: 25 | B34: AUROPHARMA | C34: 611.35 | D34: 604.22 | E34: 591.93 | F34: 572.52 | G34: 560.23 | H34: 623.63 | I34: 635.92 | J34: 655.33 | K34: 616.5 | L34: 584.8 | M34: 21.23672
A35: 26 | B35: DMART | C35: 1453.9 | D35: 1465.45 | E35: 1434.95 | F35: 1416.00 | G35: 1385.50 | H35: 1484.40 | I35: 1514.90 | J35: 1533.85 | K35: 1495.95 | L35: 1446.5 | M35: 6.58025
A36: 27 | B36: AXISBANK | C36: 553.3 | D36: 551.77 | E36: 547.03 | F36: 540.77 | G36: 536.03 | H36: 558.03 | I36: 562.77 | J36: 569.03 | K36: 556.5 | L36: 545.5 | M36: 49.60854
A37: 28 | B37: BAJAJ-AUTO | C37: 2815.45 | D37: 2820.48 | E37: 2795.97 | F37: 2776.48 | G37: 2751.97 | H37: 2839.97 | I37: 2864.48 | J37: 2883.97 | K37: 2845 | L37: 2801 | M37: 2.86976
A38: 29 | B38: BAJFINANCE | C38: 1861.5 | D38: 1856.78 | E38: 1832.82 | F38: 1804.13 | G38: 1780.17 | H38: 1885.47 | I38: 1909.43 | J38: 1938.12 | K38: 1880.75 | L38: 1828.1 | M38: 4.83249
A39: 30 | B39: BAJAJFINSV | C39: 5345.45 | D39: 5320.10 | E39: 5275.45 | F39: 5205.45 | G39: 5160.80 | H39: 5390.10 | I39: 5434.75 | J39: 5504.75 | K39: 5364.75 | L39: 5250.1 | M39: 0.62942
A40: 31 | B40: BALKRISIND | C40: 1199.45 | D40: 1196.92 | E40: 1184.08 | F40: 1168.72 | G40: 1155.88 | H40: 1212.28 | I40: 1225.12 | J40: 1240.48 | K40: 1209.75 | L40: 1181.55 | M40: 1.77096
A41: 32 | B41: BANKBARODA | C41: 142.7 | D41: 141.15 | E41: 138.65 | F41: 134.60 | G41: 132.10 | H41: 145.20 | I41: 147.70 | J41: 151.75 | K41: 143.65 | L41: 137.1 | M41: 116.7321
A42: 33 | B42: BANKINDIA | C42: 100 | D42: 99.77 | E42: 98.33 | F42: 96.67 | G42: 95.23 | H42: 101.43 | I42: 102.87 | J42: 104.53 | K42: 101.2 | L42: 98.1 | M42: 47.59345
A43: 34 | B43: BATAINDIA | C43: 788.6 | D43: 784.93 | E43: 777.32 | F43: 766.03 | G43: 758.42 | H43: 796.22 | I43: 803.83 | J43: 815.12 | K43: 792.55 | L43: 773.65 | M43: 5.68076
A44: 35 | B44: BERGEPAINT | C44: 277.15 | D44: 275.37 | E44: 269.83 | F44: 262.52 | G44: 256.98 | H44: 282.68 | I44: 288.22 | J44: 295.53 | K44: 280.9 | L44: 268.05 | M44: 43.27971
A45: 36 | B45: BEL | C45: 127.85 | D45: 128.65 | E45: 126.70 | F45: 125.55 | G45: 123.60 | H45: 129.80 | I45: 131.75 | J45: 132.90 | K45: 130.6 | L45: 127.5 | M45: 24.04042
A46: 37 | B46: BHARATFIN | C46: 1165.05 | D46: 1157.35 | E46: 1146.85 | F46: 1128.65 | G46: 1118.15 | H46: 1175.55 | I46: 1186.05 | J46: 1204.25 | K46: 1167.85 | L46: 1139.15 | M46: 7.80799
A47: 38 | B47: BHARATFORG | C47: 725.6 | D47: 726.27 | E47: 720.63 | F47: 715.67 | G47: 710.03 | H47: 731.23 | I47: 736.87 | J47: 741.83 | K47: 731.9 | L47: 721.3 | M47: 2.73121
A48: 39 | B48: BHEL | C48: 80.65 | D48: 81.03 | E48: 79.92 | F48: 79.18 | G48: 78.07 | H48: 81.77 | I48: 82.88 | J48: 83.62 | K48: 82.15 | L48: 80.3 | M48: 71.55264
A49: 40 | B49: BPCL | C49: 399.3 | D49: 396.35 | E49: 392.20 | F49: 385.10 | G49: 380.95 | H49: 403.45 | I49: 407.60 | J49: 414.70 | K49: 400.5 | L49: 389.25 | M49: 45.25599
A50: 41 | B50: BHARTIARTL | C50: 386.6 | D50: 390.27 | E50: 377.83 | F50: 369.07 | G50: 356.63 | H50: 399.03 | I50: 411.47 | J50: 420.23 | K50: 402.7 | L50: 381.5 | M50: 230.31948
A51: 42 | B51: INFRATEL | C51: 319.85 | D51: 319.38 | E51: 315.92 | F51: 311.98 | G51: 308.52 | H51: 323.32 | I51: 326.78 | J51: 330.72 | K51: 322.85 | L51: 315.45 | M51: 28.06644
A52: 43 | B52: BIOCON | C52: 630.35 | D52: 629.82 | E52: 619.63 | F52: 608.92 | G52: 598.73 | H52: 640.53 | I52: 650.72 | J52: 661.43 | K52: 640 | L52: 619.1 | M52: 14.948
A53: 44 | B53: BOSCHLTD | C53: 18658 | D53: 18688.43 | E53: 18535.57 | F53: 18413.13 | G53: 18260.27 | H53: 18810.87 | I53: 18963.73 | J53: 19086.17 | K53: 18841.3 | L53: 18566 | M53: 0.04477
A54: 45 | B54: BRITANNIA | C54: 5477.7 | D54: 5456.70 | E54: 5421.00 | F54: 5364.30 | G54: 5328.60 | H54: 5513.40 | I54: 5549.10 | J54: 5605.80 | K54: 5492.4 | L54: 5400 | M54: 0.62116
A55: 46 | B55: CRISIL | C55: 1781.25 | D55: 1788.63 | E55: 1767.17 | F55: 1753.08 | G55: 1731.62 | H55: 1802.72 | I55: 1824.18 | J55: 1838.27 | K55: 1810.1 | L55: 1774.55 | M55: 0.0833
A56: 47 | B56: CADILAHC | C56: 393.4 | D56: 393.93 | E56: 389.52 | F56: 385.63 | G56: 381.22 | H56: 397.82 | I56: 402.23 | J56: 406.12 | K56: 398.35 | L56: 390.05 | M56: 3.24055
A57: 48 | B57: CANBK | C57: 246.7 | D57: 246.05 | E57: 241.90 | F57: 237.10 | G57: 232.95 | H57: 250.85 | I57: 255.00 | J57: 259.80 | K57: 250.2 | L57: 241.25 | M57: 94.01394
A58: 49 | B58: CASTROLIND | C58: 178 | D58: 178.08 | E58: 176.57 | F58: 175.13 | G58: 173.62 | H58: 179.52 | I58: 181.03 | J58: 182.47 | K58: 179.6 | L58: 176.65 | M58: 17.7522
A59: 50 | B59: CENTRALBK | C59: 70.55 | D59: 70.62 | E59: 69.93 | F59: 69.32 | G59: 68.63 | H59: 71.23 | I59: 71.92 | J59: 72.53 | K59: 71.3 | L59: 70 | M59: 1.5821
A60: 51 | B60: CENTURYTEX | C60: 1108.25 | D60: 1096.37 | E60: 1074.48 | F60: 1040.72 | G60: 1018.83 | H60: 1130.13 | I60: 1152.02 | J60: 1185.78 | K60: 1118.25 | L60: 1062.6 | M60: 7.65459
A61: 52 | B61: CHOLAFIN | C61: 1588.95 | D61: 1583.83 | E61: 1571.12 | F61: 1553.28 | G61: 1540.57 | H61: 1601.67 | I61: 1614.38 | J61: 1632.22 | K61: 1596.55 | L61: 1566 | M61: 1.77597
A62: 53 | B62: CIPLA | C62: 573.7 | D62: 573.18 | E62: 565.62 | F62: 557.53 | G62: 549.97 | H62: 581.27 | I62: 588.83 | J62: 596.92 | K62: 580.75 | L62: 565.1 | M62: 9.2189
A63: 54 | B63: COALINDIA | C63: 271 | D63: 270.93 | E63: 269.57 | F63: 268.13 | G63: 266.77 | H63: 272.37 | I63: 273.73 | J63: 275.17 | K63: 272.3 | L63: 269.5 | M63: 17.78138
A64: 55 | B64: COLPAL | C64: 1109 | D64: 1104.82 | E64: 1097.73 | F64: 1086.47 | G64: 1079.38 | H64: 1116.08 | I64: 1123.17 | J64: 1134.43 | K64: 1111.9 | L64: 1093.55 | M64: 2.885
A65: 56 | B65: CONCOR | C65: 1407 | D65: 1392.58 | E65: 1371.97 | F65: 1336.93 | G65: 1316.32 | H65: 1427.62 | I65: 1448.23 | J65: 1483.27 | K65: 1413.2 | L65: 1357.55 | M65: 4.2075
A66: 57 | B66: COROMANDEL | C66: 449.95 | D66: 449.73 | E66: 444.47 | F66: 438.98 | G66: 433.72 | H66: 455.22 | I66: 460.48 | J66: 465.97 | K66: 455 | L66: 444.25 | M66: 1.83801
A67: 58 | B67: CROMPTON | C67: 234.35 | D67: 235.70 | E67: 231.65 | F67: 228.95 | G67: 224.90 | H67: 238.40 | I67: 242.45 | J67: 245.15 | K67: 239.75 | L67: 233 | M67: 3.22971
A68: 59 | B68: CUMMINSIND | C68: 775.05 | D68: 773.95 | E68: 766.25 | F68: 757.45 | G68: 749.75 | H68: 782.75 | I68: 790.45 | J68: 799.25 | K68: 781.65 | L68: 765.15 | M68: 3.49147
A69: 60 | B69: DLF | C69: 214.25 | D69: 214.13 | E69: 210.62 | F69: 206.98 | G69: 203.47 | H69: 217.77 | I69: 221.28 | J69: 224.92 | K69: 217.65 | L69: 210.5 | M69: 51.24007
A70: 61 | B70: DABUR | C70: 366.45 | D70: 366.98 | E70: 364.07 | F70: 361.68 | G70: 358.77 | H70: 369.37 | I70: 372.28 | J70: 374.67 | K70: 369.9 | L70: 364.6 | M70: 9.19285
A71: 62 | B71: DALMIABHA | C71: 2805.2 | D71: 2798.92 | E71: 2757.83 | F71: 2710.47 | G71: 2669.38 | H71: 2846.28 | I71: 2887.37 | J71: 2934.73 | K71: 2840 | L71: 2751.55 | M71: 0.84961
A72: 63 | B72: DHFL | C72: 625.6 | D72: 628.20 | E72: 622.40 | F72: 619.20 | G72: 613.40 | H72: 631.40 | I72: 637.20 | J72: 640.40 | K72: 634 | L72: 625 | M72: 26.13025
A73: 64 | B73: DISHTV | C73: 72 | D73: 72.38 | E73: 71.42 | F73: 70.83 | G73: 69.87 | H73: 72.97 | I73: 73.93 | J73: 74.52 | K73: 73.35 | L73: 71.8 | M73: 30.75346
A74: 65 | B74: DIVISLAB | C74: 1200.7 | D74: 1202.28 | E74: 1181.57 | F74: 1162.43 | G74: 1141.72 | H74: 1221.42 | I74: 1242.13 | J74: 1261.27 | K74: 1223 | L74: 1183.15 | M74: 6.08254
A75: 66 | B75: LALPATHLAB | C75: 817 | D75: 822.63 | E75: 805.37 | F75: 793.73 | G75: 776.47 | H75: 834.27 | I75: 851.53 | J75: 863.17 | K75: 839.9 | L75: 811 | M75: 0.22171
A76: 67 | B76: DRREDDY | C76: 1990.5 | D76: 1989.47 | E76: 1961.03 | F76: 1931.57 | G76: 1903.13 | H76: 2018.93 | I76: 2047.37 | J76: 2076.83 | K76: 2017.9 | L76: 1960 | M76: 6.04488
A77: 68 | B77: EDELWEISS | C77: 288.5 | D77: 287.20 | E77: 284.40 | F77: 280.30 | G77: 277.50 | H77: 291.30 | I77: 294.10 | J77: 298.20 | K77: 290 | L77: 283.1 | M77: 11.08849
A78: 69 | B78: EICHERMOT | C78: 30873 | D78: 30882.67 | E78: 30615.33 | F78: 30357.67 | G78: 30090.33 | H78: 31140.33 | I78: 31407.67 | J78: 31665.33 | K78: 31150 | L78: 30625 | M78: 0.33957
A79: 70 | B79: EMAMILTD | C79: 1051.7 | D79: 1052.07 | E79: 1036.13 | F79: 1020.57 | G79: 1004.63 | H79: 1067.63 | I79: 1083.57 | J79: 1099.13 | K79: 1068 | L79: 1036.5 | M79: 8.02687
A80: 71 | B80: ENDURANCE | C80: 1173.3 | D80: 1177.35 | E80: 1164.65 | F80: 1156.00 | G80: 1143.30 | H80: 1186.00 | I80: 1198.70 | J80: 1207.35 | K80: 1190.05 | L80: 1168.7 | M80: 0.2502
A81: 72 | B81: ENGINERSIN | C81: 153.75 | D81: 153.97 | E81: 151.93 | F81: 150.12 | G81: 148.08 | H81: 155.78 | I81: 157.82 | J81: 159.63 | K81: 156 | L81: 152.15 | M81: 13.69482
A82: 73 | B82: EXIDEIND | C82: 261.45 | D82: 260.80 | E82: 257.80 | F82: 254.15 | G82: 251.15 | H82: 264.45 | I82: 267.45 | J82: 271.10 | K82: 263.8 | L82: 257.15 | M82: 30.38516
A83: 74 | B83: FEDERALBNK | C83: 90.05 | D83: 89.98 | E83: 89.27 | F83: 88.48 | G83: 87.77 | H83: 90.77 | I83: 91.48 | J83: 92.27 | K83: 90.7 | L83: 89.2 | M83: 251.2492
A84: 75 | B84: GAIL | C84: 342.6 | D84: 341.52 | E84: 338.23 | F84: 333.87 | G84: 330.58 | H84: 345.88 | I84: 349.17 | J84: 353.53 | K84: 344.8 | L84: 337.15 | M84: 26.18297
A85: 76 | B85: GMRINFRA | C85: 18.65 | D85: 18.62 | E85: 18.38 | F85: 18.12 | G85: 17.88 | H85: 18.88 | I85: 19.12 | J85: 19.38 | K85: 18.85 | L85: 18.35 | M85: 180.87595
A86: 77 | B86: GSKCONS | C86: 5914.9 | D86: 5909.63 | E86: 5860.37 | F86: 5805.83 | G86: 5756.57 | H86: 5964.17 | I86: 6013.43 | J86: 6067.97 | K86: 5958.9 | L86: 5855.1 | M86: 0.1871
A87: 78 | B87: GLAXO | C87: 2418.3 | D87: 2410.07 | E87: 2386.23 | F87: 2354.17 | G87: 2330.33 | H87: 2442.13 | I87: 2465.97 | J87: 2498.03 | K87: 2433.9 | L87: 2378 | M87: 0.08711
A88: 79 | B88: GLENMARK | C88: 515.7 | D88: 513.20 | E88: 508.00 | F88: 500.30 | G88: 495.10 | H88: 520.90 | I88: 526.10 | J88: 533.80 | K88: 518.4 | L88: 505.5 | M88: 6.7429
A89: 80 | B89: GODREJCP | C89: 1079.2 | D89: 1076.80 | E89: 1067.15 | F89: 1055.10 | G89: 1045.45 | H89: 1088.85 | I89: 1098.50 | J89: 1110.55 | K89: 1086.45 | L89: 1064.75 | M89: 2.63824
A90: 81 | B90: GODREJIND | C90: 592.9 | D90: 585.95 | E90: 575.95 | F90: 559.00 | G90: 549.00 | H90: 602.90 | I90: 612.90 | J90: 629.85 | K90: 595.95 | L90: 569 | M90: 3.09061
A91: 82 | B91: GRUH | C91: 692.1 | D91: 694.47 | E91: 680.23 | F91: 668.37 | G91: 654.13 | H91: 706.33 | I91: 720.57 | J91: 732.43 | K91: 708.7 | L91: 682.6 | M91: 3.7798
A92: 83 | B92: GPPL | C92: 141.9 | D92: 143.08 | E92: 140.12 | F92: 138.33 | G92: 135.37 | H92: 144.87 | I92: 147.83 | J92: 149.62 | K92: 146.05 | L92: 141.3 | M92: 0.4489
A93: 84 | B93: GSPL | C93: 179.7 | D93: 180.07 | E93: 178.08 | F93: 176.47 | G93: 174.48 | H93: 181.68 | I93: 183.67 | J93: 185.28 | K93: 182.05 | L93: 178.45 | M93: 1.80355
A94: 85 | B94: HCLTECH | C94: 932.85 | D94: 934.07 | E94: 929.88 | F94: 926.92 | G94: 922.73 | H94: 937.03 | I94: 941.22 | J94: 944.18 | K94: 938.25 | L94: 931.1 | M94: 10.58701
A95: 86 | B95: HDFCBANK | C95: 2011.75 | D95: 2004.92 | E95: 1992.83 | F95: 1973.92 | G95: 1961.83 | H95: 2023.83 | I95: 2035.92 | J95: 2054.83 | K95: 2017 | L95: 1986 | M95: 15.14267
A96: 87 | B96: HAVELLS | C96: 547.5 | D96: 549.37 | E96: 538.13 | F96: 528.77 | G96: 517.53 | H96: 558.73 | I96: 569.97 | J96: 579.33 | K96: 560.6 | L96: 540 | M96: 47.3355
A97: 88 | B97: HEROMOTOCO | C97: 3618.3 | D97: 3621.43 | E97: 3587.87 | F97: 3557.43 | G97: 3523.87 | H97: 3651.87 | I97: 3685.43 | J97: 3715.87 | K97: 3655 | L97: 3591 | M97: 2.46696
A98: 89 | B98: HEXAWARE | C98: 442.7 | D98: 438.38 | E98: 421.82 | F98: 400.93 | G98: 384.37 | H98: 459.27 | I98: 475.83 | J98: 496.72 | K98: 454.95 | L98: 417.5 | M98: 33.39272
A99: 90 | B99: HINDALCO | C99: 242.7 | D99: 241.53 | E99: 239.77 | F99: 236.83 | G99: 235.07 | H99: 244.47 | I99: 246.23 | J99: 249.17 | K99: 243.3 | L99: 238.6 | M99: 62.36509
A100: 91 | B100: HINDPETRO | C100: 318.75 | D100: 316.27 | E100: 311.03 | F100: 303.32 | G100: 298.08 | H100: 323.98 | I100: 329.22 | J100: 336.93 | K100: 321.5 | L100: 308.55 | M100: 95.6811
A101: 92 | B101: HINDUNILVR | C101: 1504.1 | D101: 1498.40 | E101: 1490.80 | F101: 1477.50 | G101: 1469.90 | H101: 1511.70 | I101: 1519.30 | J101: 1532.60 | K101: 1506 | L101: 1485.1 | M101: 5.91179
A102: 93 | B102: HINDZINC | C102: 298.8 | D102: 296.93 | E102: 294.37 | F102: 289.93 | G102: 287.37 | H102: 301.37 | I102: 303.93 | J102: 308.37 | K102: 299.5 | L102: 292.5 | M102: 17.37957
A103: 94 | B103: HUDCO | C103: 59.05 | D103: 59.23 | E103: 57.87 | F103: 56.68 | G103: 55.32 | H103: 60.42 | I103: 61.78 | J103: 62.97 | K103: 60.6 | L103: 58.05 | M103: 19.19515
A104: 95 | B104: HDFC | C104: 1919.8 | D104: 1914.17 | E104: 1906.63 | F104: 1893.47 | G104: 1885.93 | H104: 1927.33 | I104: 1934.87 | J104: 1948.03 | K104: 1921.7 | L104: 1901 | M104: 9.48291
A105: 96 | B105: ITC | C105: 283.65 | D105: 282.47 | E105: 280.93 | F105: 278.22 | G105: 276.68 | H105: 285.18 | I105: 286.72 | J105: 289.43 | K105: 284 | L105: 279.75 | M105: 38.92106
A106: 97 | B106: ICICIBANK | C106: 310.95 | D106: 310.12 | E106: 308.38 | F106: 305.82 | G106: 304.08 | H106: 312.68 | I106: 314.42 | J106: 316.98 | K106: 311.85 | L106: 307.55 | M106: 166.71145
A107: 98 | B107: ICICIPRULI | C107: 455.45 | D107: 455.88 | E107: 449.57 | F107: 443.68 | G107: 437.37 | H107: 461.77 | I107: 468.08 | J107: 473.97 | K107: 462.2 | L107: 450 | M107: 19.95373
A108: 99 | B108: IDBI | C108: 67.05 | D108: 67.00 | E108: 66.15 | F108: 65.25 | G108: 64.40 | H108: 67.90 | I108: 68.75 | J108: 69.65 | K108: 67.85 | L108: 66.1 | M108: 63.72775
A109: 100 | B109: IDFCBANK | C109: 43.9 | D109: 43.98 | E109: 43.27 | F109: 42.63 | G109: 41.92 | H109: 44.62 | I109: 45.33 | J109: 45.97 | K109: 44.7 | L109: 43.35 | M109: 71.16447
A110: 101 | B110: IDFC | C110: 54.7 | D110: 54.55 | E110: 53.75 | F110: 52.80 | G110: 52.00 | H110: 55.50 | I110: 56.30 | J110: 57.25 | K110: 55.35 | L110: 53.6 | M110: 40.96305
A111: 102 | B111: IRB | C111: 258.75 | D111: 258.17 | E111: 255.58 | F111: 252.42 | G111: 249.83 | H111: 261.33 | I111: 263.92 | J111: 267.08 | K111: 260.75 | L111: 255 | M111: 12.70687
A112: 103 | B112: IDEA | C112: 51.4 | D112: 53.47 | E112: 48.68 | F112: 45.97 | G112: 41.18 | H112: 56.18 | I112: 60.97 | J112: 63.68 | K112: 58.25 | L112: 50.75 | M112: 795.89877
A113: 104 | B113: IBULHSGFIN | C113: 1239.95 | D113: 1231.95 | E113: 1217.00 | F113: 1194.05 | G113: 1179.10 | H113: 1254.90 | I113: 1269.85 | J113: 1292.80 | K113: 1246.9 | L113: 1209 | M113: 17.66974
A114: 105 | B114: INDIANB | C114: 318.05 | D114: 314.38 | E114: 307.77 | F114: 297.48 | G114: 290.87 | H114: 324.67 | I114: 331.28 | J114: 341.57 | K114: 321 | L114: 304.1 | M114: 35.65024
A115: 106 | B115: INDHOTEL | C115: 139.5 | D115: 139.48 | E115: 137.42 | F115: 135.33 | G115: 133.27 | H115: 141.57 | I115: 143.63 | J115: 145.72 | K115: 141.55 | L115: 137.4 | M115: 8.49791
A116: 107 | B116: IOC | C116: 169.1 | D116: 170.22 | E116: 167.33 | F116: 165.57 | G116: 162.68 | H116: 171.98 | I116: 174.87 | J116: 176.63 | K116: 173.1 | L116: 168.45 | M116: 149.28136
A117: 108 | B117: IGL | C117: 266.5 | D117: 263.97 | E117: 260.53 | F117: 254.57 | G117: 251.13 | H117: 269.93 | I117: 273.37 | J117: 279.33 | K117: 267.4 | L117: 258 | M117: 25.34394
A118: 109 | B118: INDUSINDBK | C118: 1894.25 | D118: 1888.58 | E118: 1879.27 | F118: 1864.28 | G118: 1854.97 | H118: 1903.57 | I118: 1912.88 | J118: 1927.87 | K118: 1897.9 | L118: 1873.6 | M118: 5.42317
A119: 110 | B119: NAUKRI | C119: 1242.55 | D119: 1234.13 | E119: 1215.27 | F119: 1187.98 | G119: 1169.12 | H119: 1261.42 | I119: 1280.28 | J119: 1307.57 | K119: 1253 | L119: 1206.85 | M119: 0.18292
A120: 111 | B120: INFY | C120: 1180.75 | D120: 1176.67 | E120: 1170.13 | F120: 1159.52 | G120: 1152.98 | H120: 1187.28 | I120: 1193.82 | J120: 1204.43 | K120: 1183.2 | L120: 1166.05 | M120: 16.55853
A121: 112 | B121: INDIGO | C121: 1162.95 | D121: 1156.37 | E121: 1144.78 | F121: 1126.62 | G121: 1115.03 | H121: 1174.53 | I121: 1186.12 | J121: 1204.28 | K121: 1167.95 | L121: 1138.2 | M121: 5.85843
A122: 113 | B122: IPCALAB | C122: 722.65 | D122: 723.10 | E122: 716.65 | F122: 710.65 | G122: 704.20 | H122: 729.10 | I122: 735.55 | J122: 741.55 | K122: 729.55 | L122: 717.1 | M122: 0.43987
A123: 114 | B123: JSWENERGY | C123: 70.1 | D123: 70.10 | E123: 69.50 | F123: 68.90 | G123: 68.30 | H123: 70.70 | I123: 71.30 | J123: 71.90 | K123: 70.7 | L123: 69.5 | M123: 7.69026
A124: 115 | B124: JSWSTEEL | C124: 323.75 | D124: 322.83 | E124: 320.42 | F124: 317.08 | G124: 314.67 | H124: 326.17 | I124: 328.58 | J124: 331.92 | K124: 325.25 | L124: 319.5 | M124: 22.08433
A125: 116 | B125: JINDALSTEL | C125: 256.4 | D125: 254.48 | E125: 248.72 | F125: 241.03 | G125: 235.27 | H125: 262.17 | I125: 267.93 | J125: 275.62 | K125: 260.25 | L125: 246.8 | M125: 119.66747
A126: 117 | B126: JUBLFOOD | C126: 2477.85 | D126: 2475.28 | E126: 2435.57 | F126: 2393.28 | G126: 2353.57 | H126: 2517.57 | I126: 2557.28 | J126: 2599.57 | K126: 2515 | L126: 2433 | M126: 13.25718
A127: 118 | B127: JUBILANT | C127: 860.7 | D127: 856.20 | E127: 848.40 | F127: 836.10 | G127: 828.30 | H127: 868.50 | I127: 876.30 | J127: 888.60 | K127: 864 | L127: 843.9 | M127: 4.5741
A128: 119 | B128: KARURVYSYA | C128: 100.05 | D128: 100.05 | E128: 99.15 | F128: 98.25 | G128: 97.35 | H128: 100.95 | I128: 101.85 | J128: 102.75 | K128: 100.95 | L128: 99.15 | M128: 7.07454
A129: 120 | B129: KOTAKBANK | C129: 1267.3 | D129: 1262.58 | E129: 1252.77 | F129: 1238.23 | G129: 1228.42 | H129: 1277.12 | I129: 1286.93 | J129: 1301.47 | K129: 1272.4 | L129: 1248.05 | M129: 14.16236
A130: 121 | B130: L&TFH | C130: 178.2 | D130: 178.33 | E130: 176.87 | F130: 175.53 | G130: 174.07 | H130: 179.67 | I130: 181.13 | J130: 182.47 | K130: 179.8 | L130: 177 | M130: 17.48573
A131: 122 | B131: LICHSGFIN | C131: 500.55 | D131: 499.72 | E131: 495.83 | F131: 491.12 | G131: 487.23 | H131: 504.43 | I131: 508.32 | J131: 513.03 | K131: 503.6 | L131: 495 | M131: 13.85305
A132: 123 | B132: LT | C132: 1387.4 | D132: 1380.40 | E132: 1371.30 | F132: 1355.20 | G132: 1346.10 | H132: 1396.50 | I132: 1405.60 | J132: 1421.70 | K132: 1389.5 | L132: 1364.3 | M132: 10.33691
A133: 124 | B133: LUPIN | C133: 752.45 | D133: 752.50 | E133: 743.50 | F133: 734.55 | G133: 725.55 | H133: 761.45 | I133: 770.45 | J133: 779.40 | K133: 761.5 | L133: 743.55 | M133: 11.88722
A134: 125 | B134: MRF | C134: 74675.5 | D134: 74791.83 | E134: 74183.67 | F134: 73691.83 | G134: 73083.67 | H134: 75283.67 | I134: 75891.83 | J134: 76383.67 | K134: 75400 | L134: 74300 | M134: 0.20861
A135: 126 | B135: MGL | C135: 870.9 | D135: 863.67 | E135: 855.23 | F135: 839.57 | G135: 831.13 | H135: 879.33 | I135: 887.77 | J135: 903.43 | K135: 872.1 | L135: 848 | M135: 4.05736
A136: 127 | B136: M&MFIN | C136: 502.2 | D136: 501.80 | E136: 494.60 | F136: 487.00 | G136: 479.80 | H136: 509.40 | I136: 516.60 | J136: 524.20 | K136: 509 | L136: 494.2 | M136: 6.99461
A137: 128 | B137: M&M | C137: 869.1 | D137: 863.58 | E137: 854.37 | F137: 839.63 | G137: 830.42 | H137: 878.32 | I137: 887.53 | J137: 902.27 | K137: 872.8 | L137: 848.85 | M137: 13.04682
A138: 129 | B138: MANAPPURAM | C138: 122.45 | D138: 122.48 | E138: 121.02 | F138: 119.58 | G138: 118.12 | H138: 123.92 | I138: 125.38 | J138: 126.82 | K138: 123.95 | L138: 121.05 | M138: 35.61486
A139: 130 | B139: MRPL | C139: 106.1 | D139: 106.32 | E139: 104.78 | F139: 103.47 | G139: 101.93 | H139: 107.63 | I139: 109.17 | J139: 110.48 | K139: 107.85 | L139: 105 | M139: 9.72849
A140: 131 | B140: MARICO | C140: 309.95 | D140: 311.65 | E140: 306.80 | F140: 303.65 | G140: 298.80 | H140: 314.80 | I140: 319.65 | J140: 322.80 | K140: 316.5 | L140: 308.5 | M140: 14.75765
A141: 132 | B141: MARUTI | C141: 8750.3 | D141: 8739.12 | E141: 8713.23 | F141: 8676.17 | G141: 8650.28 | H141: 8776.18 | I141: 8802.07 | J141: 8839.13 | K141: 8765 | L141: 8702.05 | M141: 2.64405
A142: 133 | B142: MFSL | C142: 515 | D142: 516.07 | E142: 509.78 | F142: 504.57 | G142: 498.28 | H142: 521.28 | I142: 527.57 | J142: 532.78 | K142: 522.35 | L142: 510.85 | M142: 3.84427
A143: 134 | B143: MINDTREE | C143: 1007.55 | D143: 1010.50 | E143: 993.00 | F143: 978.45 | G143: 960.95 | H143: 1025.05 | I143: 1042.55 | J143: 1057.10 | K143: 1028 | L143: 995.95 | M143: 15.12123
A144: 135 | B144: MOTHERSUMI | C144: 339 | D144: 336.95 | E144: 331.15 | F144: 323.30 | G144: 317.50 | H144: 344.80 | I144: 350.60 | J144: 358.45 | K144: 342.75 | L144: 329.1 | M144: 16.37376
A145: 136 | B145: MPHASIS | C145: 988 | D145: 1025.77 | E145: 927.73 | F145: 867.47 | G145: 769.43 | H145: 1086.03 | I145: 1184.07 | J145: 1244.33 | K145: 1123.8 | L145: 965.5 | M145: 27.13494
A146: 137 | B146: MUTHOOTFIN | C146: 435.4 | D146: 434.43 | E146: 429.87 | F146: 424.33 | G146: 419.77 | H146: 439.97 | I146: 444.53 | J146: 450.07 | K146: 439 | L146: 428.9 | M146: 2.56285
A147: 138 | B147: NATCOPHARM | C147: 800.7 | D147: 801.50 | E147: 795.20 | F147: 789.70 | G147: 783.40 | H147: 807.00 | I147: 813.30 | J147: 818.80 | K147: 807.8 | L147: 796 | M147: 1.8481
A148: 139 | B148: NBCC | C148: 99.7 | D148: 100.12 | E148: 98.08 | F148: 96.47 | G148: 94.43 | H148: 101.73 | I148: 103.77 | J148: 105.38 | K148: 102.15 | L148: 98.5 | M148: 22.07213
A149: 140 | B149: NHPC | C149: 27.6 | D149: 27.77 | E149: 27.33 | F149: 27.07 | G149: 26.63 | H149: 28.03 | I149: 28.47 | J149: 28.73 | K149: 28.2 | L149: 27.5 | M149: 54.15588
A150: 141 | B150: NMDC | C150: 115.9 | D150: 116.37 | E150: 115.03 | F150: 114.17 | G150: 112.83 | H150: 117.23 | I150: 118.57 | J150: 119.43 | K150: 117.7 | L150: 115.5 | M150: 26.05321
A151: 142 | B151: NTPC | C151: 167.45 | D151: 168.20 | E151: 166.15 | F151: 164.85 | G151: 162.80 | H151: 169.50 | I151: 171.55 | J151: 172.85 | K151: 170.25 | L151: 166.9 | M151: 129.6809
A152: 143 | B152: NATIONALUM | C152: 78.1 | D152: 77.48 | E152: 76.57 | F152: 75.03 | G152: 74.12 | H152: 79.02 | I152: 79.93 | J152: 81.47 | K152: 78.4 | L152: 75.95 | M152: 70.06857
A153: 144 | B153: OBEROIRLTY | C153: 529.4 | D153: 530.73 | E153: 524.67 | F153: 519.93 | G153: 513.87 | H153: 535.47 | I153: 541.53 | J153: 546.27 | K153: 536.8 | L153: 526 | M153: 0.96393
A154: 145 | B154: ONGC | C154: 187.5 | D154: 187.60 | E154: 186.20 | F154: 184.90 | G154: 183.50 | H154: 188.90 | I154: 190.30 | J154: 191.60 | K154: 189 | L154: 186.3 | M154: 49.26216
A155: 146 | B155: OIL | C155: 235.35 | D155: 234.52 | E155: 232.08 | F155: 228.82 | G155: 226.38 | H155: 237.78 | I155: 240.22 | J155: 243.48 | K155: 236.95 | L155: 231.25 | M155: 8.56036
A156: 147 | B156: OFSS | C156: 4117.65 | D156: 4156.35 | E156: 4066.30 | F156: 4014.95 | G156: 3924.90 | H156: 4207.70 | I156: 4297.75 | J156: 4349.10 | K156: 4246.4 | L156: 4105 | M156: 0.23417
A157: 148 | B157: PCJEWELLER | C157: 200.85 | D157: 215.98 | E157: 181.27 | F157: 161.68 | G157: 126.97 | H157: 235.57 | I157: 270.28 | J157: 289.87 | K157: 250.7 | L157: 196.4 | M157: 949.11247
A158: 149 | B158: PIIND | C158: 870.6 | D158: 873.53 | E158: 859.07 | F158: 847.53 | G158: 833.07 | H158: 885.07 | I158: 899.53 | J158: 911.07 | K158: 888 | L158: 862 | M158: 0.49612
A159: 150 | B159: PNBHOUSING | C159: 1301.05 | D159: 1300.98 | E159: 1280.37 | F159: 1259.68 | G159: 1239.07 | H159: 1321.67 | I159: 1342.28 | J159: 1362.97 | K159: 1321.6 | L159: 1280.3 | M159: 2.806
A160: 151 | B160: PAGEIND | C160: 24077.7 | D160: 23981.90 | E160: 23765.80 | F160: 23453.90 | G160: 23237.80 | H160: 24293.80 | I160: 24509.90 | J160: 24821.80 | K160: 24198 | L160: 23670 | M160: 0.28074
A161: 152 | B161: PETRONET | C161: 214.8 | D161: 212.07 | E161: 207.88 | F161: 200.97 | G161: 196.78 | H161: 218.98 | I161: 223.17 | J161: 230.08 | K161: 216.25 | L161: 205.15 | M161: 49.06201
A162: 153 | B162: PIDILITIND | C162: 1103.15 | D162: 1099.45 | E162: 1094.00 | F162: 1084.85 | G162: 1079.40 | H162: 1108.60 | I162: 1114.05 | J162: 1123.20 | K162: 1104.9 | L162: 1090.3 | M162: 3.30315
A163: 154 | B163: PEL | C163: 2433.85 | D163: 2444.47 | E163: 2411.48 | F163: 2389.12 | G163: 2356.13 | H163: 2466.83 | I163: 2499.82 | J163: 2522.18 | K163: 2477.45 | L163: 2422.1 | M163: 1.68581
A164: 155 | B164: PFC | C164: 82.85 | D164: 82.95 | E164: 82.20 | F164: 81.55 | G164: 80.80 | H164: 83.60 | I164: 84.35 | J164: 85.00 | K164: 83.7 | L164: 82.3 | M164: 32.65886
A165: 156 | B165: POWERGRID | C165: 206.85 | D165: 207.27 | E165: 205.53 | F165: 204.22 | G165: 202.48 | H165: 208.58 | I165: 210.32 | J165: 211.63 | K165: 209 | L165: 205.95 | M165: 60.1254
A166: 157 | B166: PRESTIGE | C166: 294.35 | D166: 294.57 | E166: 291.13 | F166: 287.92 | G166: 284.48 | H166: 297.78 | I166: 301.22 | J166: 304.43 | K166: 298 | L166: 291.35 | M166: 0.59867
A167: 158 | B167: PGHH | C167: 9200.4 | D167: 9379.37 | E167: 8961.03 | F167: 8721.67 | G167: 8303.33 | H167: 9618.73 | I167: 10037.07 | J167: 10276.43 | K167: 9797.7 | L167: 9140 | M167: 0.13176
A168: 159 | B168: PNB | C168: 88.8 | D168: 89.30 | E168: 86.70 | F168: 84.60 | G168: 82.00 | H168: 91.40 | I168: 94.00 | J168: 96.10 | K168: 91.9 | L168: 87.2 | M168: 199.1436
A169: 160 | B169: RBLBANK | C169: 518.4 | D169: 518.60 | E169: 515.80 | F169: 513.20 | G169: 510.40 | H169: 521.20 | I169: 524.00 | J169: 526.60 | K169: 521.4 | L169: 516 | M169: 4.71362
A170: 161 | B170: RAJESHEXPO | C170: 647.05 | D170: 646.02 | E170: 642.53 | F170: 638.02 | G170: 634.53 | H170: 650.53 | I170: 654.02 | J170: 658.53 | K170: 649.5 | L170: 641.5 | M170: 1.66639
A171: 162 | B171: RELCAPITAL | C171: 406.4 | D171: 406.32 | E171: 401.23 | F171: 396.07 | G171: 390.98 | H171: 411.48 | I171: 416.57 | J171: 421.73 | K171: 411.4 | L171: 401.15 | M171: 25.58968
A172: 163 | B172: RCOM | C172: 13.7 | D172: 13.95 | E172: 13.05 | F172: 12.40 | G172: 11.50 | H172: 14.60 | I172: 15.50 | J172: 16.15 | K172: 14.85 | L172: 13.3 | M172: 785.90981
A173: 164 | B173: RELIANCE | C173: 989.25 | D173: 986.10 | E173: 980.90 | F173: 972.55 | G173: 967.35 | H173: 994.45 | I173: 999.65 | J173: 1008.00 | K173: 991.3 | L173: 977.75 | M173: 40.11516
A174: 165 | B174: RELINFRA | C174: 415.9 | D174: 415.23 | E174: 409.22 | F174: 402.53 | G174: 396.52 | H174: 421.92 | I174: 427.93 | J174: 434.62 | K174: 421.25 | L174: 408.55 | M174: 17.7549
A175: 166 | B175: RPOWER | C175: 35.8 | D175: 35.92 | E175: 35.33 | F175: 34.87 | G175: 34.28 | H175: 36.38 | I175: 36.97 | J175: 37.43 | K175: 36.5 | L175: 35.45 | M175: 38.55295
A176: 167 | B176: RECLTD | C176: 119.1 | D176: 119.13 | E176: 117.67 | F176: 116.23 | G176: 114.77 | H176: 120.57 | I176: 122.03 | J176: 123.47 | K176: 120.6 | L176: 117.7 | M176: 20.06538
A177: 168 | B177: SRF | C177: 2246.7 | D177: 2246.37 | E177: 2215.33 | F177: 2183.97 | G177: 2152.93 | H177: 2277.73 | I177: 2308.77 | J177: 2340.13 | K177: 2277.4 | L177: 2215 | M177: 1.73838
A178: 169 | B178: SHREECEM | C178: 16207.2 | D178: 16177.40 | E178: 16064.80 | F178: 15922.40 | G178: 15809.80 | H178: 16319.80 | I178: 16432.40 | J178: 16574.80 | K178: 16290 | L178: 16035 | M178: 0.10217
A179: 170 | B179: SRTRANSFIN | C179: 1487.5 | D179: 1488.85 | E179: 1472.05 | F179: 1456.60 | G179: 1439.80 | H179: 1504.30 | I179: 1521.10 | J179: 1536.55 | K179: 1505.65 | L179: 1473.4 | M179: 15.68523
A180: 171 | B180: SIEMENS | C180: 1037.6 | D180: 1040.17 | E180: 1031.23 | F180: 1024.87 | G180: 1015.93 | H180: 1046.53 | I180: 1055.47 | J180: 1061.83 | K180: 1049.1 | L180: 1033.8 | M180: 1.84014
A181: 172 | B181: SBIN | C181: 250.35 | D181: 249.33 | E181: 247.07 | F181: 243.78 | G181: 241.52 | H181: 252.62 | I181: 254.88 | J181: 258.17 | K181: 251.6 | L181: 246.05 | M181: 119.58589
A182: 173 | B182: SAIL | C182: 73.4 | D182: 73.42 | E182: 72.58 | F182: 71.77 | G182: 70.93 | H182: 74.23 | I182: 75.07 | J182: 75.88 | K182: 74.25 | L182: 72.6 | M182: 127.01873
A183: 174 | B183: SPARC | C183: 394.75 | D183: 398.00 | E183: 387.30 | F183: 379.85 | G183: 369.15 | H183: 405.45 | I183: 416.15 | J183: 423.60 | K183: 408.7 | L183: 390.55 | M183: 1.73246
A184: 175 | B184: SUNPHARMA | C184: 472.05 | D184: 478.65 | E184: 461.15 | F184: 450.25 | G184: 432.75 | H184: 489.55 | I184: 507.05 | J184: 517.95 | K184: 496.15 | L184: 467.75 | M184: 99.06203
A185: 176 | B185: SUNTV | C185: 868.5 | D185: 862.50 | E185: 844.00 | F185: 819.50 | G185: 801.00 | H185: 887.00 | I185: 905.50 | J185: 930.00 | K185: 881 | L185: 838 | M185: 16.93466
A186: 177 | B186: SUZLON | C186: 9.75 | D186: 9.82 | E186: 9.58 | F186: 9.42 | G186: 9.18 | H186: 9.98 | I186: 10.22 | J186: 10.38 | K186: 10.05 | L186: 9.65 | M186: 219.00877
A187: 178 | B187: SYNDIBANK | C187: 51.3 | D187: 51.07 | E187: 50.43 | F187: 49.57 | G187: 48.93 | H187: 51.93 | I187: 52.57 | J187: 53.43 | K187: 51.7 | L187: 50.2 | M187: 35.79214
A188: 179 | B188: SYNGENE | C188: 636.3 | D188: 631.77 | E188: 618.53 | F188: 600.77 | G188: 587.53 | H188: 649.53 | I188: 662.77 | J188: 680.53 | K188: 645 | L188: 614 | M188: 0.70171
A189: 180 | B189: TV18BRDCST | C189: 59.35 | D189: 59.38 | E189: 58.12 | F189: 56.88 | G189: 55.62 | H189: 60.62 | I189: 61.88 | J189: 63.12 | K189: 60.65 | L189: 58.15 | M189: 32.53948
A190: 181 | B190: TVSMOTOR | C190: 626 | D190: 625.00 | E190: 620.05 | F190: 614.10 | G190: 609.15 | H190: 630.95 | I190: 635.90 | J190: 641.85 | K190: 629.95 | L190: 619.05 | M190: 6.09262
A191: 182 | B191: TATACHEM | C191: 775.6 | D191: 772.67 | E191: 766.43 | F191: 757.27 | G191: 751.03 | H191: 781.83 | I191: 788.07 | J191: 797.23 | K191: 778.9 | L191: 763.5 | M191: 6.77906
A192: 183 | B192: TATACOMM | C192: 636.1 | D192: 625.38 | E192: 606.77 | F192: 577.43 | G192: 558.82 | H192: 654.72 | I192: 673.33 | J192: 702.67 | K192: 644 | L192: 596.05 | M192: 15.30205
A193: 184 | B193: TCS | C193: 3456.95 | D193: 3461.48 | E193: 3437.97 | F193: 3418.98 | G193: 3395.47 | H193: 3480.47 | I193: 3503.98 | J193: 3522.97 | K193: 3485 | L193: 3442.5 | M193: 13.13938
A194: 185 | B194: TATAGLOBAL | C194: 287.5 | D194: 287.47 | E194: 284.43 | F194: 281.37 | G194: 278.33 | H194: 290.53 | I194: 293.57 | J194: 296.63 | K194: 290.5 | L194: 284.4 | M194: 19.74327
A195: 186 | B195: TATAMTRDVR | C195: 195.3 | D195: 196.48 | E195: 192.97 | F195: 190.63 | G195: 187.12 | H195: 198.82 | I195: 202.33 | J195: 204.67 | K195: 200 | L195: 194.15 | M195: 24.86151
A196: 187 | B196: TATAMOTORS | C196: 330.8 | D196: 331.60 | E196: 329.20 | F196: 327.60 | G196: 325.20 | H196: 333.20 | I196: 335.60 | J196: 337.20 | K196: 334 | L196: 330 | M196: 73.65579
A197: 188 | B197: TATAPOWER | C197: 81.9 | D197: 81.70 | E197: 81.00 | F197: 80.10 | G197: 79.40 | H197: 82.60 | I197: 83.30 | J197: 84.20 | K197: 82.4 | L197: 80.8 | M197: 40.97448
A198: 189 | B198: TATASTEEL | C198: 607.25 | D198: 603.00 | E198: 595.45 | F198: 583.65 | G198: 576.10 | H198: 614.80 | I198: 622.35 | J198: 634.15 | K198: 610.55 | L198: 591.2 | M198: 61.55537
A199: 190 | B199: TECHM | C199: 666.45 | D199: 664.13 | E199: 656.52 | F199: 646.58 | G199: 638.97 | H199: 674.07 | I199: 681.68 | J199: 691.62 | K199: 671.75 | L199: 654.2 | M199: 28.80596
A200: 191 | B200: RAMCOCEM | C200: 840.2 | D200: 832.55 | E200: 818.65 | F200: 797.10 | G200: 783.20 | H200: 854.10 | I200: 868.00 | J200: 889.55 | K200: 846.45 | L200: 811 | M200: 4.18249
A201: 192 | B201: TITAN | C201: 956.05 | D201: 966.63 | E201: 941.42 | F201: 926.78 | G201: 901.57 | H201: 981.27 | I201: 1006.48 | J201: 1021.12 | K201: 991.85 | L201: 952 | M201: 57.12581
A202: 193 | B202: TORNTPHARM | C202: 1365.05 | D202: 1363.02 | E202: 1346.03 | F202: 1327.02 | G202: 1310.03 | H202: 1382.03 | I202: 1399.02 | J202: 1418.03 | K202: 1380 | L202: 1344 | M202: 1.59121
A203: 194 | B203: TORNTPOWER | C203: 235.05 | D203: 235.60 | E203: 232.20 | F203: 229.35 | G203: 225.95 | H203: 238.45 | I203: 241.85 | J203: 244.70 | K203: 239 | L203: 232.75 | M203: 6.32209
A204: 195 | B204: UPL | C204: 735.25 | D204: 732.62 | E204: 725.63 | F204: 716.02 | G204: 709.03 | H204: 742.23 | I204: 749.22 | J204: 758.83 | K204: 739.6 | L204: 723 | M204: 11.00151
A205: 196 | B205: ULTRACEMCO | C205: 4071.6 | D205: 4041.72 | E205: 3998.43 | F205: 3925.27 | G205: 3881.98 | H205: 4114.88 | I205: 4158.17 | J205: 4231.33 | K205: 4085 | L205: 3968.55 | M205: 0.97087
... 30 more rows

Sheet MidCap Intra
L5: Back To Main Page
A6: FOR INTRA DAY TRADING | K6: =Main!B10 -> 2017-05-14
A9: Sr.no | B9: Scrip | C9: CLOSE RATE | D9: Pivot Point | E9: Supports | H9: Resistances
C10: Point | E10: S1 | F10: S2 | G10: S3 | H10: R1 | I10: R2 | J10: R3 | K10: HIGH | L10: LOW | M10: Total Trade Quanity in Lakhs
A11: 1 | B11: 3MINDIA | C11: 20400.65 | D11: 20400.22 | E11: 20300.43 | F11: 20200.22 | G11: 20100.43 | H11: 20500.43 | I11: 20600.22 | J11: 20700.43 | K11: 20500 | L11: 20300 | M11: 0.01104
A12: 2 | B12: 8KMILES | C12: 679.3 | D12: 681.43 | E12: 668.87 | F12: 658.43 | G12: 645.87 | H12: 691.87 | I12: 704.43 | J12: 714.87 | K12: 694 | L12: 671 | M12: 0.92391
A13: 3 | B13: AARTIIND | C13: 1326.9 | D13: 1319.15 | E13: 1302.75 | F13: 1278.60 | G13: 1262.20 | H13: 1343.30 | I13: 1359.70 | J13: 1383.85 | K13: 1335.55 | L13: 1295 | M13: 0.12943
A14: 4 | B14: ABAN | C14: 166.75 | D14: 167.75 | E14: 165.10 | F14: 163.45 | G14: 160.80 | H14: 169.40 | I14: 172.05 | J14: 173.70 | K14: 170.4 | L14: 166.1 | M14: 4.54879
A15: 5 | B15: ABB | C15: 1245.15 | D15: 1252.15 | E15: 1228.30 | F15: 1211.45 | G15: 1187.60 | H15: 1269.00 | I15: 1292.85 | J15: 1309.70 | K15: 1276 | L15: 1235.3 | M15: 1.38565
A16: 6 | B16: ABCAPITAL | C16: 151.4 | D16: 152.53 | E16: 149.57 | F16: 147.73 | G16: 144.77 | H16: 154.37 | I16: 157.33 | J16: 159.17 | K16: 155.5 | L16: 150.7 | M16: 13.84798
A17: 7 | B17: ABFRL | C17: 150.6 | D17: 151.38 | E17: 143.37 | F17: 136.13 | G17: 128.12 | H17: 158.62 | I17: 166.63 | J17: 173.87 | K17: 159.4 | L17: 144.15 | M17: 40.97756
A18: 8 | B18: ACC | C18: 1466.55 | D18: 1475.63 | E18: 1452.27 | F18: 1437.98 | G18: 1414.62 | H18: 1489.92 | I18: 1513.28 | J18: 1527.57 | K18: 1499 | L18: 1461.35 | M18: 3.6186
A19: 9 | B19: ADANIPORTS | C19: 412.7 | D19: 412.68 | E19: 410.87 | F19: 409.03 | G19: 407.22 | H19: 414.52 | I19: 416.33 | J19: 418.17 | K19: 414.5 | L19: 410.85 | M19: 14.42596
A20: 10 | B20: ADANIPOWER | C20: 23.85 | D20: 23.95 | E20: 23.40 | F20: 22.95 | G20: 22.40 | H20: 24.40 | I20: 24.95 | J20: 25.40 | K20: 24.5 | L20: 23.5 | M20: 72.72649
A21: 11 | B21: ADANITRANS | C21: 164.8 | D21: 167.28 | E21: 160.57 | F21: 156.33 | G21: 149.62 | H21: 171.52 | I21: 178.23 | J21: 182.47 | K21: 174 | L21: 163.05 | M21: 9.39316
A22: 12 | B22: ADVENZYMES | C22: 238.15 | D22: 238.13 | E22: 234.97 | F22: 231.78 | G22: 228.62 | H22: 241.32 | I22: 244.48 | J22: 247.67 | K22: 241.3 | L22: 234.95 | M22: 1.03348
A23: 13 | B23: AEGISCHEM | C23: 278.85 | D23: 281.67 | E23: 275.18 | F23: 271.52 | G23: 265.03 | H23: 285.33 | I23: 291.82 | J23: 295.48 | K23: 288.15 | L23: 278 | M23: 0.57872
A24: 14 | B24: AIAENG | C24: 1462.35 | D24: 1452.37 | E24: 1434.73 | F24: 1407.12 | G24: 1389.48 | H24: 1479.98 | I24: 1497.62 | J24: 1525.23 | K24: 1470 | L24: 1424.75 | M24: 0.22568
A25: 15 | B25: AJANTPHARM | C25: 1059.7 | D25: 1072.40 | E25: 1039.80 | F25: 1019.90 | G25: 987.30 | H25: 1092.30 | I25: 1124.90 | J25: 1144.80 | K25: 1105 | L25: 1052.5 | M25: 4.17145
A26: 16 | B26: AKZOINDIA | C26: 1941.05 | D26: 1945.02 | E26: 1921.03 | F26: 1901.02 | G26: 1877.03 | H26: 1965.03 | I26: 1989.02 | J26: 2009.03 | K26: 1969 | L26: 1925 | M26: 0.31752
A27: 17 | B27: ALBK | C27: 45.7 | D27: 45.73 | E27: 45.02 | F27: 44.33 | G27: 43.62 | H27: 46.42 | I27: 47.13 | J27: 47.82 | K27: 46.45 | L27: 45.05 | M27: 42.25728
A28: 18 | B28: ALKEM | C28: 2005.85 | D28: 1999.60 | E28: 1966.25 | F28: 1926.65 | G28: 1893.30 | H28: 2039.20 | I28: 2072.55 | J28: 2112.15 | K28: 2032.95 | L28: 1960 | M28: 0.21707
A29: 19 | B29: ALLCARGO | C29: 128.5 | D29: 129.78 | E29: 126.72 | F29: 124.93 | G29: 121.87 | H29: 131.57 | I29: 134.63 | J29: 136.42 | K29: 132.85 | L29: 128 | M29: 2.77667
A30: 20 | B30: AMARAJABAT | C30: 863.4 | D30: 863.28 | E30: 850.97 | F30: 838.53 | G30: 826.22 | H30: 875.72 | I30: 888.03 | J30: 900.47 | K30: 875.6 | L30: 850.85 | M30: 5.00891
A31: 21 | B31: AMBUJACEM | C31: 217.15 | D31: 218.15 | E31: 215.15 | F31: 213.15 | G31: 210.15 | H31: 220.15 | I31: 223.15 | J31: 225.15 | K31: 221.15 | L31: 216.15 | M31: 39.17464
A32: 22 | B32: ANDHRABANK | C32: 36.4 | D32: 36.10 | E32: 35.50 | F32: 34.60 | G32: 34.00 | H32: 37.00 | I32: 37.60 | J32: 38.50 | K32: 36.7 | L32: 35.2 | M32: 32.75341
A33: 23 | B33: APLAPOLLO | C33: 2113.8 | D33: 2108.62 | E33: 2097.23 | F33: 2080.67 | G33: 2069.28 | H33: 2125.18 | I33: 2136.57 | J33: 2153.13 | K33: 2120 | L33: 2092.05 | M33: 0.02867
A34: 24 | B34: APLLTD | C34: 488.55 | D34: 491.57 | E34: 484.08 | F34: 479.62 | G34: 472.13 | H34: 496.03 | I34: 503.52 | J34: 507.98 | K34: 499.05 | L34: 487.1 | M34: 0.14952
A35: 25 | B35: APOLLOHOSP | C35: 1044.9 | D35: 1036.65 | E35: 1020.75 | F35: 996.60 | G35: 980.70 | H35: 1060.80 | I35: 1076.70 | J35: 1100.85 | K35: 1052.55 | L35: 1012.5 | M35: 2.92768
A36: 26 | B36: APOLLOTYRE | C36: 280 | D36: 281.25 | E36: 272.85 | F36: 265.70 | G36: 257.30 | H36: 288.40 | I36: 296.80 | J36: 303.95 | K36: 289.65 | L36: 274.1 | M36: 37.76298
A37: 27 | B37: ARVIND | C37: 429.75 | D37: 429.28 | E37: 425.12 | F37: 420.48 | G37: 416.32 | H37: 433.92 | I37: 438.08 | J37: 442.72 | K37: 433.45 | L37: 424.65 | M37: 13.1464
A38: 28 | B38: ASAHIINDIA | C38: 360.85 | D38: 362.58 | E38: 356.77 | F38: 352.68 | G38: 346.87 | H38: 366.67 | I38: 372.48 | J38: 376.57 | K38: 368.4 | L38: 358.5 | M38: 0.20985
A39: 29 | B39: ASHOKA | C39: 271.3 | D39: 270.68 | E39: 267.62 | F39: 263.93 | G39: 260.87 | H39: 274.37 | I39: 277.43 | J39: 281.12 | K39: 273.75 | L39: 267 | M39: 0.70094
A40: 30 | B40: ASHOKLEY | C40: 161.85 | D40: 161.47 | E40: 160.68 | F40: 159.52 | G40: 158.73 | H40: 162.63 | I40: 163.42 | J40: 164.58 | K40: 162.25 | L40: 160.3 | M40: 68.24338
A41: 31 | B41: ASIANPAINT | C41: 1286.45 | D41: 1269.40 | E41: 1246.90 | F41: 1207.35 | G41: 1184.85 | H41: 1308.95 | I41: 1331.45 | J41: 1371.00 | K41: 1291.9 | L41: 1229.85 | M41: 47.23019
A42: 32 | B42: ASTRAL | C42: 960.2 | D42: 960.13 | E42: 952.27 | F42: 944.33 | G42: 936.47 | H42: 968.07 | I42: 975.93 | J42: 983.87 | K42: 968 | L42: 952.2 | M42: 2.06487
A43: 33 | B43: ATUL | C43: 2838.25 | D43: 2833.47 | E43: 2807.03 | F43: 2775.82 | G43: 2749.38 | H43: 2864.68 | I43: 2891.12 | J43: 2922.33 | K43: 2859.9 | L43: 2802.25 | M43: 0.04527
A44: 34 | B44: AUBANK | C44: 711.1 | D44: 710.17 | E44: 703.93 | F44: 696.77 | G44: 690.53 | H44: 717.33 | I44: 723.57 | J44: 730.73 | K44: 716.4 | L44: 703 | M44: 1.21654
A45: 35 | B45: AUROPHARMA | C45: 611.35 | D45: 604.22 | E45: 591.93 | F45: 572.52 | G45: 560.23 | H45: 623.63 | I45: 635.92 | J45: 655.33 | K45: 616.5 | L45: 584.8 | M45: 21.23672
A46: 36 | B46: AVANTIFEED | C46: 2279.3 | D46: 2299.07 | E46: 2249.23 | F46: 2219.17 | G46: 2169.33 | H46: 2329.13 | I46: 2378.97 | J46: 2409.03 | K46: 2348.9 | L46: 2269 | M46: 0.80238
A47: 37 | B47: AXISBANK | C47: 553.3 | D47: 551.77 | E47: 547.03 | F47: 540.77 | G47: 536.03 | H47: 558.03 | I47: 562.77 | J47: 569.03 | K47: 556.5 | L47: 545.5 | M47: 49.60854
A48: 38 | B48: BAJAJ-AUTO | C48: 2815.45 | D48: 2820.48 | E48: 2795.97 | F48: 2776.48 | G48: 2751.97 | H48: 2839.97 | I48: 2864.48 | J48: 2883.97 | K48: 2845 | L48: 2801 | M48: 2.86976
A49: 39 | B49: BAJAJCORP | C49: 468.35 | D49: 469.95 | E49: 460.40 | F49: 452.45 | G49: 442.90 | H49: 477.90 | I49: 487.45 | J49: 495.40 | K49: 479.5 | L49: 462 | M49: 0.27346
A50: 40 | B50: BAJAJELEC | C50: 624.8 | D50: 629.93 | E50: 614.97 | F50: 605.13 | G50: 590.17 | H50: 639.77 | I50: 654.73 | J50: 664.57 | K50: 644.9 | L50: 620.1 | M50: 2.19008
A51: 41 | B51: BAJAJFINSV | C51: 5345.45 | D51: 5320.10 | E51: 5275.45 | F51: 5205.45 | G51: 5160.80 | H51: 5390.10 | I51: 5434.75 | J51: 5504.75 | K51: 5364.75 | L51: 5250.1 | M51: 0.62942
A52: 42 | B52: BAJAJHIND | C52: 8 | D52: 8.08 | E52: 7.87 | F52: 7.73 | G52: 7.52 | H52: 8.22 | I52: 8.43 | J52: 8.57 | K52: 8.3 | L52: 7.95 | M52: 22.19922
A53: 43 | B53: BAJAJHLDNG | C53: 2651.8 | D53: 2649.63 | E53: 2643.17 | F53: 2634.53 | G53: 2628.07 | H53: 2658.27 | I53: 2664.73 | J53: 2673.37 | K53: 2656.1 | L53: 2641 | M53: 0.01889
A54: 44 | B54: BAJFINANCE | C54: 1861.5 | D54: 1856.78 | E54: 1832.82 | F54: 1804.13 | G54: 1780.17 | H54: 1885.47 | I54: 1909.43 | J54: 1938.12 | K54: 1880.75 | L54: 1828.1 | M54: 4.83249
A55: 45 | B55: BALKRISIND | C55: 1199.45 | D55: 1196.92 | E55: 1184.08 | F55: 1168.72 | G55: 1155.88 | H55: 1212.28 | I55: 1225.12 | J55: 1240.48 | K55: 1209.75 | L55: 1181.55 | M55: 1.77096
A56: 46 | B56: BALLARPUR | C56: 12.35 | D56: 12.47 | E56: 12.13 | F56: 11.92 | G56: 11.58 | H56: 12.68 | I56: 13.02 | J56: 13.23 | K56: 12.8 | L56: 12.25 | M56: 4.86958
A57: 47 | B57: BALMLAWRIE | C57: 217.8 | D57: 218.28 | E57: 215.92 | F57: 214.03 | G57: 211.67 | H57: 220.17 | I57: 222.53 | J57: 224.42 | K57: 220.65 | L57: 216.4 | M57: 0.62844
A58: 48 | B58: BALRAMCHIN | C58: 66.35 | D58: 66.65 | E58: 65.40 | F58: 64.45 | G58: 63.20 | H58: 67.60 | I58: 68.85 | J58: 69.80 | K58: 67.9 | L58: 65.7 | M58: 27.01498
A59: 49 | B59: BANKBARODA | C59: 142.7 | D59: 141.15 | E59: 138.65 | F59: 134.60 | G59: 132.10 | H59: 145.20 | I59: 147.70 | J59: 151.75 | K59: 143.65 | L59: 137.1 | M59: 116.7321
A60: 50 | B60: BANKINDIA | C60: 100 | D60: 99.77 | E60: 98.33 | F60: 96.67 | G60: 95.23 | H60: 101.43 | I60: 102.87 | J60: 104.53 | K60: 101.2 | L60: 98.1 | M60: 47.59345
A61: 51 | B61: BASF | C61: 1970.7 | D61: 1988.57 | E61: 1942.13 | F61: 1913.57 | G61: 1867.13 | H61: 2017.13 | I61: 2063.57 | J61: 2092.13 | K61: 2035 | L61: 1960 | M61: 0.17204
A62: 52 | B62: BATAINDIA | C62: 788.6 | D62: 784.93 | E62: 777.32 | F62: 766.03 | G62: 758.42 | H62: 796.22 | I62: 803.83 | J62: 815.12 | K62: 792.55 | L62: 773.65 | M62: 5.68076
A63: 53 | B63: BBTC | C63: 1568.15 | D63: 1562.40 | E63: 1549.80 | F63: 1531.45 | G63: 1518.85 | H63: 1580.75 | I63: 1593.35 | J63: 1611.70 | K63: 1575 | L63: 1544.05 | M63: 1.47022
A64: 54 | B64: BEL | C64: 127.85 | D64: 128.65 | E64: 126.70 | F64: 125.55 | G64: 123.60 | H64: 129.80 | I64: 131.75 | J64: 132.90 | K64: 130.6 | L64: 127.5 | M64: 24.04042
A65: 55 | B65: BEML | C65: 1085.1 | D65: 1068.50 | E65: 1043.50 | F65: 1001.90 | G65: 976.90 | H65: 1110.10 | I65: 1135.10 | J65: 1176.70 | K65: 1093.5 | L65: 1026.9 | M65: 7.77838
A66: 56 | B66: BERGEPAINT | C66: 277.15 | D66: 275.37 | E66: 269.83 | F66: 262.52 | G66: 256.98 | H66: 282.68 | I66: 288.22 | J66: 295.53 | K66: 280.9 | L66: 268.05 | M66: 43.27971
A67: 57 | B67: BFUTILITIE | C67: 397.3 | D67: 399.70 | E67: 392.45 | F67: 387.60 | G67: 380.35 | H67: 404.55 | I67: 411.80 | J67: 416.65 | K67: 406.95 | L67: 394.85 | M67: 2.85359
A68: 58 | B68: BGRENERGY | C68: 102.35 | D68: 102.92 | E68: 101.43 | F68: 100.52 | G68: 99.03 | H68: 103.83 | I68: 105.32 | J68: 106.23 | K68: 104.4 | L68: 102 | M68: 0.43253
A69: 59 | B69: BHARATFIN | C69: 1165.05 | D69: 1157.35 | E69: 1146.85 | F69: 1128.65 | G69: 1118.15 | H69: 1175.55 | I69: 1186.05 | J69: 1204.25 | K69: 1167.85 | L69: 1139.15 | M69: 7.80799
A70: 60 | B70: BHARATFORG | C70: 725.6 | D70: 726.27 | E70: 720.63 | F70: 715.67 | G70: 710.03 | H70: 731.23 | I70: 736.87 | J70: 741.83 | K70: 731.9 | L70: 721.3 | M70: 2.73121
A71: 61 | B71: BHARTIARTL | C71: 386.6 | D71: 390.27 | E71: 377.83 | F71: 369.07 | G71: 356.63 | H71: 399.03 | I71: 411.47 | J71: 420.23 | K71: 402.7 | L71: 381.5 | M71: 230.31948
A72: 62 | B72: BHEL | C72: 80.65 | D72: 81.03 | E72: 79.92 | F72: 79.18 | G72: 78.07 | H72: 81.77 | I72: 82.88 | J72: 83.62 | K72: 82.15 | L72: 80.3 | M72: 71.55264
A73: 63 | B73: BHUSANSTL | C73: 23.55 | D73: 23.92 | E73: 23.18 | F73: 22.82 | G73: 22.08 | H73: 24.28 | I73: 25.02 | J73: 25.38 | K73: 24.65 | L73: 23.55 | M73: 17.71037
A74: 64 | B74: BIOCON | C74: 630.35 | D74: 629.82 | E74: 619.63 | F74: 608.92 | G74: 598.73 | H74: 640.53 | I74: 650.72 | J74: 661.43 | K74: 640 | L74: 619.1 | M74: 14.948
A75: 65 | B75: BIRLACORPN | C75: 725.95 | D75: 729.30 | E75: 719.65 | F75: 713.35 | G75: 703.70 | H75: 735.60 | I75: 745.25 | J75: 751.55 | K75: 738.95 | L75: 723 | M75: 0.39152
A76: 66 | B76: BLISSGVS | C76: 200.15 | D76: 201.02 | E76: 197.63 | F76: 195.12 | G76: 191.73 | H76: 203.53 | I76: 206.92 | J76: 209.43 | K76: 204.4 | L76: 198.5 | M76: 1.56101
A77: 67 | B77: BLUEDART | C77: 3311.45 | D77: 3350.53 | E77: 3176.07 | F77: 3040.68 | G77: 2866.22 | H77: 3485.92 | I77: 3660.38 | J77: 3795.77 | K77: 3525 | L77: 3215.15 | M77: 0.23513
A78: 68 | B78: BLUESTARCO | C78: 781.2 | D78: 782.02 | E78: 774.38 | F78: 767.57 | G78: 759.93 | H78: 788.83 | I78: 796.47 | J78: 803.28 | K78: 789.65 | L78: 775.2 | M78: 0.1764
A79: 69 | B79: BOMDYEING | C79: 298.9 | D79: 296.83 | E79: 291.67 | F79: 284.43 | G79: 279.27 | H79: 304.07 | I79: 309.23 | J79: 316.47 | K79: 302 | L79: 289.6 | M79: 44.73835
A80: 70 | B80: BOSCHLTD | C80: 18658 | D80: 18688.43 | E80: 18535.57 | F80: 18413.13 | G80: 18260.27 | H80: 18810.87 | I80: 18963.73 | J80: 19086.17 | K80: 18841.3 | L80: 18566 | M80: 0.04477
A81: 71 | B81: BPCL | C81: 399.3 | D81: 396.35 | E81: 392.20 | F81: 385.10 | G81: 380.95 | H81: 403.45 | I81: 407.60 | J81: 414.70 | K81: 400.5 | L81: 389.25 | M81: 45.25599
A82: 72 | B82: BRFL | C82: 21.1 | D82: 21.72 | E82: 20.48 | F82: 19.87 | G82: 18.63 | H82: 22.33 | I82: 23.57 | J82: 24.18 | K82: 22.95 | L82: 21.1 | M82: 0.87492
A83: 73 | B83: BRIGADE | C83: 264.3 | D83: 264.68 | E83: 260.67 | F83: 257.03 | G83: 253.02 | H83: 268.32 | I83: 272.33 | J83: 275.97 | K83: 268.7 | L83: 261.05 | M83: 0.2865
A84: 74 | B84: BRITANNIA | C84: 5477.7 | D84: 5456.70 | E84: 5421.00 | F84: 5364.30 | G84: 5328.60 | H84: 5513.40 | I84: 5549.10 | J84: 5605.80 | K84: 5492.4 | L84: 5400 | M84: 0.62116
A85: 75 | B85: BSE | C85: 817.6 | D85: 817.78 | E85: 812.67 | F85: 807.73 | G85: 802.62 | H85: 822.72 | I85: 827.83 | J85: 832.77 | K85: 822.9 | L85: 812.85 | M85: 0.83622
A86: 77 | B86: CADILAHC | C86: 393.4 | D86: 393.93 | E86: 389.52 | F86: 385.63 | G86: 381.22 | H86: 397.82 | I86: 402.23 | J86: 406.12 | K86: 398.35 | L86: 390.05 | M86: 3.24055
A87: 78 | B87: CANBK | C87: 246.7 | D87: 246.05 | E87: 241.90 | F87: 237.10 | G87: 232.95 | H87: 250.85 | I87: 255.00 | J87: 259.80 | K87: 250.2 | L87: 241.25 | M87: 94.01394
A88: 79 | B88: CANFINHOME | C88: 386.35 | D88: 386.37 | E88: 380.13 | F88: 373.92 | G88: 367.68 | H88: 392.58 | I88: 398.82 | J88: 405.03 | K88: 392.6 | L88: 380.15 | M88: 6.33143
A89: 80 | B89: CAPF | C89: 589.45 | D89: 590.27 | E89: 579.28 | F89: 569.12 | G89: 558.13 | H89: 600.43 | I89: 611.42 | J89: 621.58 | K89: 601.25 | L89: 580.1 | M89: 7.79012
A90: 81 | B90: CAPLIPOINT | C90: 580 | D90: 580.32 | E90: 574.68 | F90: 569.37 | G90: 563.73 | H90: 585.63 | I90: 591.27 | J90: 596.58 | K90: 585.95 | L90: 575 | M90: 0.11371
A91: 82 | B91: CARBORUNIV | C91: 365.6 | D91: 365.47 | E91: 362.13 | F91: 358.67 | G91: 355.33 | H91: 368.93 | I91: 372.27 | J91: 375.73 | K91: 368.8 | L91: 362 | M91: 0.20997
A92: 83 | B92: CARERATING | C92: 1277.55 | D92: 1277.13 | E92: 1261.47 | F92: 1245.38 | G92: 1229.72 | H92: 1293.22 | I92: 1308.88 | J92: 1324.97 | K92: 1292.8 | L92: 1261.05 | M92: 0.68401
A93: 84 | B93: CASTROLIND | C93: 178 | D93: 178.08 | E93: 176.57 | F93: 175.13 | G93: 173.62 | H93: 179.52 | I93: 181.03 | J93: 182.47 | K93: 179.6 | L93: 176.65 | M93: 17.7522
A94: 85 | B94: CCL | C94: 302.85 | D94: 302.62 | E94: 298.33 | F94: 293.82 | G94: 289.53 | H94: 307.13 | I94: 311.42 | J94: 315.93 | K94: 306.9 | L94: 298.1 | M94: 0.20428
A95: 86 | B95: CDSL | C95: 281.55 | D95: 282.52 | E95: 279.03 | F95: 276.52 | G95: 273.03 | H95: 285.03 | I95: 288.52 | J95: 291.03 | K95: 286 | L95: 280 | M95: 2.55746
A96: 87 | B96: CEATLTD | C96: 1440.7 | D96: 1437.55 | E96: 1421.20 | F96: 1401.70 | G96: 1385.35 | H96: 1457.05 | I96: 1473.40 | J96: 1492.90 | K96: 1453.9 | L96: 1418.05 | M96: 6.06196
A97: 88 | B97: CENTRALBK | C97: 70.55 | D97: 70.62 | E97: 69.93 | F97: 69.32 | G97: 68.63 | H97: 71.23 | I97: 71.92 | J97: 72.53 | K97: 71.3 | L97: 70 | M97: 1.5821
A98: 89 | B98: CENTURYPLY | C98: 306.15 | D98: 308.38 | E98: 300.77 | F98: 295.38 | G98: 287.77 | H98: 313.77 | I98: 321.38 | J98: 326.77 | K98: 316 | L98: 303 | M98: 2.86164
A99: 90 | B99: CENTURYTEX | C99: 1108.25 | D99: 1096.37 | E99: 1074.48 | F99: 1040.72 | G99: 1018.83 | H99: 1130.13 | I99: 1152.02 | J99: 1185.78 | K99: 1118.25 | L99: 1062.6 | M99: 7.65459
A100: 91 | B100: CERA | C100: 2972.25 | D100: 2978.97 | E100: 2927.93 | F100: 2883.62 | G100: 2832.58 | H100: 3023.28 | I100: 3074.32 | J100: 3118.63 | K100: 3030 | L100: 2934.65 | M100: 0.07064
A101: 92 | B101: CGPOWER | C101: 78.55 | D101: 78.97 | E101: 77.68 | F101: 76.82 | G101: 75.53 | H101: 79.83 | I101: 81.12 | J101: 81.98 | K101: 80.25 | L101: 78.1 | M101: 6.72605
A102: 93 | B102: CHAMBLFERT | C102: 172.25 | D102: 175.20 | E102: 165.60 | F102: 158.95 | G102: 149.35 | H102: 181.85 | I102: 191.45 | J102: 198.10 | K102: 184.8 | L102: 168.55 | M102: 10.71799
A103: 94 | B103: CHENNPETRO | C103: 294.6 | D103: 298.02 | E103: 288.08 | F103: 281.57 | G103: 271.63 | H103: 304.53 | I103: 314.47 | J103: 320.98 | K103: 307.95 | L103: 291.5 | M103: 16.65596
A104: 95 | B104: CHOLAFIN | C104: 1588.95 | D104: 1583.83 | E104: 1571.12 | F104: 1553.28 | G104: 1540.57 | H104: 1601.67 | I104: 1614.38 | J104: 1632.22 | K104: 1596.55 | L104: 1566 | M104: 1.77597
A105: 96 | B105: CIPLA | C105: 573.7 | D105: 573.18 | E105: 565.62 | F105: 557.53 | G105: 549.97 | H105: 581.27 | I105: 588.83 | J105: 596.92 | K105: 580.75 | L105: 565.1 | M105: 9.2189
A106: 97 | B106: COALINDIA | C106: 271 | D106: 270.93 | E106: 269.57 | F106: 268.13 | G106: 266.77 | H106: 272.37 | I106: 273.73 | J106: 275.17 | K106: 272.3 | L106: 269.5 | M106: 17.78138
A107: 98 | B107: COCHINSHIP | C107: 503.85 | D107: 508.00 | E107: 496.85 | F107: 489.85 | G107: 478.70 | H107: 515.00 | I107: 526.15 | J107: 533.15 | K107: 519.15 | L107: 501 | M107: 0.58934
A108: 99 | B108: COFFEEDAY | C108: 335.5 | D108: 334.52 | E108: 331.03 | F108: 326.57 | G108: 323.08 | H108: 338.98 | I108: 342.47 | J108: 346.93 | K108: 338 | L108: 330.05 | M108: 0.69458
A109: 100 | B109: COLPAL | C109: 1109 | D109: 1104.82 | E109: 1097.73 | F109: 1086.47 | G109: 1079.38 | H109: 1116.08 | I109: 1123.17 | J109: 1134.43 | K109: 1111.9 | L109: 1093.55 | M109: 2.885
A110: 101 | B110: CONCOR | C110: 1407 | D110: 1392.58 | E110: 1371.97 | F110: 1336.93 | G110: 1316.32 | H110: 1427.62 | I110: 1448.23 | J110: 1483.27 | K110: 1413.2 | L110: 1357.55 | M110: 4.2075
A111: 102 | B111: COROMANDEL | C111: 449.95 | D111: 449.73 | E111: 444.47 | F111: 438.98 | G111: 433.72 | H111: 455.22 | I111: 460.48 | J111: 465.97 | K111: 455 | L111: 444.25 | M111: 1.83801
A112: 103 | B112: COX&KINGS | C112: 211.8 | D112: 212.37 | E112: 209.53 | F112: 207.27 | G112: 204.43 | H112: 214.63 | I112: 217.47 | J112: 219.73 | K112: 215.2 | L112: 210.1 | M112: 1.12225
A113: 104 | B113: CRISIL | C113: 1781.25 | D113: 1788.63 | E113: 1767.17 | F113: 1753.08 | G113: 1731.62 | H113: 1802.72 | I113: 1824.18 | J113: 1838.27 | K113: 1810.1 | L113: 1774.55 | M113: 0.0833
A114: 105 | B114: CROMPTON | C114: 234.35 | D114: 235.70 | E114: 231.65 | F114: 228.95 | G114: 224.90 | H114: 238.40 | I114: 242.45 | J114: 245.15 | K114: 239.75 | L114: 233 | M114: 3.22971
A115: 106 | B115: CUB | C115: 187.6 | D115: 187.88 | E115: 185.77 | F115: 183.93 | G115: 181.82 | H115: 189.72 | I115: 191.83 | J115: 193.67 | K115: 190 | L115: 186.05 | M115: 8.18763
A116: 107 | B116: CUMMINSIND | C116: 775.05 | D116: 773.95 | E116: 766.25 | F116: 757.45 | G116: 749.75 | H116: 782.75 | I116: 790.45 | J116: 799.25 | K116: 781.65 | L116: 765.15 | M116: 3.49147
A117: 108 | B117: CYIENT | C117: 879.1 | D117: 874.70 | E117: 862.40 | F117: 845.70 | G117: 833.40 | H117: 891.40 | I117: 903.70 | J117: 920.40 | K117: 887 | L117: 858 | M117: 7.19198
A118: 109 | B118: DABUR | C118: 366.45 | D118: 366.98 | E118: 364.07 | F118: 361.68 | G118: 358.77 | H118: 369.37 | I118: 372.28 | J118: 374.67 | K118: 369.9 | L118: 364.6 | M118: 9.19285
A119: 110 | B119: DBCORP | C119: 275.75 | D119: 276.72 | E119: 273.43 | F119: 271.12 | G119: 267.83 | H119: 279.03 | I119: 282.32 | J119: 284.63 | K119: 280 | L119: 274.4 | M119: 0.19861
A120: 111 | B120: DBL | C120: 1138.4 | D120: 1142.80 | E120: 1130.60 | F120: 1122.80 | G120: 1110.60 | H120: 1150.60 | I120: 1162.80 | J120: 1170.60 | K120: 1155 | L120: 1135 | M120: 0.61975
A121: 112 | B121: DBREALTY | C121: 58.7 | D121: 59.68 | E121: 57.32 | F121: 55.93 | G121: 53.57 | H121: 61.07 | I121: 63.43 | J121: 64.82 | K121: 62.05 | L121: 58.3 | M121: 3.64792
A122: 113 | B122: DCAL | C122: 346.6 | D122: 351.63 | E122: 337.62 | F122: 328.63 | G122: 314.62 | H122: 360.62 | I122: 374.63 | J122: 383.62 | K122: 365.65 | L122: 342.65 | M122: 0.60354
A123: 114 | B123: DCBBANK | C123: 190.85 | D123: 191.25 | E123: 187.75 | F123: 184.65 | G123: 181.15 | H123: 194.35 | I123: 197.85 | J123: 200.95 | K123: 194.75 | L123: 188.15 | M123: 9.63399
A124: 115 | B124: DCMSHRIRAM | C124: 259.15 | D124: 261.38 | E124: 253.77 | F124: 248.38 | G124: 240.77 | H124: 266.77 | I124: 274.38 | J124: 279.77 | K124: 269 | L124: 256 | M124: 2.92768
A125: 116 | B125: DEEPAKFERT | C125: 332.7 | D125: 334.92 | E125: 328.03 | F125: 323.37 | G125: 316.48 | H125: 339.58 | I125: 346.47 | J125: 351.13 | K125: 341.8 | L125: 330.25 | M125: 0.55977
A126: 117 | B126: DELTACORP | C126: 232.55 | D126: 232.87 | E126: 227.23 | F126: 221.92 | G126: 216.28 | H126: 238.18 | I126: 243.82 | J126: 249.13 | K126: 238.5 | L126: 227.55 | M126: 17.30606
A127: 118 | B127: DEN | C127: 102.6 | D127: 101.02 | E127: 97.78 | F127: 92.97 | G127: 89.73 | H127: 105.83 | I127: 109.07 | J127: 113.88 | K127: 104.25 | L127: 96.2 | M127: 11.24348
A128: 119 | B128: DENABANK | C128: 18.45 | D128: 18.45 | E128: 18.20 | F128: 17.95 | G128: 17.70 | H128: 18.70 | I128: 18.95 | J128: 19.20 | K128: 18.7 | L128: 18.2 | M128: 15.6787
A129: 120 | B129: DHFL | C129: 625.6 | D129: 628.20 | E129: 622.40 | F129: 619.20 | G129: 613.40 | H129: 631.40 | I129: 637.20 | J129: 640.40 | K129: 634 | L129: 625 | M129: 26.13025
A130: 121 | B130: DISHTV | C130: 72 | D130: 72.38 | E130: 71.42 | F130: 70.83 | G130: 69.87 | H130: 72.97 | I130: 73.93 | J130: 74.52 | K130: 73.35 | L130: 71.8 | M130: 30.75346
A131: 122 | B131: DIVISLAB | C131: 1200.7 | D131: 1202.28 | E131: 1181.57 | F131: 1162.43 | G131: 1141.72 | H131: 1221.42 | I131: 1242.13 | J131: 1261.27 | K131: 1223 | L131: 1183.15 | M131: 6.08254
A132: 123 | B132: DIXON | C132: 3608.85 | D132: 3631.62 | E132: 3568.23 | F132: 3527.62 | G132: 3464.23 | H132: 3672.23 | I132: 3735.62 | J132: 3776.23 | K132: 3695 | L132: 3591 | M132: 0.0512
A133: 124 | B133: DLF | C133: 214.25 | D133: 214.13 | E133: 210.62 | F133: 206.98 | G133: 203.47 | H133: 217.77 | I133: 221.28 | J133: 224.92 | K133: 217.65 | L133: 210.5 | M133: 51.24007
A134: 125 | B134: DMART | C134: 1453.9 | D134: 1465.45 | E134: 1434.95 | F134: 1416.00 | G134: 1385.50 | H134: 1484.40 | I134: 1514.90 | J134: 1533.85 | K134: 1495.95 | L134: 1446.5 | M134: 6.58025
A135: 126 | B135: DREDGECORP | C135: 617.25 | D135: 612.08 | E135: 594.17 | F135: 571.08 | G135: 553.17 | H135: 635.17 | I135: 653.08 | J135: 676.17 | K135: 630 | L135: 589 | M135: 4.03302
A136: 127 | B136: DRREDDY | C136: 1990.5 | D136: 1989.47 | E136: 1961.03 | F136: 1931.57 | G136: 1903.13 | H136: 2018.93 | I136: 2047.37 | J136: 2076.83 | K136: 2017.9 | L136: 1960 | M136: 6.04488
A137: 128 | B137: ECLERX | C137: 1375.55 | D137: 1366.82 | E137: 1346.93 | F137: 1318.32 | G137: 1298.43 | H137: 1395.43 | I137: 1415.32 | J137: 1443.93 | K137: 1386.7 | L137: 1338.2 | M137: 0.32832
A138: 129 | B138: EDELWEISS | C138: 288.5 | D138: 287.20 | E138: 284.40 | F138: 280.30 | G138: 277.50 | H138: 291.30 | I138: 294.10 | J138: 298.20 | K138: 290 | L138: 283.1 | M138: 11.08849
A139: 130 | B139: EICHERMOT | C139: 30873 | D139: 30882.67 | E139: 30615.33 | F139: 30357.67 | G139: 30090.33 | H139: 31140.33 | I139: 31407.67 | J139: 31665.33 | K139: 31150 | L139: 30625 | M139: 0.33957
A140: 131 | B140: EIDPARRY | C140: 255.1 | D140: 255.63 | E140: 250.47 | F140: 245.83 | G140: 240.67 | H140: 260.27 | I140: 265.43 | J140: 270.07 | K140: 260.8 | L140: 251 | M140: 0.82972
A141: 132 | B141: EIHOTEL | C141: 171 | D141: 173.13 | E141: 166.97 | F141: 162.93 | G141: 156.77 | H141: 177.17 | I141: 183.33 | J141: 187.37 | K141: 179.3 | L141: 169.1 | M141: 2.82398
A142: 133 | B142: EMAMILTD | C142: 1051.7 | D142: 1052.07 | E142: 1036.13 | F142: 1020.57 | G142: 1004.63 | H142: 1067.63 | I142: 1083.57 | J142: 1099.13 | K142: 1068 | L142: 1036.5 | M142: 8.02687
A143: 134 | B143: ENDURANCE | C143: 1173.3 | D143: 1177.35 | E143: 1164.65 | F143: 1156.00 | G143: 1143.30 | H143: 1186.00 | I143: 1198.70 | J143: 1207.35 | K143: 1190.05 | L143: 1168.7 | M143: 0.2502
A144: 135 | B144: ENGINERSIN | C144: 153.75 | D144: 153.97 | E144: 151.93 | F144: 150.12 | G144: 148.08 | H144: 155.78 | I144: 157.82 | J144: 159.63 | K144: 156 | L144: 152.15 | M144: 13.69482
A145: 136 | B145: EQUITAS | C145: 165.85 | D145: 165.53 | E145: 164.07 | F145: 162.28 | G145: 160.82 | H145: 167.32 | I145: 168.78 | J145: 170.57 | K145: 167 | L145: 163.75 | M145: 12.45697
A146: 137 | B146: ERIS | C146: 758.85 | D146: 752.28 | E146: 736.57 | F146: 714.28 | G146: 698.57 | H146: 774.57 | I146: 790.28 | J146: 812.57 | K146: 768 | L146: 730 | M146: 0.19508
A147: 138 | B147: EROSMEDIA | C147: 147.7 | D147: 150.58 | E147: 143.47 | F147: 139.23 | G147: 132.12 | H147: 154.82 | I147: 161.93 | J147: 166.17 | K147: 157.7 | L147: 146.35 | M147: 7.93089
A148: 139 | B148: ESCORTS | C148: 947.3 | D148: 946.67 | E148: 937.43 | F148: 927.57 | G148: 918.33 | H148: 956.53 | I148: 965.77 | J148: 975.63 | K148: 955.9 | L148: 936.8 | M148: 5.08454
A149: 140 | B149: EVEREADY | C149: 278.15 | D149: 276.92 | E149: 273.88 | F149: 269.62 | G149: 266.58 | H149: 281.18 | I149: 284.22 | J149: 288.48 | K149: 279.95 | L149: 272.65 | M149: 0.8803
A150: 141 | B150: EXIDEIND | C150: 261.45 | D150: 260.80 | E150: 257.80 | F150: 254.15 | G150: 251.15 | H150: 264.45 | I150: 267.45 | J150: 271.10 | K150: 263.8 | L150: 257.15 | M150: 30.38516
A151: 142 | B151: FCONSUMER | C151: 57.55 | D151: 58.20 | E151: 56.75 | F151: 55.95 | G151: 54.50 | H151: 59.00 | I151: 60.45 | J151: 61.25 | K151: 59.65 | L151: 57.4 | M151: 23.79157
A152: 143 | B152: FEDERALBNK | C152: 90.05 | D152: 89.98 | E152: 89.27 | F152: 88.48 | G152: 87.77 | H152: 90.77 | I152: 91.48 | J152: 92.27 | K152: 90.7 | L152: 89.2 | M152: 251.2492
A153: 144 | B153: FINCABLES | C153: 683.9 | D153: 683.97 | E153: 678.93 | F153: 673.97 | G153: 668.93 | H153: 688.93 | I153: 693.97 | J153: 698.93 | K153: 689 | L153: 679 | M153: 7.57966
A154: 145 | B154: FINPIPE | C154: 650.1 | D154: 650.03 | E154: 646.07 | F154: 642.03 | G154: 638.07 | H154: 654.07 | I154: 658.03 | J154: 662.07 | K154: 654 | L154: 646 | M154: 0.13901
A155: 146 | B155: FLFL | C155: 447 | D155: 453.67 | E155: 438.33 | F155: 429.67 | G155: 414.33 | H155: 462.33 | I155: 477.67 | J155: 486.33 | K155: 469 | L155: 445 | M155: 0.60584
A156: 147 | B156: FSL | C156: 70.9 | D156: 71.47 | E156: 69.78 | F156: 68.67 | G156: 66.98 | H156: 72.58 | I156: 74.27 | J156: 75.38 | K156: 73.15 | L156: 70.35 | M156: 88.29786
A157: 148 | B157: GAIL | C157: 342.6 | D157: 341.52 | E157: 338.23 | F157: 333.87 | G157: 330.58 | H157: 345.88 | I157: 349.17 | J157: 353.53 | K157: 344.8 | L157: 337.15 | M157: 26.18297
A158: 149 | B158: GATI | C158: 109.75 | D158: 110.43 | E158: 108.02 | F158: 106.28 | G158: 103.87 | H158: 112.17 | I158: 114.58 | J158: 116.32 | K158: 112.85 | L158: 108.7 | M158: 6.3935
A159: 150 | B159: GDL | C159: 167 | D159: 167.92 | E159: 166.03 | F159: 165.07 | G159: 163.18 | H159: 168.88 | I159: 170.77 | J159: 171.73 | K159: 169.8 | L159: 166.95 | M159: 0.81947
A160: 151 | B160: GEPIL | C160: 900 | D160: 904.00 | E160: 883.00 | F160: 866.00 | G160: 845.00 | H160: 921.00 | I160: 942.00 | J160: 959.00 | K160: 925 | L160: 887 | M160: 0.31133
A161: 152 | B161: GESHIP | C161: 360.8 | D161: 359.63 | E161: 352.37 | F161: 343.93 | G161: 336.67 | H161: 368.07 | I161: 375.33 | J161: 383.77 | K161: 366.9 | L161: 351.2 | M161: 0.94367
A162: 153 | B162: GET&D | C162: 389.25 | D162: 386.93 | E162: 383.02 | F162: 376.78 | G162: 372.87 | H162: 393.17 | I162: 397.08 | J162: 403.32 | K162: 390.85 | L162: 380.7 | M162: 0.90265
A163: 154 | B163: GHCL | C163: 275.35 | D163: 273.63 | E163: 269.37 | F163: 263.38 | G163: 259.12 | H163: 279.62 | I163: 283.88 | J163: 289.87 | K163: 277.9 | L163: 267.65 | M163: 1.32634
A164: 155 | B164: GICRE | C164: 679.35 | D164: 686.47 | E164: 668.93 | F164: 658.52 | G164: 640.98 | H164: 696.88 | I164: 714.42 | J164: 724.83 | K164: 704 | L164: 676.05 | M164: 0.42867
A165: 156 | B165: GILLETTE | C165: 6548.9 | D165: 6493.97 | E165: 6437.93 | F165: 6326.97 | G165: 6270.93 | H165: 6604.93 | I165: 6660.97 | J165: 6771.93 | K165: 6550 | L165: 6383 | M165: 0.04484
A166: 157 | B166: GLAXO | C166: 2418.3 | D166: 2410.07 | E166: 2386.23 | F166: 2354.17 | G166: 2330.33 | H166: 2442.13 | I166: 2465.97 | J166: 2498.03 | K166: 2433.9 | L166: 2378 | M166: 0.08711
A167: 158 | B167: GLENMARK | C167: 515.7 | D167: 513.20 | E167: 508.00 | F167: 500.30 | G167: 495.10 | H167: 520.90 | I167: 526.10 | J167: 533.80 | K167: 518.4 | L167: 505.5 | M167: 6.7429
A168: 159 | B168: GMDCLTD | C168: 130.9 | D168: 131.48 | E168: 129.52 | F168: 128.13 | G168: 126.17 | H168: 132.87 | I168: 134.83 | J168: 136.22 | K168: 133.45 | L168: 130.1 | M168: 1.58458
A169: 160 | B169: GMRINFRA | C169: 18.65 | D169: 18.62 | E169: 18.38 | F169: 18.12 | G169: 17.88 | H169: 18.88 | I169: 19.12 | J169: 19.38 | K169: 18.85 | L169: 18.35 | M169: 180.87595
A170: 161 | B170: GNFC | C170: 484.35 | D170: 486.15 | E170: 480.65 | F170: 476.95 | G170: 471.45 | H170: 489.85 | I170: 495.35 | J170: 499.05 | K170: 491.65 | L170: 482.45 | M170: 6.5686
A171: 162 | B171: GODFRYPHLP | C171: 827.8 | D171: 830.10 | E171: 821.70 | F171: 815.60 | G171: 807.20 | H171: 836.20 | I171: 844.60 | J171: 850.70 | K171: 838.5 | L171: 824 | M171: 0.44799
A172: 163 | B172: GODREJAGRO | C172: 684.3 | D172: 682.05 | E172: 672.30 | F172: 660.30 | G172: 650.55 | H172: 694.05 | I172: 703.80 | J172: 715.80 | K172: 691.8 | L172: 670.05 | M172: 1.63407
A173: 164 | B173: GODREJCP | C173: 1079.2 | D173: 1076.80 | E173: 1067.15 | F173: 1055.10 | G173: 1045.45 | H173: 1088.85 | I173: 1098.50 | J173: 1110.55 | K173: 1086.45 | L173: 1064.75 | M173: 2.63824
A174: 165 | B174: GODREJIND | C174: 592.9 | D174: 585.95 | E174: 575.95 | F174: 559.00 | G174: 549.00 | H174: 602.90 | I174: 612.90 | J174: 629.85 | K174: 595.95 | L174: 569 | M174: 3.09061
A175: 166 | B175: GODREJPROP | C175: 834.3 | D175: 844.87 | E175: 817.73 | F175: 801.17 | G175: 774.03 | H175: 861.43 | I175: 888.57 | J175: 905.13 | K175: 872 | L175: 828.3 | M175: 1.29571
A176: 167 | B176: GPPL | C176: 141.9 | D176: 143.08 | E176: 140.12 | F176: 138.33 | G176: 135.37 | H176: 144.87 | I176: 147.83 | J176: 149.62 | K176: 146.05 | L176: 141.3 | M176: 0.4489
A177: 168 | B177: GRANULES | C177: 93.8 | D177: 94.68 | E177: 92.07 | F177: 90.33 | G177: 87.72 | H177: 96.42 | I177: 99.03 | J177: 100.77 | K177: 97.3 | L177: 92.95 | M177: 26.16809
A178: 169 | B178: GRAPHITE | C178: 729.9 | D178: 740.40 | E178: 712.10 | F178: 694.30 | G178: 666.00 | H178: 758.20 | I178: 786.50 | J178: 804.30 | K178: 768.7 | L178: 722.6 | M178: 33.96608
A179: 170 | B179: GRASIM | C179: 1100.75 | D179: 1097.33 | E179: 1085.82 | F179: 1070.88 | G179: 1059.37 | H179: 1112.27 | I179: 1123.78 | J179: 1138.72 | K179: 1108.85 | L179: 1082.4 | M179: 10.42546
A180: 171 | B180: GREAVESCOT | C180: 140.05 | D180: 138.80 | E180: 136.80 | F180: 133.55 | G180: 131.55 | H180: 142.05 | I180: 144.05 | J180: 147.30 | K180: 140.8 | L180: 135.55 | M180: 8.06409
A181: 172 | B181: GREENPLY | C181: 299.55 | D181: 299.33 | E181: 295.72 | F181: 291.88 | G181: 288.27 | H181: 303.17 | I181: 306.78 | J181: 310.62 | K181: 302.95 | L181: 295.5 | M181: 0.32433
A182: 173 | B182: GRUH | C182: 692.1 | D182: 694.47 | E182: 680.23 | F182: 668.37 | G182: 654.13 | H182: 706.33 | I182: 720.57 | J182: 732.43 | K182: 708.7 | L182: 682.6 | M182: 3.7798
A183: 174 | B183: GSFC | C183: 132.45 | D183: 132.05 | E183: 129.75 | F183: 127.05 | G183: 124.75 | H183: 134.75 | I183: 137.05 | J183: 139.75 | K183: 134.35 | L183: 129.35 | M183: 14.09417
A184: 175 | B184: GSKCONS | C184: 5914.9 | D184: 5909.63 | E184: 5860.37 | F184: 5805.83 | G184: 5756.57 | H184: 5964.17 | I184: 6013.43 | J184: 6067.97 | K184: 5958.9 | L184: 5855.1 | M184: 0.1871
A185: 176 | B185: GSPL | C185: 179.7 | D185: 180.07 | E185: 178.08 | F185: 176.47 | G185: 174.48 | H185: 181.68 | I185: 183.67 | J185: 185.28 | K185: 182.05 | L185: 178.45 | M185: 1.80355
A186: 177 | B186: GUJALKALI | C186: 683.4 | D186: 688.80 | E186: 676.75 | F186: 670.10 | G186: 658.05 | H186: 695.45 | I186: 707.50 | J186: 714.15 | K186: 700.85 | L186: 682.15 | M186: 0.54162
A187: 178 | B187: GUJFLUORO | C187: 856.9 | D187: 849.80 | E187: 839.20 | F187: 821.50 | G187: 810.90 | H187: 867.50 | I187: 878.10 | J187: 895.80 | K187: 860.4 | L187: 832.1 | M187: 0.90173
A188: 179 | B188: GUJGASLTD | C188: 838.4 | D188: 840.68 | E188: 829.32 | F188: 820.23 | G188: 808.87 | H188: 849.77 | I188: 861.13 | J188: 870.22 | K188: 852.05 | L188: 831.6 | M188: 0.09411
A189: 180 | B189: GULFOILLUB | C189: 905.65 | D189: 905.23 | E189: 900.47 | F189: 895.28 | G189: 890.52 | H189: 910.42 | I189: 915.18 | J189: 920.37 | K189: 910 | L189: 900.05 | M189: 0.04165
A190: 181 | B190: GVKPIL | C190: 13.55 | D190: 13.70 | E190: 13.30 | F190: 13.05 | G190: 12.65 | H190: 13.95 | I190: 14.35 | J190: 14.60 | K190: 14.1 | L190: 13.45 | M190: 13.35293
A191: 182 | B191: HATHWAY | C191: 32 | D191: 32.45 | E191: 31.25 | F191: 30.50 | G191: 29.30 | H191: 33.20 | I191: 34.40 | J191: 35.15 | K191: 33.65 | L191: 31.7 | M191: 8.92063
A192: 183 | B192: HATSUN | C192: 762.1 | D192: 761.10 | E192: 751.00 | F192: 739.90 | G192: 729.80 | H192: 772.20 | I192: 782.30 | J192: 793.40 | K192: 771.2 | L192: 750 | M192: 0.33703
A193: 184 | B193: HAVELLS | C193: 547.5 | D193: 549.37 | E193: 538.13 | F193: 528.77 | G193: 517.53 | H193: 558.73 | I193: 569.97 | J193: 579.33 | K193: 560.6 | L193: 540 | M193: 47.3355
A194: 185 | B194: HCC | C194: 16.5 | D194: 16.63 | E194: 16.22 | F194: 15.93 | G194: 15.52 | H194: 16.92 | I194: 17.33 | J194: 17.62 | K194: 17.05 | L194: 16.35 | M194: 67.77284
A195: 186 | B195: HCL-INSYS | C195: 48.45 | D195: 49.05 | E195: 47.60 | F195: 46.75 | G195: 45.30 | H195: 49.90 | I195: 51.35 | J195: 52.20 | K195: 50.5 | L195: 48.2 | M195: 13.02483
A196: 187 | B196: HCLTECH | C196: 932.85 | D196: 934.07 | E196: 929.88 | F196: 926.92 | G196: 922.73 | H196: 937.03 | I196: 941.22 | J196: 944.18 | K196: 938.25 | L196: 931.1 | M196: 10.58701
A197: 188 | B197: HDFC | C197: 1919.8 | D197: 1914.17 | E197: 1906.63 | F197: 1893.47 | G197: 1885.93 | H197: 1927.33 | I197: 1934.87 | J197: 1948.03 | K197: 1921.7 | L197: 1901 | M197: 9.48291
A198: 189 | B198: HDFCBANK | C198: 2011.75 | D198: 2004.92 | E198: 1992.83 | F198: 1973.92 | G198: 1961.83 | H198: 2023.83 | I198: 2035.92 | J198: 2054.83 | K198: 2017 | L198: 1986 | M198: 15.14267
A199: 190 | B199: HDIL | C199: 29.05 | D199: 29.37 | E199: 28.33 | F199: 27.62 | G199: 26.58 | H199: 30.08 | I199: 31.12 | J199: 31.83 | K199: 30.4 | L199: 28.65 | M199: 47.50105
A200: 191 | B200: HEG | C200: 3144.7 | D200: 3135.55 | E200: 3061.15 | F200: 2977.60 | G200: 2903.20 | H200: 3219.10 | I200: 3293.50 | J200: 3377.05 | K200: 3209.95 | L200: 3052 | M200: 6.98999
A201: 192 | B201: HEIDELBERG | C201: 150.15 | D201: 150.82 | E201: 148.78 | F201: 147.42 | G201: 145.38 | H201: 152.18 | I201: 154.22 | J201: 155.58 | K201: 152.85 | L201: 149.45 | M201: 0.6689
A202: 193 | B202: HERITGFOOD | C202: 697 | D202: 697.25 | E202: 690.50 | F202: 684.00 | G202: 677.25 | H202: 703.75 | I202: 710.50 | J202: 717.00 | K202: 704 | L202: 690.75 | M202: 0.05784
A203: 194 | B203: HEROMOTOCO | C203: 3618.3 | D203: 3621.43 | E203: 3587.87 | F203: 3557.43 | G203: 3523.87 | H203: 3651.87 | I203: 3685.43 | J203: 3715.87 | K203: 3655 | L203: 3591 | M203: 2.46696
A204: 195 | B204: HEXAWARE | C204: 442.7 | D204: 438.38 | E204: 421.82 | F204: 400.93 | G204: 384.37 | H204: 459.27 | I204: 475.83 | J204: 496.72 | K204: 454.95 | L204: 417.5 | M204: 33.39272
A205: 196 | B205: HFCL | C205: 27.35 | D205: 27.13 | E205: 26.67 | F205: 25.98 | G205: 25.52 | H205: 27.82 | I205: 28.28 | J205: 28.97 | K205: 27.6 | L205: 26.45 | M205: 40.35894
A206: 197 | B206: HIMATSEIDE | C206: 359.8 | D206: 360.63 | E206: 354.17 | F206: 348.53 | G206: 342.07 | H206: 366.27 | I206: 372.73 | J206: 378.37 | K206: 367.1 | L206: 355 | M206: 0.376
... 305 more rows

Sheet Bulk Deals
E6: Back To Main Page
A7: Subject : | B7: BULK DEAL | D7: =Main!B10 -> 2017-05-14
A9: Date | B9: Scrip code | C9: Scrip Name | D9: Client Name | E9: Buy / Sell | F9: Quantity Traded | G9: Trade Price / Wt.Avg.trade price | H9: Exchange
A10: 2018-05-11 | B10: 521070 | C10: ALOKTEXT | D10: CATALYST TRUSTEESHIP LIMITED | E10: SELL | F10: 36,206,120 | G10: 1.58 | H10: BSE
A11: 2018-05-11 | B11: 521070 | C11: ALOKTEXT | D11: INDIA OPPORTUNITIES GROWTH FUND LTD - PINEWOOD STRATEGY | E11: BUY | F11: 36,000,000 | G11: 1.58 | H11: BSE
A12: 2018-05-11 | B12: 540697 | C12: AMFL | D12: RAJESHWARI STOCK BROKING PVT. LTD. | E12: BUY | F12: 80,000 | G12: 11.8 | H12: BSE
A13: 2018-05-11 | B13: 540697 | C13: AMFL | D13: SAGAR RAJESHBHAI JHAVERI | E13: SELL | F13: 80,000 | G13: 11.8 | H13: BSE
A14: 2018-05-11 | B14: 537766 | C14: BCP | D14: ASHISH BHUPENDRA THAKAR | E14: SELL | F14: 77,611 | G14: 160.56 | H14: BSE
A15: 2018-05-11 | B15: 537766 | C15: BCP | D15: ASHISH BHUPENDRA THAKAR | E15: BUY | F15: 77,611 | G15: 163.55 | H15: BSE
A16: 2018-05-11 | B16: 538476 | C16: CTL | D16: DEEPAK MITTAL | E16: SELL | F16: 300,000 | G16: 4.24 | H16: BSE
A17: 2018-05-11 | B17: 541302 | C17: DHRUV | D17: JUROX ENTERPRISES PVT LTD | E17: BUY | F17: 146,000 | G17: 57.88 | H17: BSE
A18: 2018-05-11 | B18: 541302 | C18: DHRUV | D18: AMKOR ENTERPRISES PVT LTD | E18: BUY | F18: 150,000 | G18: 57.91 | H18: BSE
A19: 2018-05-11 | B19: 541302 | C19: DHRUV | D19: KETAN VALLABHDAS THAKKAR | E19: SELL | F19: 272,000 | G19: 58.03 | H19: BSE
A20: 2018-05-11 | B20: 541299 | C20: DLCL | D20: NNM SECURITIES PVT LTD | E20: SELL | F20: 20,000 | G20: 25.75 | H20: BSE
A21: 2018-05-11 | B21: 541299 | C21: DLCL | D21: NNM SECURITIES PVT LTD | E21: BUY | F21: 24,000 | G21: 25.75 | H21: BSE
A22: 2018-05-11 | B22: 538708 | C22: ETIL | D22: ARCADIA SHARE & STOCK BROKERS PVT. LTD | E22: SELL | F22: 114,084 | G22: 18.06 | H22: BSE
A23: 2018-05-11 | B23: 538708 | C23: ETIL | D23: ARCADIA SHARE & STOCK BROKERS PVT. LTD | E23: BUY | F23: 26,001 | G23: 18.87 | H23: BSE
A24: 2018-05-11 | B24: 538708 | C24: ETIL | D24: SURESHBHAI MAGANBHAI KANTARIYA HUF | E24: BUY | F24: 100,000 | G24: 18.87 | H24: BSE
A25: 2018-05-11 | B25: 532951 | C25: GSS | D25: VICKY RAJESH JHAVERI | E25: SELL | F25: 148,538 | G25: 92.66 | H25: BSE
A26: 2018-05-11 | B26: 532951 | C26: GSS | D26: VICKY RAJESH JHAVERI | E26: BUY | F26: 148,538 | G26: 89.51 | H26: BSE
A27: 2018-05-11 | B27: 541304 | C27: INDOUS | D27: KETAN VALLABHDAS THAKKAR | E27: SELL | F27: 26,000 | G27: 55.79 | H27: BSE
A28: 2018-05-11 | B28: 536709 | C28: INDRENEW | D28: JAYESH D SHAH | E28: SELL | F28: 25,000 | G28: 22.3 | H28: BSE
A29: 2018-05-11 | B29: 522183 | C29: ITL | D29: HARDIK PATEL | E29: BUY | F29: 20,797 | G29: 269 | H29: BSE
A30: 2018-05-11 | B30: 522183 | C30: ITL | D30: ACIRA CONSULTANCY PRIVATE LIMITED | E30: SELL | F30: 20,797 | G30: 269 | H30: BSE
A31: 2018-05-11 | B31: 538539 | C31: JTAPARIA | D31: ALLIED TREXIM PRIVATE LIMITED | E31: SELL | F31: 152,368 | G31: 8.66 | H31: BSE
A32: 2018-05-11 | B32: 540756 | C32: KAARYAFSL | D32: ANILBHAI V DANGER | E32: SELL | F32: 48,000 | G32: 42.5 | H32: BSE
A33: 2018-05-11 | B33: 540756 | C33: KAARYAFSL | D33: ANILBHAI V DANGER | E33: BUY | F33: 3,000 | G33: 43 | H33: BSE
A34: 2018-05-11 | B34: 540756 | C34: KAARYAFSL | D34: KARAN JITENDRA SHAH | E34: BUY | F34: 48,000 | G34: 42.5 | H34: BSE
A35: 2018-05-11 | B35: 540937 | C35: MEDICO | D35: MUKESH COMMOTRADE LTD | E35: SELL | F35: 28,800 | G35: 97.25 | H35: BSE
A36: 2018-05-11 | B36: 539521 | C36: NAVIGANT | D36: VEERAN DEEPA | E36: BUY | F36: 40,000 | G36: 14 | H36: BSE
A37: 2018-05-11 | B37: 530367 | C37: NRBBEARING | D37: UBS PRINCIPAL CAPITAL ASIA LIMITED | E37: BUY | F37: 2,739,784 | G37: 150 | H37: BSE
A38: 2018-05-11 | B38: 530367 | C38: NRBBEARING | D38: CALIFORNIA STATE TEACHERS' RETIREMENT SYSTEM | E38: SELL | F38: 2,803,198 | G38: 150.02 | H38: BSE
A39: 2018-05-11 | B39: 532647 | C39: PROVOGE | D39: INTU INDIA PORTFOLIO LIMITED | E39: BUY | F39: 5,415,000 | G39: 4.66 | H39: BSE
A40: 2018-05-11 | B40: 532647 | C40: PROVOGE | D40: NAILSFIELD LIMITED | E40: SELL | F40: 5,415,000 | G40: 4.66 | H40: BSE
A41: 2018-05-11 | B41: 534675 | C41: PROZONINTU | D41: INTU INDIA PORTFOLIO LIMITED | E41: BUY | F41: 5,415,000 | G41: 47.1 | H41: BSE
A42: 2018-05-11 | B42: 534675 | C42: PROZONINTU | D42: NAILSFIELD LIMITED | E42: SELL | F42: 5,415,000 | G42: 47.1 | H42: BSE
A43: 2018-05-11 | B43: 531952 | C43: RIBATEX | D43: MANISH KUMAR GUPTA | E43: SELL | F43: 49,540 | G43: 87 | H43: BSE
A44: 2018-05-11 | B44: 531952 | C44: RIBATEX | D44: NITIN KAPOOR | E44: SELL | F44: 100,000 | G44: 91 | H44: BSE
A45: 2018-05-11 | B45: 531952 | C45: RIBATEX | D45: NITIN KAPOOR | E45: BUY | F45: 100,000 | G45: 85.13 | H45: BSE
A46: 2018-05-11 | B46: 531952 | C46: RIBATEX | D46: STRM TRADING FOCUS PRIVATE LIMITED | E46: SELL | F46: 94,381 | G46: 85.7 | H46: BSE
A47: 2018-05-11 | B47: 531952 | C47: RIBATEX | D47: STRM TRADING FOCUS PRIVATE LIMITED | E47: BUY | F47: 131,978 | G47: 85.55 | H47: BSE
A48: 2018-05-11 | B48: 531952 | C48: RIBATEX | D48: VIBHA APOORVA SANGHVI | E48: SELL | F48: 50,000 | G48: 85.06 | H48: BSE
A49: 2018-05-11 | B49: 531952 | C49: RIBATEX | D49: VIBHA APOORVA SANGHVI | E49: BUY | F49: 50,000 | G49: 91 | H49: BSE
A50: 2018-05-11 | B50: 531952 | C50: RIBATEX | D50: SANGHVI APOORVA LABHUBHAI HUF | E50: SELL | F50: 50,000 | G50: 85.13 | H50: BSE
A51: 2018-05-11 | B51: 531952 | C51: RIBATEX | D51: SANGHVI APOORVA LABHUBHAI HUF | E51: BUY | F51: 50,000 | G51: 91 | H51: BSE
A52: 2018-05-11 | B52: ATLANTA | C52: Atlanta Limited | D52: KSBL SECURITIES LIMITED | E52: BUY | F52: 10,296 | G52: 70.88 | H52: NSE
A53: 2018-05-11 | B53: ATLANTA | C53: Atlanta Limited | D53: ONE CITY PROMOTERS PVT LTD | E53: BUY | F53: 512,140 | G53: 69.11 | H53: NSE
A54: 2018-05-11 | B54: CAPTRUST | C54: Capital Trust Limited | D54: FIRST CAPITAL TURST STOCK BROKERS PVT LTD | E54: BUY | F54: 100,000 | G54: 399.86 | H54: NSE
A55: 2018-05-11 | B55: GODHA | C55: Godha Cabcon Insulat Ltd | D55: SHASHI AGRAWAL | E55: BUY | F55: 60,000 | G55: 33 | H55: NSE
A56: 2018-05-11 | B56: GSS | C56: GSS Infotech Limited | D56: GOEL NIKHIL | E56: BUY | F56: 315,636 | G56: 87.46 | H56: NSE
A57: 2018-05-11 | B57: GSS | C57: GSS Infotech Limited | D57: ICM FINANCE PRIVATE LIMITED | E57: BUY | F57: 100,000 | G57: 92.9 | H57: NSE
A58: 2018-05-11 | B58: GSS | C58: GSS Infotech Limited | D58: INDIA SECURITIES BROKING PRIVATE LIMITED | E58: BUY | F58: 100,000 | G58: 85.6 | H58: NSE
A59: 2018-05-11 | B59: GSS | C59: GSS Infotech Limited | D59: LOPA SAUMIL BHAVNAGARI | E59: BUY | F59: 225,508 | G59: 92.65 | H59: NSE
A60: 2018-05-11 | B60: GSS | C60: GSS Infotech Limited | D60: SANTOSH INDUSTRIES LTD | E60: BUY | F60: 100,000 | G60: 92.59 | H60: NSE
A61: 2018-05-11 | B61: GSS | C61: GSS Infotech Limited | D61: SUMANT KAPUR | E61: BUY | F61: 169,000 | G61: 92.5 | H61: NSE
A62: 2018-05-11 | B62: GSS | C62: GSS Infotech Limited | D62: VICKY R. JHAVERI | E62: BUY | F62: 388,598 | G62: 91.01 | H62: NSE
A63: 2018-05-11 | B63: JUSTDIAL | C63: Justdial Ltd. | D63: SHAASTRA SECURITIES TRADING PRIVATE LIMITED | E63: BUY | F63: 533,438 | G63: 414.52 | H63: NSE
A64: 2018-05-11 | B64: MITTAL | C64: Mittal Life Style Limited | D64: CHOICE EQUITY BROKING PRIVATE LIMITED | E64: BUY | F64: 138,000 | G64: 21.25 | H64: NSE
A65: 2018-05-11 | B65: PCJEWELLER | C65: PC Jeweller Ltd | D65: ALPHAGREP COMMODITIES PRIVATE LIMITED | E65: BUY | F65: 2,012,008 | G65: 211.64 | H65: NSE
A66: 2018-05-11 | B66: PCJEWELLER | C66: PC Jeweller Ltd | D66: CHANDARANA INTERMEDIARIES BROKERS P. LTD | E66: BUY | F66: 2,127,824 | G66: 206.44 | H66: NSE
A67: 2018-05-11 | B67: PCJEWELLER | C67: PC Jeweller Ltd | D67: GKN SECURITIES | E67: BUY | F67: 2,636,840 | G67: 213.68 | H67: NSE
A68: 2018-05-11 | B68: PCJEWELLER | C68: PC Jeweller Ltd | D68: N.K. SECURITIES | E68: BUY | F68: 2,693,163 | G68: 215.76 | H68: NSE
A69: 2018-05-11 | B69: PCJEWELLER | C69: PC Jeweller Ltd | D69: PURITY TRADEMAX LLP | E69: BUY | F69: 2,355,729 | G69: 212.77 | H69: NSE
A70: 2018-05-11 | B70: PCJEWELLER | C70: PC Jeweller Ltd | D70: SHAASTRA SECURITIES TRADING PRIVATE LIMITED | E70: BUY | F70: 2,345,930 | G70: 207.97 | H70: NSE
A71: 2018-05-11 | B71: PCJEWELLER | C71: PC Jeweller Ltd | D71: VAIBHAV STOCK & DERIVATIVES BROKING PVT. LTD | E71: BUY | F71: 3,841,311 | G71: 213.95 | H71: NSE
A72: 2018-05-11 | B72: PIONDIST | C72: Pioneer Dist Ltd | D72: JMP SECURITIES PVT LTD | E72: BUY | F72: 72,553 | G72: 295.83 | H72: NSE
A73: 2018-05-11 | B73: SOFTTECH | C73: Softtech Engineer Limited | D73: BHOOTRA DILIP MADANLAL | E73: BUY | F73: 49,600 | G73: 85 | H73: NSE
A74: 2018-05-11 | B74: SOFTTECH | C74: Softtech Engineer Limited | D74: BHUTADA SUNIL MADANLAL | E74: BUY | F74: 49,600 | G74: 85 | H74: NSE
A75: 2018-05-11 | B75: SOFTTECH | C75: Softtech Engineer Limited | D75: JAIN SANJAY POPATLAL | E75: BUY | F75: 99,200 | G75: 88 | H75: NSE
A76: 2018-05-11 | B76: SOFTTECH | C76: Softtech Engineer Limited | D76: MAHENDRAKUMAR JITMAL BHANSALI | E76: BUY | F76: 64,000 | G76: 86.76 | H76: NSE
A77: 2018-05-11 | B77: SOFTTECH | C77: Softtech Engineer Limited | D77: NIKESH D PANCHAL | E77: BUY | F77: 62,400 | G77: 88.09 | H77: NSE
A78: 2018-05-11 | B78: SOFTTECH | C78: Softtech Engineer Limited | D78: SHRIVASTAV UTSAV PRAMODKUMAR | E78: BUY | F78: 51,200 | G78: 85.26 | H78: NSE
A79: 2018-05-11 | B79: SOFTTECH | C79: Softtech Engineer Limited | D79: VISMAY A SHAH | E79: BUY | F79: 60800 | G79: 84.93 | H79: NSE
A80: 2018-05-11 | B80: VIJSHAN | C80: Vijay Shanthi Builders Li | D80: ASHISH BHUPENDRA THAKAR | E80: BUY | F80: 733838 | G80: 15.57 | H80: NSE
A81: 2018-05-11 | B81: VIJSHAN | C81: Vijay Shanthi Builders Li | D81: GIGANTIC ENTERPRISES | E81: BUY | F81: 196271 | G81: 15.76 | H81: NSE
A82: 2018-05-11 | B82: VIJSHAN | C82: Vijay Shanthi Builders Li | D82: ZAINABAMIR HAJEEBHAI MANJEE | E82: BUY | F82: 285000 | G82: 16.5 | H82: NSE
A83: 2018-05-11 | B83: ATLANTA | C83: Atlanta Limited | D83: KSBL SECURITIES LIMITED | E83: SELL | F83: 536936 | G83: 69.13 | H83: NSE
A84: 2018-05-11 | B84: CAPTRUST | C84: Capital Trust Limited | D84: YOGEN KHOSLA | E84: SELL | F84: 100000 | G84: 399.85 | H84: NSE
A85: 2018-05-11 | B85: GSS | C85: GSS Infotech Limited | D85: GOEL NIKHIL | E85: SELL | F85: 315636 | G85: 91.68 | H85: NSE
A86: 2018-05-11 | B86: GSS | C86: GSS Infotech Limited | D86: ICM FINANCE PRIVATE LIMITED | E86: SELL | F86: 50000 | G86: 92.7 | H86: NSE
A87: 2018-05-11 | B87: GSS | C87: GSS Infotech Limited | D87: INDIA SECURITIES BROKING PRIVATE LIMITED | E87: SELL | F87: 100000 | G87: 92.4 | H87: NSE
A88: 2018-05-11 | B88: GSS | C88: GSS Infotech Limited | D88: LOPA SAUMIL BHAVNAGARI | E88: SELL | F88: 78544 | G88: 86.25 | H88: NSE
A89: 2018-05-11 | B89: GSS | C89: GSS Infotech Limited | D89: VICKY R. JHAVERI | E89: SELL | F89: 388598 | G89: 92.51 | H89: NSE
A90: 2018-05-11 | B90: JUSTDIAL | C90: Justdial Ltd. | D90: SHAASTRA SECURITIES TRADING PRIVATE LIMITED | E90: SELL | F90: 533438 | G90: 414.59 | H90: NSE
A91: 2018-05-11 | B91: MAHICKRA | C91: Mahickra Chemical Limited | D91: SWAPNIL MEHTA | E91: SELL | F91: 42000 | G91: 49.27 | H91: NSE
A92: 2018-05-11 | B92: MITTAL | C92: Mittal Life Style Limited | D92: AJAY OMPRAKASH AGARWAL | E92: SELL | F92: 60000 | G92: 21.25 | H92: NSE
A93: 2018-05-11 | B93: MITTAL | C93: Mittal Life Style Limited | D93: SANGEETA AJAY AGAWAL | E93: SELL | F93: 54000 | G93: 21.25 | H93: NSE
A94: 2018-05-11 | B94: PCJEWELLER | C94: PC Jeweller Ltd | D94: ALPHAGREP COMMODITIES PRIVATE LIMITED | E94: SELL | F94: 2012008 | G94: 212.06 | H94: NSE
A95: 2018-05-11 | B95: PCJEWELLER | C95: PC Jeweller Ltd | D95: CHANDARANA INTERMEDIARIES BROKERS P. LTD | E95: SELL | F95: 2134784 | G95: 208.18 | H95: NSE
A96: 2018-05-11 | B96: PCJEWELLER | C96: PC Jeweller Ltd | D96: GKN SECURITIES | E96: SELL | F96: 2636840 | G96: 213.57 | H96: NSE
A97: 2018-05-11 | B97: PCJEWELLER | C97: PC Jeweller Ltd | D97: N.K. SECURITIES | E97: SELL | F97: 2693163 | G97: 215.84 | H97: NSE
A98: 2018-05-11 | B98: PCJEWELLER | C98: PC Jeweller Ltd | D98: PURITY TRADEMAX LLP | E98: SELL | F98: 2355729 | G98: 212.93 | H98: NSE
A99: 2018-05-11 | B99: PCJEWELLER | C99: PC Jeweller Ltd | D99: SHAASTRA SECURITIES TRADING PRIVATE LIMITED | E99: SELL | F99: 2345930 | G99: 208.2 | H99: NSE
A100: 2018-05-11 | B100: PCJEWELLER | C100: PC Jeweller Ltd | D100: VAIBHAV STOCK & DERIVATIVES BROKING PVT. LTD | E100: SELL | F100: 3841311 | G100: 214.05 | H100: NSE
A101: 2018-05-11 | B101: PIONDIST | C101: Pioneer Dist Ltd | D101: JMP SECURITIES PVT LTD | E101: SELL | F101: 68370 | G101: 298.23 | H101: NSE
A102: 2018-05-11 | B102: RAIN | C102: Rain Industries Limited | D102: BNP PARIBAS ARBITRAGE | E102: SELL | F102: 1890000 | G102: 277.43 | H102: NSE
A103: 2018-05-11 | B103: SOFTTECH | C103: Softtech Engineer Limited | D103: ELARA INDIA OPPORTUNITIES FUND LIMITED | E103: SELL | F103: 347200 | G103: 85.76 | H103: NSE
A104: 2018-05-11 | B104: SOFTTECH | C104: Softtech Engineer Limited | D104: NIKESH D PANCHAL | E104: SELL | F104: 4800 | G104: 85.23 | H104: NSE
A105: 2018-05-11 | B105: VIJSHAN | C105: Vijay Shanthi Builders Li | D105: ASHISH BHUPENDRA THAKAR | E105: SELL | F105: 733838 | G105: 15.86 | H105: NSE
A106: 2018-05-11 | B106: VIJSHAN | C106: Vijay Shanthi Builders Li | D106: GIGANTIC ENTERPRISES | E106: SELL | F106: 196271 | G106: 15.63 | H106: NSE
A107: 2018-05-11 | B107: VIJSHAN | C107: Vijay Shanthi Builders Li | D107: REKHA JAIN | E107: SELL | F107: 200000 | G107: 15.84 | H107: NSE

Sheet Call Tracker (Equity & F&O)
M5: Back To Main Page
A6: Retail Research Technical Calls & Fundamental Performance Report for the month of May -2018
M7: =Main!B10 -> 2017-05-14
B8: Positional Call
A9: Sr.no | B9: Date | D9: Company | E9: Rec | F9: Rec Price | G9: Stop Loss*** | H9: Call Closed At | I9: Target | J9: Remark | K9: Profit / Loss per Share | L9: Gain / Loss % | M9: Status | N9: Closed Date | O9: NSE Closed Price
A10: 1 | B10: 2018-02-12 | D10: ITC | E10: Buy | F10: 271.5 | G10: 250 | H10: 285 | I10: 310 | J10: Profit of Rs.13.5/- | K10: =H10-F10 -> 13.5 | L10: =K10/F10 -> 4.97% | M10: Successful | N10: 2018-05-02 | R10: P
A11: 1 | B11: 2018-04-05 | D11: RECLTD | E11: Buy | F11: 129 | G11: 122 | H11: 121 | I11: 140 | J11: Loss of Rs.8/- | K11: =H11-F11 -> -8 | L11: =K11/F11 -> -6.20% | M11: Unsuccessful | N11: 2018-05-10 | R11: R
A12: 2 | B12: 2018-04-11 | D12: FEDERALBNK | E12: Buy | F12: 98.75 | G12: 94 | H12: 103.45 | I12: 106-109 | J12: Profit of Rs.4.7/- | K12: =H12-F12 -> 4.7 | L12: =K12/F12 -> 4.76% | M12: Successful | N12: 2019-05-09 | R12: R
A13: 4 | B13: 2018-04-18 | D13: BHEL | E13: Buy$ | F13: =(81+88.5)/2 -> 84.75 | G13: 79 | I13: 100 | J13: Open | O13: =VLOOKUP(D13,Sheet2!$A$1:M2152,6,0) -> 80.65 | R13: A
A14: 5 | B14: 2018-04-20 | D14: HINDZINC | E14: Sell | F14: 325.5 | G14: 340 | H14: 314.5 | I14: 310-305 | J14: Profit of Rs.11/- | K14: =F14-H14 -> 11 | L14: =K14/F14 -> 3.38% | M14: Successful | N14: 2018-05-02 | R14: H
A15: 6 | B15: 2018-04-26 | D15: HCLTECH | E15: Buy | F15: 1060 | G15: 1018 | H15: 1015 | I15: 1130-1150 | J15: Loss of Rs.45/- | K15: =H15-F15 -> -45 | L15: -4.25% | M15: Unsuccessful | N15: 2018-05-02 | R15: H
A16: 7 | B16: 2018-04-27 | D16: PFC | E16: Buy | F16: 85.8 | G16: 82.5 | H16: 89.45 | I16: 91-93 | J16: Profit of Rs.3.65/- | K16: =H16-F16 -> 3.65 | L16: 4.25% | M16: Successful | N16: 2018-05-02 | R16: H
A17: 8 | B17: 2018-04-30 | D17: HEXAWARE | E17: Sell | F17: 447 | G17: 464 | H17: 428.5 | I17: 410-400 | J17: Profit of Rs.18.5/- | K17: =F17-H17 -> 18.5 | L17: 4.14% | M17: Successful | N17: 2018-05-05 | R17: H
A18: 9 | B18: 2018-05-04 | D18: GLENMARK | E18: Buy | F18: 544 | G18: 520 | H18: 513 | I18: 580-585 | J18: Loss of Rs.31/- | K18: =H18-F18 -> -31 | L18: -5.70% | M18: Unsuccessful | N18: 2018-05-11 | R18: R
A19: 10 | B19: 2018-05-04 | D19: L&TFH | E19: Buy | F19: 177.5 | G19: 169 | H19: 183.25 | I19: 190-195 | J19: Part Profit of Rs.5.75/- | K19: =H19-F19 -> 5.75 | L19: 3.24% | M19: Successful | N19: 2018-05-08 | R19: H
A20: 11 | B20: 2018-05-04 | D20: HCLTECH | E20: Buy | F20: 920-930 | G20: 890 | I20: 980-990 | J20: Open | O20: =VLOOKUP(D20,Sheet2!$A$1:M2159,6,0) -> 932.85 | R20: H
A21: 12 | B21: 2018-05-07 | D21: ADANIPORTS | E21: Sell | F21: 413-417 | G21: 437 | I21: 380-370 | J21: Open | O21: =VLOOKUP(D21,Sheet2!$A$1:M2158,6,0) -> 412.7 | R21: H
A22: 13 | B22: 2018-05-08 | D22: ADVENZYMES | E22: Buy | F22: 252 | G22: 239 | H22: 239 | I22: 270-272 | J22: Loss of Rs.13/- | K22: =H22-F22 -> -13 | L22: =K22/F22 -> -5.16% | M22: Unsuccessful | N22: 2018-05-10 | R22: R
A23: 14 | B23: 2018-05-09 | D23: INFRATEL | E23: Buy | F23: 325-328 | G23: 310 | I23: 355-360 | J23: Open | O23: =VLOOKUP(D23,Sheet2!$A$1:M2160,6,0) -> 319.85 | R23: R
A24: 15 | B24: 2018-05-11 | D24: CHENNPETRO | E24: Buy | F24: 298-301 | G24: 286 | I24: 325-330 | J24: Open | O24: =VLOOKUP(D24,Sheet2!$A$1:M2161,6,0) -> 294.6 | R24: H
A31: CLBS = Closing Basis *** | F31: Reinitiated $
A32: Dividend adjusted <> | F32: Revised stoploss #
A34: Master Trade High Risk
A35: Sr.no | B35: Date | D35: Company | E35: Rec | F35: Rec Price | G35: Stop Loss | H35: Call Closed At | I35: Target | J35: Remark | K35: Profit / Loss per share | L35: Gain / Loss per Lot | M35: Lot | N35: Status | O35: Closed Date
A36: 1 | B36: 2018-05-10 | D36: AXISBANK MAY FUT | E36: Sell | F36: 548-548.5 | G36: 563 | I36: 525 | R36: H
D37: AXISBANK MAY 530 PE | E37: Sell | F37: 9.0-10.0
A44: Master Trade Medium Risk
A45: Sr.no | B45: Date | D45: Company | E45: Rec | F45: Rec Price | G45: Stop Loss | H45: Call Closed At | I45: Target | J45: Remark | K45: Profit/Loss per lot | L45: Gain / Loss per Lot | M45: Lot | N45: Status | O45: Closed Date
A46: 1 | B46: 43225.00 | D46: NIFTY MAY 10550 PE | E46: Buy | F46: 90.5 | G46: 58 | H46: 58.00 | I46: 130-150 | J46: Loss of Rs.32.5/- | K46: =H46-F46 -> -32.50 | L46: =K46*M46 -> -2437.50 | M46: 75 | N46: Unsuccessful | O46: 2018-05-11 | R46: H
A47: 2 | B47: 2018-05-09 | D47: JUBLFOOD MAT 2500 PE | E47: Buy | F47: 50 | G47: 30 | H47: 63.5 | I47: 80-90 | J47: Profit of Rs.13.5/- | K47: =H47-F47 -> 13.50 | L47: =K47*M47 -> 3375.00 | M47: 250 | N47: Successful | O47: 2018-05-09 | R47: H
A48: 3 | B48: 2018-05-10 | D48: BankNifty 10 May 26100 PE | E48: Buy | F48: 18 | H48: 0 | I48: 50 | J48: Loss of Rs.18/- | K48: =H48-F48 -> -18.00 | L48: =K48*M48 -> -720.00 | M48: 40 | N48: Unsuccessful | O48: 2018-05-10 | R48: A
B51: Smart Delivery Trade
A52: Sr.no | B52: Date | D52: Company | E52: Rec | F52: Rec Price | G52: Stop Loss*** | H52: Call Closed At | I52: Target | J52: Remark | K52: Profit / Loss per Share | L52: Gain / Loss % | M52: Status | N52: Closed Date | O52: NSE Closed Price
A53: 1 | B53: 2018-02-15 | D53: ACC | E53: Buy$ | F53: 1585 | G53: 1520 | H53: 1520 | I53: 1750 | J53: Loss of Rs.65/- | K53: =H53-F53 -> -65 | L53: =K53/F53 -> -4.10% | M53: Unsuccessful | N53: 2018-05-08 | R53: R
A54: 2 | B54: 2018-04-09 | D54: SUNPHARMA | E54: Buy | F54: 515.5 | G54: 500 | H54: 536 | I54: 540-545 | J54: Profit of Rs.20.5/- | K54: 20.5 | L54: 3.98% | M54: Successful | N54: 2018-05-03 | R54: R
A55: 3 | B55: 2018-04-23 | D55: TATACOMM | E55: Buy | F55: 631 | G55: 615 | H55: 608 | I55: 660-665 | J55: Loss of Rs.23/- | K55: -23 | L55: -3.65% | M55: Unsuccessful | N55: 2018-05-07 | R55: R
A56: 4 | B56: 2018-04-24 | D56: IOC | E56: Buy | F56: 162 | G56: 157 | H56: 166.75 | I56: 170-172 | J56: Profit of Rs.4.75/- | K56: 4.75 | L56: 2.93% | M56: Successful | N56: 2018-05-08 | R56: H
A57: 5 | B57: 2018-04-25 | D57: NTPC | E57: Buy | F57: 169.5 | G57: 164.8 | H57: 176 | I57: 177-180 | J57: Profit of Rs.6.5/- | K57: 6.5 | L57: 3.83% | M57: Successful | N57: 2018-05-03 | R57: H
A58: 6 | B58: 2018-04-30 | D58: AMBUJACEM | E58: Buy | F58: 251 | G58: 240 | H58: 238.5 | I58: 265-270 | J58: Loss of Rs.12.5/- | K58: -12.5 | L58: -4.98% | M58: Unsuccessful | N58: 2018-05-05 | R58: H
A59: 7 | B59: 2018-04-30 | D59: RAMCOCEM | E59: Buy | F59: 822.5 | G59: 805 | H59: 843 | I59: 850 | J59: Profit of Rs.20.5/- | K59: 20.5 | L59: 2.49% | M59: Successful | N59: 2018-05-08 | R59: R
A60: 8 | B60: 2018-05-02 | D60: DHFL | E60: Sell | F60: 637.5 | G60: 662 | H60: 663.5 | I60: 610-600 | J60: Loss of Rs.26/- | K60: =F60-H60 -> -26 | L60: -4.08% | M60: Unsuccessful | N60: 2018-05-02 | R60: H
A61: 9 | B61: 2018-05-02 | D61: DELTACORP | E61: Buy | F61: 272 | G61: 263 | H61: 263 | I61: 283-285 | J61: Loss of Rs.9/- | K61: =H61-F61 -> -9 | L61: -3.31% | M61: Unsuccessful | N61: 2018-05-02 | R61: R
A62: 10 | B62: 2018-05-03 | D62: PFC | E62: Buy | F62: 85-85.2 | G62: 82.5 | I62: 89-90 | J62: Open | O62: =VLOOKUP(D62,Sheet2!$A$1:M2214,6,0) -> 82.85 | R62: H
A63: 11 | B63: 2018-05-04 | D63: RADICO | E63: Buy | F63: 393 | G63: 382 | H63: 405.5 | I63: 412-416 | J63: Profit of Rs.12.5/- | K63: =H63-F63 -> 12.5 | L63: =K63/F63 -> 3.18% | M63: Successful | N63: 2018-05-07 | R63: R
A64: 12 | B64: 2018-05-08 | D64: TATAMOTORS | E64: Buy | F64: 331.5 | G64: 318 | H64: 343.5 | I64: 350-355 | J64: Profit of Rs.12/- | K64: =H64-F64 -> 12 | L64: =K64/F64 -> 3.62% | M64: Successful | N64: 2018-05-10 | R64: H
A65: 13 | B65: 2018-05-09 | D65: SUNPHARMA | E65: Buy | F65: 512 | G65: 498 | H65: 493 | I65: 535-540 | J65: Loss of Rs.19/- | K65: =H65-F65 -> -19 | L65: =K65/F65 -> -3.71% | M65: Unsuccessful | N65: 2018-05-11 | R65: R
A66: 14 | B66: 2018-05-09 | D66: CIPLA | E66: Buy | F66: 589 | G66: 577 | H66: 572 | I66: 615-620 | J66: Loss of Rs.17/- | K66: =H66-F66 -> -17 | L66: =K66/F66 -> -2.89% | M66: Unsuccessful | N66: 2018-05-11 | R66: H
A72: CLBS = Closing Basis *** | F72: Reinitiated $
A73: Dividend adjusted <> | F73: Revised stoploss #
A76: Techno -Funda (positional)
A77: Sr.no | B77: Date | D77: Company | E77: Rec | F77: Rec Price | G77: Stop Loss*** | H77: Call Closed At | I77: Target | J77: Remark | K77: Profit / Loss per Share | L77: Gain / Loss % | M77: Status | N77: Closed Date | O77: NSE Closed Price
A78: 1 | B78: 2018-04-16 | D78: ENGINERSIN | E78: Buy | F78: 157-160 | G78: 147 | I78: 185-190 | J78: Open | R78: H
A81: CLBS = Closing Basis *** | F81: Reinitiated $
A82: Dividend adjusted <> | F82: Revised stoploss #
B86: Momentum Call
A87: Sr.no | B87: Date | D87: Company | E87: Rec | F87: Rec Price | G87: Stop Loss | H87: Call Closed At | I87: Target | J87: Remark | K87: Profit / Loss per Share/Lot | L87: Gain / Loss % | M87: Gain / Loss per Lot | N87: Lot | O87: Status | P87: Closed Date | Q87: NSE Closed Price
A88: 1 | B88: 2018-04-30 | D88: RAIN | E88: Buy | F88: 326.5 | G88: 315 | H88: 315 | I88: 340-345 | J88: Loss of Rs.11.5/- | K88: =H88-F88 -> -11.5 | L88: =K88/F88 -> -3.52% | O88: Unsuccessful | P88: 2018-05-02 | R88: R
A89: 2 | B89: 2018-05-02 | D89: TATACHEM MAY FUT | E89: Buy | F89: 785 | G89: 769 | H89: 771 | I89: 800-805 | J89: Loss of Rs.14/- | K89: -14 | M89: =N89*K89 -> -10500 | N89: 750 | O89: Unsuccessful | P89: 2018-05-02 | R89: H
A90: 3 | B90: 2018-05-02 | D90: EXIDEIND | E90: Buy | F90: 251 | G90: 246 | H90: 256.5 | I90: 260-262 | J90: Profit of Rs.5.5/- | K90: 5.5 | L90: =K90/F90 -> 2.19% | O90: Successful | P90: 2018-05-07 | R90: H
A91: 4 | B91: 2018-05-03 | D91: ARVIND | E91: Buy | F91: 411 | G91: 402 | H91: 419 | I91: 423-426 | J91: Profit of Rs.8/- | K91: 8 | L91: =K91/F91 -> 1.95% | O91: Successful | P91: 2018-05-08 | R91: R
A92: 5 | B92: 2018-05-04 | D92: RAIN | E92: Buy | F92: 315.5 | G92: 307 | H92: 322.5 | I92: 325-330 | J92: Profit of Rs.7/- | K92: 7 | L92: =K92/F92 -> 2.22% | O92: Successful | P92: 2018-05-08 | R92: H
A93: 6 | B93: 2018-05-04 | D93: KPIT | E93: Buy | F93: 251.5 | G93: 245 | H93: 257.5 | I93: 262 | J93: Profit of Rs.6/- | K93: 6 | L93: =K93/F93 -> 2.39% | O93: Successful | P93: 2018-05-08 | R93: R
A94: 7 | B94: 2018-05-07 | D94: RELIANCE MAY FUT | E94: Buy | F94: 963 | G94: 953 | H94: 971.5 | I94: 980 | J94: Profit of Rs.8.5/- | K94: 8.5 | M94: =N94*K94 -> 8500 | N94: 1000 | O94: Successful | P94: 2018-05-07 | R94: R
A95: 8 | B95: 2018-05-07 | D95: CHOLAFIN | E95: Buy | F95: 1662 | G95: 1642 | H95: 1617.5 | I95: 1710-1720 | J95: Loss of Rs.44.5/- | K95: =H95-F95 -> -44.5 | L95: =K95/F95 -> -2.68% | O95: Unsuccessful | P95: 2018-05-09 | R95: R
A96: 9 | B96: 2018-05-07 | D96: SUVEN | E96: Buy | F96: 184.5 | G96: 180 | H96: 192 | I96: 192-194 | J96: Profit of Rs.7.5/- | K96: =H96-F96 -> 7.5 | L96: =K96/F96 -> 4.07% | O96: Successful | P96: 2018-05-07 | R96: R
A97: 10 | B97: 2018-05-08 | D97: BHARATFORG | E97: Buy | F97: 746.5 | G97: 730 | H97: 724.4 | I97: 770 | J97: Loss of Rs.22.1/- | K97: =H97-F97 -> -22.1 | L97: =K97/F97 -> -2.96% | O97: Unsuccessful | P97: 2018-05-11 | R97: R
A98: 11 | B98: 2018-05-09 | D98: VIPIND | E98: Buy | F98: 421 | G98: 409 | H98: 407 | I98: 440 | J98: Loss of Rs.14/- | K98: =H98-F98 -> -14 | L98: =K98/F98 -> -3.33% | O98: Unsuccessful | P98: 2018-05-11 | R98: H
A99: 12 | B99: 2018-05-09 | D99: BANKBARODA MAY FUT | E99: Buy | F99: 145.5 | G99: 144 | H99: 144 | I99: 150 | J99: Loss of Rs.1.5/- | K99: =H99-F99 -> -1.5 | M99: =N99*K99 -> -6000 | N99: 4000 | O99: Unsuccessful | P99: 2018-05-09 | R99: H
A100: 13 | B100: 2018-05-09 | D100: HEROMOTOCO MAY FUT | E100: Buy | F100: 3690 | G100: 3640 | H100: 3640 | I100: 3800 | J100: Loss of Rs.50/- | K100: -50 | M100: =N100*K100 -> -6250 | N100: 125 | O100: Unsuccessful | P100: 2018-05-07 | R100: R
A104: CLBS = Closing Basis *** | F104: Reinitiated $
A105: Dividend adjusted <> | F105: Revised stoploss #
B109: Quick Pick Intraday
A110: Sr.no | B110: Date | D110: Company | E110: Rec | F110: Rec Price | G110: Stop Loss*** | H110: Call Closed At | I110: Target | J110: Remark | K110: Profit / Loss per Share | L110: Gain / Loss % | M110: Status | N110: Closed Date
A111: 1 | B111: 2018-05-02 | D111: GODREJPROP | E111: Buy | F111: 817.5 | G111: 804 | H111: 804 | I111: 835-840 | J111: Loss of Rs.13.5/- | K111: =H111-F111 -> -13.5 | L111: =K111/F111 -> -1.65% | M111: Unsuccessful | N111: 2018-05-02 | R111: H
A112: 2 | B112: 2018-05-04 | D112: BFUTILITIE | E112: Buy | F112: 402.5 | G112: 395 | H112: 402.5 | I112: 415 | J112: No profit no loss/- | K112: 0 | L112: 0.00% | M112: Neutral | N112: 2018-05-04 | R112: R
A113: 3 | B113: 2018-05-09 | D113: DCBBANK | E113: Buy | F113: 197.5 | G113: 194.5 | H113: 201 | I113: 202-204 | J113: Profit of Rs. 3.5/- | K113: 3.5 | L113: 1.77% | M113: Successful | N113: 2018-05-09 | R113: H
A114: 4 | B114: 2018-05-09 | D114: BFUTILITIE | E114: Buy | F114: 401 | G114: 395 | H114: 408 | I114: 415 | J114: Profit of Rs. 7/- | K114: 7 | L114: 1.75% | M114: Successful | N114: 2018-05-09 | R114: H
A115: 5 | B115: 2018-05-10 | D115: MANAPPURAM | E115: Buy | F115: 124.75 | G115: 121.8 | H115: 121.8 | I115: 130 | J115: Loss of Rs.2.95/- | K115: -2.95 | L115: -2.36% | M115: Unsuccessful | N115: 2018-05-10 | R115: H
A116: 6 | B116: 2018-05-11 | D116: BFUTILITIE | E116: Buy | F116: 404 | G116: 397 | H116: 397 | I116: 415 | J116: Loss of Rs.7/- | K116: -7 | L116: -1.73% | M116: Unsuccessful | N116: 2018-05-11 | R116: H
B118: Investment Idea
A119: Sr.no | B119: Date | D119: Company | E119: Rec | F119: Rec Price | G119: Point of Review | H119: Close Rate | I119: Target | J119: Remark | K119: Profit / Loss per Share | L119: Gain / Loss % | M119: Status | N119: Closed Date
A120: 1 | B120: 2013-11-01 | D120: L&T Finance Holding | E120: Accu | F120: 82.00 | G120: - | H120: 100 | I120: 100.00 | J120: Target Achieved | K120: =H120-F120 -> 18.00 | L120: =K120/F120 -> 21.95% | M120: Successful | N120: 2016-10-14
A121: 2 | B121: 2014-06-04 | D121: Finolex Inds | E121: Buy | F121: 257.00 | G121: - | H121: 300 | I121: 300.00 | J121: Target Achieved | K121: =H121-F121 -> 43.00 | L121: 16.73% | M121: Successful | N121: 2014-07-02
A122: =1+A121 -> 3 | B122: 2014-07-08 | D122: JK Cement | E122: Buy | F122: 393.00 | G122: - | H122: 468 | I122: 468.00 | J122: Target Achieved | K122: =H122-F122 -> 75.00 | L122: 19.08% | M122: Successful | N122: 2014-08-12
A123: 4 | B123: 2014-08-06 | D123: Finolex Cables | E123: Buy | F123: 205.00 | G123: - | H123: 275 | I123: 250.00 | J123: Target Achieved | K123: 70.00 | L123: 34.15% | M123: Successful | N123: 2014-11-19
A124: 5 | B124: 2014-09-04 | D124: Exide Inds | E124: Buy | F124: 162.00 | G124: - | H124: 190 | I124: 190.00 | J124: Target Achieved | K124: 28.00 | L124: 17.28% | M124: Successful | N124: 2015-01-02
A125: 6 | B125: 2014-09-04 | D125: Deepak Nitrite | E125: Buy | F125: 75.00 | G125: - | H125: 91.5 | I125: 95-100 | J125: Profit of Rs.16.50/- | K125: 16.50 | L125: 22.00% | M125: Successful | N125: 2014-11-11
A126: 7 | B126: 2014-10-01 | D126: Mercks | E126: Buy | F126: 850.00 | G126: - | H126: 982.5 | I126: 1050.00 | J126: Profit of Rs.132.50/- | K126: 132.50 | L126: 15.59% | M126: Successful | N126: 2015-02-04
A127: 8 | B127: 2014-10-01 | D127: Grindwell Norton | E127: Buy | F127: 475.00 | G127: - | H127: 515 | I127: 600.00 | J127: Profit of Rs.40/- | K127: 40.00 | L127: 8.42% | M127: Successful | N127: 2014-10-27
A128: 9 | B128: 2014-10-01 | D128: Snowman Logistics | E128: Buy | F128: 86.00 | G128: - | H128: 99 | I128: 140.00 | J128: Profit of Rs.13.00/- | K128: 13.00 | L128: 15.12% | M128: Successful | N128: 2014-10-27
A129: 10 | B129: 2014-10-14 | D129: Birla Corp | E129: Buy | F129: 496.60 | G129: - | H129: 621 | I129: 580.00 | J129: Target Achieved | K129: 124.40 | L129: 25.05% | M129: Successful | N129: 2016-08-23
A130: 11 | B130: 2014-10-14 | D130: Ultratech Cem | E130: Buy | F130: 2481.90 | G130: - | H130: 2840 | I130: 2870.00 | J130: Profit of Rs.358.10/- | K130: 358.10 | L130: 14.43% | M130: Successful | N130: 2015-01-13
A131: =1+A128 -> 10 | B131: 2014-10-16 | D131: Sintex Inds | E131: Buy | F131: 84.50 | G131: - | H131: 93 | I131: 110.00 | J131: Profit of Rs.8.50/- | K131: 8.50 | L131: 10.06% | M131: Successful | N131: 2014-10-27
A132: =1+A131 -> 11 | B132: 2014-10-16 | D132: HSIL | E132: Buy | F132: 401.00 | G132: - | H132: 428 | I132: 450.00 | J132: Profit of Rs.27.00/- | K132: 27.00 | L132: 6.73% | M132: Successful | N132: 2015-01-16
A133: 12 | B133: 2014-10-16 | D133: Eveready Inds | E133: Buy | F133: 101.00 | G133: - | H133: 112 | I133: 120.00 | J133: Profit of Rs.11.00/- | K133: 11.00 | L133: 10.89% | M133: Successful | N133: 2014-10-27
A134: 13 | B134: 2014-11-11 | D134: Pennar Inds | E134: Buy | F134: 59.00 | G134: - | H134: 76 | I134: 76.00 | J134: Target Achieved | K134: 17.00 | L134: 28.81% | M134: Successful | N134: 2017-10-24
A135: 14 | B135: 2014-11-11 | D135: Snowman Logistics | E135: Buy | F135: 99.00 | G135: - | H135: 120 | I135: 120.00 | J135: Profit of Rs.21/- | K135: 21.00 | L135: 21.21% | M135: Successful | N135: 2014-11-17
A136: 15 | B136: 2014-11-13 | D136: Dharamsi Morarji Chem | E136: Buy | F136: 22.00 | G136: - | H136: 33.55 | I136: 32.00 | J136: Profit of Rs 11.55/- | K136: 11.55 | L136: 52.50% | M136: Successful | N136: 2015-07-03
A137: 16 | B137: 2014-12-03 | D137: Tatachem | E137: Buy | F137: 440.00 | G137: - | H137: 520 | I137: 520.00 | J137: Profit of Rs 80.00/- | K137: 80.00 | L137: 18.18% | M137: Successful | N137: 2015-07-23
A138: 17 | B138: 2014-12-03 | D138: Advanta | E138: Buy | F138: 360.00 | G138: - | H138: 427 | I138: 425.00 | J138: Profit of Rs.67.00/- | K138: 67.00 | L138: 18.61% | M138: Successful | N138: 2015-02-23
A139: 18 | B139: 2015-01-08 | D139: GDL | E139: Buy | F139: 360.00 | G139: - | H139: 455 | I139: 420.00 | J139: Profit of Rs.95.00/- | K139: 95.00 | L139: 26.39% | M139: Successful | N139: 2015-01-20
A140: 19 | B140: 2015-01-08 | D140: NRB Bearing | E140: Buy | F140: 130.00 | H140: 175.5 | I140: 165.00 | J140: Profit of Rs 45.50/- | K140: 45.50 | L140: 35.00% | M140: Successful | N140: 2017-12-19
A141: 20 | B141: 2015-02-05 | D141: GSFC | E141: Accu | F141: 98.00 | H141: 120 | I141: 120.00 | J141: Target Achieved | K141: 22.00 | L141: 22.45% | M141: Successful | N141: 2017-01-18
A142: 21 | B142: 2015-02-05 | D142: Sundrmfast | E142: Accu | F142: 196.00 | H142: 262 | I142: 255.00 | J142: Target Achieved | K142: 66.00 | L142: 33.67% | M142: Successful | N142: 2016-08-17
A143: 22 | B143: 2015-03-04 | D143: GPPL | E143: Accu | F143: 230-240 | I143: 280-285 | J143: Open
A144: 23 | B144: 2015-03-04 | D144: ORIENTCEM | E144: Accu | F144: 185.00 | H144: 224 | I144: 220-225 | J144: Target Achieved | K144: 39.00 | L144: =K144/F144 -> 21.08% | M144: Successful | N144: 2016-10-04
A145: 24 | B145: 2015-03-27 | D145: PFS | E145: Accu | F145: 49-50 | I145: 67.00 | J145: Open
A146: 25 | B146: 2015-03-30 | D146: Walchandnagar Ind Ltd | E146: Accu | F146: 183.50 | H146: 219 | I146: 218.00 | J146: Profit of Rs.35.50/- | K146: 35.50 | L146: =K146/F146 -> 19.35% | M146: Successful | N146: 2015-04-09
A147: 26 | B147: 2015-04-20 | D147: Kalpataru Power Transmission Ltd | E147: Accu | F147: =(227+237)/2 -> 232.00 | H147: 298 | I147: 298.00 | J147: Target Achieved | K147: 66.00 | L147: 28.45% | M147: Successful | N147: 2017-03-29
A148: 27 | B148: 2015-05-04 | D148: Mastek Ltd | E148: Buy | F148: 385.00 | H148: =212.5+331 -> 543.5 | I148: 510.00 | J148: Profit of Rs 158.50/- | K148: 158.50 | L148: 41.17% | M148: Successful | N148: 2015-08-19
A149: 28 | B149: 2015-05-04 | D149: Suprajit Eng | E149: Buy | F149: 115.50 | H149: 146 | I149: 142.00 | J149: Profit of Rs 30.50/- | K149: 30.50 | L149: 26.41% | M149: Successful | N149: 2015-07-17
A150: 29 | B150: 2015-05-27 | D150: TCI | E150: Buy | F150: 237.50 | H150: 279.5 | I150: 278.00 | J150: Target Achieved | K150: 42.00 | L150: 17.68% | M150: Successful | N150: 2015-08-06
A151: 30 | B151: 2015-06-19 | D151: HSIL | E151: Accu | F151: 340.00 | H151: 448 | I151: 448.00 | J151: Target Achieved | K151: 108.00 | L151: 31.76% | M151: Successful | N151: 2017-10-10
A152: 31 | B152: 2015-07-06 | D152: Capital First | E152: Accu | F152: 390.00 | H152: 460 | I152: 460.00 | J152: Target Achieved | K152: 70.00 | L152: 17.95% | M152: Successful | N152: 2016-04-18
A153: 32 | B153: 2015-07-10 | D153: Dolphin OffShore | E153: Accu | F153: 118-127 | I153: 172.00 | J153: Open
A154: 33 | B154: 2015-08-03 | D154: Allcargo logistics | E154: Accu | F154: 297.50 | H154: 350 | I154: 360.00 | J154: Profit of Rs 52.50/- | K154: 52.50 | L154: =K154/F154 -> 17.65% | M154: Successful | N154: 2015-08-16
A155: 34 | B155: 2015-08-03 | D155: Camline Fine | E155: Accu | F155: 115.50 | H155: 149 | I155: 140.00 | J155: Profit of Rs 33.50/- | K155: 33.50 | L155: 29.00% | M155: Successful | N155: 2017-01-05
A156: 35 | B156: 2015-09-04 | D156: TCI | E156: Accu | F156: 226.00 | H156: 292 | I156: 292.00 | J156: Target Achieved | K156: 66.00 | L156: 29.20% | M156: Successful | N156: 2015-10-09
A157: 36 | B157: 2015-09-07 | D157: Kalpataru Power Transmission Ltd | E157: Accu | F157: 232.50 | H157: 312.5 | I157: 310.00 | J157: Target Achieved | K157: 80.00 | L157: 34.41% | M157: Successful | N157: 2017-03-29
A158: 37 | B158: 2015-09-21 | D158: LLOYD ELECTRIC & ENG LTD | E158: Accu | F158: 196.50 | H158: 238 | I158: 238.00 | J158: Target Achieved | K158: 41.50 | L158: 21.12% | M158: Successful | N158: 2015-10-14
A159: 38 | B159: 2015-09-24 | D159: L&T Finance Holding | E159: Accu | F159: 65.00 | H159: 82 | I159: 82.00 | J159: Target Achieved | K159: 17.00 | L159: 26.15% | M159: Successful | N159: 2016-07-27
A160: 39 | B160: 2015-10-14 | D160: KEC International ltd | E160: Accu | F160: 144.00 | H160: 182.5 | I160: 181.00 | J160: Target Achieved | K160: 38.50 | L160: 26.74% | M160: Successful | N160: 2017-03-23
A161: 40 | B161: 2015-10-14 | D161: Gruh Finance | E161: Accu | F161: 264.00 | H161: 311 | I161: 311.00 | J161: Target Achieved | K161: 47.00 | L161: 17.80% | M161: Successful | N161: 2016-08-22
A162: 41 | B162: 2015-11-10 | D162: Pidilitind | E162: Buy | F162: 549.50 | H162: 630 | I162: 630.00 | J162: Target Achieved | K162: 80.50 | L162: 14.65% | M162: Successful | N162: 2016-02-19
A163: 42 | B163: 2015-12-04 | D163: Zensar Technology | E163: Accu | F163: 1020-1035 | I163: 1250.00 | J163: Open
A164: 43 | B164: 2015-12-29 | D164: Vinati Organics Ltd | E164: Accu | F164: 465.00 | H164: 540 | I164: 540.00 | J164: Target Achieved | K164: 75.00 | L164: =K164/F164 -> 16.13% | M164: Successful | N164: 2016-06-09
A165: 44 | B165: 2016-01-11 | D165: GSFC | E165: Buy | F165: 81.00 | H165: 110 | I165: 110.00 | J165: Target Achieved | K165: 29.00 | L165: 35.80% | M165: Successful | N165: 2017-01-10
A166: 45 | B166: 2016-01-13 | D166: SSWL | E166: Buy | F166: 417.50 | H166: 547 | I166: 535.00 | J166: Target Achieved | K166: 129.50 | L166: 31.02% | M166: Successful | N166: 2016-07-27
A167: 46 | B167: 2016-02-08 | D167: Persistent System Ltd | E167: Accu | F167: 650.00 | H167: 800 | I167: 800.00 | J167: Target Achieved | K167: 150.00 | L167: 23.08% | M167: Successful | N167: 2018-02-23
A168: 47 | B168: 2016-03-04 | D168: UPL | E168: Accu | F168: 437.50 | H168: 504.5 | I168: 522.00 | J168: Profit of Rs.67/- | K168: 67.00 | L168: 15.31% | M168: Successful | N168: 2016-04-20
A169: 48 | B169: 2016-03-09 | D169: Ashoka Buildcon Ltd | E169: Accu | F169: 189.50 | H169: 218 | I169: 218.00 | J169: Target Achieved | K169: 28.50 | L169: 15.04% | M169: Successful | N169: 2017-10-26
A170: 49 | B170: 2016-04-11 | D170: PTC INDIA FIN SERV LTD | E170: Accu | F170: 36-37 | I170: 60.00 | J170: Open
A171: 50 | B171: 2016-04-12 | D171: CAMLINFINE $ | E171: Accu | F171: 93.00 | H171: 149 | I171: 140.00 | J171: Profit of Rs 56/- | K171: 56.00 | L171: =K171/F171 -> 60.22% | M171: Successful | N171: 2017-01-05
A172: 51 | B172: 2016-04-12 | D172: Greaves Cotton Ltd. | E172: Accu | F172: 130.00 | H172: 150 | I172: 150-155 | J172: Target Achieved | K172: 20.00 | L172: 15.38% | M172: Successful | N172: 2016-07-13
A173: 52 | B173: 2016-04-13 | D173: DHFL | E173: Accu | F173: 196.00 | H173: 299 | I173: 299.00 | J173: Target Achieved | K173: 103.00 | L173: 52.55% | M173: Successful | N173: 2016-09-07
A174: 53 | B174: 2016-04-13 | D174: Magma | E174: Accu | F174: 88.00 | H174: 103 | I174: 103.00 | J174: Target Achieved | K174: 15.00 | L174: 17.05% | M174: Successful | N174: 2016-06-09
A175: 54 | B175: 2016-05-02 | D175: KEC International ltd $ | E175: Accu | F175: 127.50 | H175: 148 | I175: 148-150 | J175: Target Achieved | K175: 20.50 | L175: 16.08% | M175: Successful | N175: 2016-07-13
A176: 55 | B176: 2016-05-03 | D176: Mindtree | E176: Accu | F176: 675.00 | H176: 815 | I176: 790-800 | J176: Target Achieved | K176: 140.00 | L176: 20.74% | M176: Successful | N176: 2018-02-23
A177: 56 | B177: 2016-06-01 | D177: Atulauto | E177: Accu | F177: 495-505 | I177: 565-570 | J177: Open
A178: 57 | B178: 2016-06-06 | D178: TRITURBINE | E178: Accu | F178: 110.00 | H178: 126.5 | I178: 125.00 | J178: Profit of Rs.16.50/- | K178: 16.50 | L178: =K178/F178 -> 15.00% | M178: Successful | N178: 2016-07-01
A179: 58 | B179: 2016-06-17 | D179: Pennar Industries Ltd | E179: Accu | F179: 44.00 | H179: 69.5 | I179: 69.50 | J179: Profit of Rs.25.50/- | K179: 25.50 | L179: =K179/F179 -> 57.95% | M179: Successful | N179: 2017-08-30
A180: 59 | B180: 2016-06-28 | D180: EVEREADY INDS. IND. LTD. | E180: Accu | F180: 262.50 | H180: 340 | I180: 333.00 | J180: Profit of Rs.77.50/- | K180: 77.50 | L180: =K180/F180 -> 29.52% | M180: Successful | N180: 2017-10-09
A181: 60 | B181: 2016-06-28 | D181: FIEM INDUSTRIES LIMITED | E181: Accu | F181: 840.00 | H181: 1230 | I181: 1230.00 | J181: Target Achieved | K181: 390.00 | L181: =K181/F181 -> 46.43% | M181: Successful | N181: 2016-10-06
A182: 61 | B182: 2016-07-05 | D182: Bajaj Corp Ltd | E182: Accu | F182: 395 | H182: 468.50 | I182: 510.00 | J182: Part profit of Rs.73.50/- | K182: 73.50 | L182: =K182/F182 -> 19% | M182: Successful | N182: 2017-08-30
A183: 62 | B183: 2016-08-02 | D183: GPPL $ | E183: Buy | F183: 167-172 | I183: 198-200 | J183: Open
A184: 63 | B184: 2016-08-04 | D184: WONDERLA HOLIDAYS LTD | E184: Accu | F184: 395-405 | I184: 475.00 | J184: Open
A185: 64 | B185: 2016-08-11 | D185: CAMLINFINE | E185: Accu | F185: 86.50 | H185: 130 | I185: 130.00 | J185: Profit of Rs.43.50/- | K185: =H185-F185 -> 43.50 | L185: =K185/F185 -> 50.29% | M185: Successful | N185: 2017-12-22
A186: 65 | B186: 2016-08-18 | D186: GRANULES | E186: Accu | F186: 133.5 | H186: 126.50 | I186: 178.00 | J186: Exit | K186: -7.00 | L186: -5.24% | M186: Unsuccessful | N186: 2016-09-02
A187: 66 | B187: 2016-08-31 | D187: VA TECH WABAG | E187: Accu | F187: 560.00 | H187: 725 | I187: 725.00 | J187: Target Achieved | K187: 165.00 | L187: 29.46% | M187: Successful | N187: 2016-03-27
A188: 67 | B188: 2016-09-01 | D188: SKIPPER LIMITED | E188: Accu | F188: 160.50 | H188: 210 | I188: 210.00 | J188: Target Achieved | K188: 49.50 | L188: 30.84% | M188: Successful | N188: 2017-05-16
A189: 68 | B189: 2016-10-03 | D189: IFB Industries | E189: Accu | F189: 430.00 | H189: 596 | I189: 575.00 | J189: Profit of Rs.166/- | K189: 166.00 | L189: 38.60% | M189: Successful | N189: 2017-02-03
A190: 69 | B190: 2016-10-14 | D190: ASIANTILES | E190: Accu | F190: 280.00 | H190: 345 | I190: 345.00 | J190: Target Achieved | K190: 65.00 | L190: 23.21% | M190: Successful | N190: 2017-03-20
A191: 70 | B191: 2016-10-14 | D191: DEEPIND | E191: Accu | F191: 245.00 | H191: 325.5 | I191: 330.00 | J191: Profit of Rs.80.5/- | K191: 80.50 | L191: 32.86% | M191: Successful | N191: 2017-02-03
A192: 71 | B192: 2016-10-17 | D192: DCBBANK | E192: Accu | F192: 125.00 | H192: 160 | I192: 160.00 | J192: Target Achieved | K192: 35.00 | L192: 28.00% | M192: Successful | N192: 2017-03-09
A193: 72 | B193: 2016-10-17 | D193: ORIENTREF | E193: Accu | F193: 114.00 | H193: 145 | I193: 145.00 | J193: Target Achieved | K193: 31.00 | L193: =K193/F193 -> 27.19% | M193: Successful | N193: 2017-05-04
A194: 73 | B194: 2016-10-17 | D194: GANECOS | E194: Accu | F194: 212.00 | H194: 280 | I194: 276.00 | J194: Profit of Rs.68/- | K194: 68.00 | L194: =K194/F194 -> 32.08% | M194: Successful | N194: 2017-05-03
A195: 74 | B195: 2016-11-04 | D195: NBCC | E195: Accu | F195: 155.00 | H195: 210 | I195: 210.00 | J195: Profit of Rs.55/- | K195: 55.00 | L195: =K195/F195 -> 35.48% | M195: Successful | N195: 2017-07-28
A196: 75 | B196: 2016-12-06 | D196: PRECAM | E196: Accu | F196: 148-153 | I196: 174.00 | J196: Open
A197: 76 | B197: 2016-12-08 | D197: INFRATEL | E197: Accu | F197: 380.00 | H197: 478 | I197: 468.00 | J197: Target Achieved | K197: 98.00 | L197: =K197/F197 -> 25.79% | M197: Successful | N197: 2017-10-17
A198: 77 | B198: 2016-12-30 | D198: GODREJPROP | E198: Accu | F198: 305.00 | H198: 375 | I198: 375.00 | J198: Target Achieved | K198: 70.00 | L198: 22.95% | M198: Successful | N198: 2017-02-02
A199: 78 | B199: 2017-01-04 | D199: DEEPAKNTR | E199: Accu | F199: 99.50 | H199: 158 | I199: 158.00 | J199: Target Achieved | K199: 58.50 | L199: 58.79% | M199: Successful | N199: 2017-06-12
A200: 79 | B200: 2017-02-20 | D200: SUBROS | E200: Accu | F200: 202.50 | H200: 234 | I200: 234.00 | J200: Target Achieved | K200: 31.50 | L200: 15.56% | M200: Successful | N200: 2017-04-11
A201: 80 | B201: 2017-02-20 | D201: RECLTD | E201: Accu | F201: 140.50 | H201: 220 | I201: 220.00 | J201: Target Achieved | K201: 79.50 | L201: 56.58% | M201: Successful | N201: 2017-05-09
A202: 81 | B202: 2017-03-24 | D202: VRLLOG | E202: Accu | F202: 300.50 | H202: 417.5 | I202: 420.00 | J202: Profit of Rs.117/- | K202: 117.00 | L202: 38.94% | M202: Successful | N202: 2017-12-01
A203: 82 | B203: 2017-03-24 | D203: FIEMIND | E203: Accu | F203: 850.00 | H203: 1042.5 | I203: 1023.00 | J203: Profit of Rs 192.50/- | K203: 192.50 | L203: 22.65% | M203: Successful | N203: 2017-04-05
A204: 83 | B204: 2017-04-05 | D204: RATNAMANI | E204: Accu | F204: 785.00 | H204: 930 | I204: 920.00 | J204: Profit of Rs.145/- | K204: 145.00 | L204: 18.47% | M204: Successful | N204: 2017-08-29
A205: 84 | B205: 2017-04-06 | D205: ZEEMEDIA | E205: Accu | F205: 39-41 | I205: 60.00 | J205: Open
A206: 85 | B206: 2017-04-12 | D206: DABUR | E206: Accu | F206: 289.50 | H206: 354 | I206: 360.00 | J206: Profit of Rs.64.5/- | K206: 64.50 | L206: =K206/F206 -> 22.28% | M206: Successful | N206: 2017-11-01
A207: 86 | B207: 2017-04-20 | D207: KPRMILL | E207: Accu | F207: 700.00 | H207: 840 | I207: 840.00 | J207: Profit of Rs.140/- | K207: 140.00 | L207: =K207/F207 -> 20.00% | M207: Successful | N207: 2017-06-07
A208: 87 | B208: 2017-05-22 | D208: GREAVESCOT | E208: Accu | F208: 153-158 | I208: 190.00 | J208: Open
A209: 88 | B209: 2017-06-01 | D209: ESSELPACK | E209: Accu | F209: 260 | H209: 311.00 | I209: 340.00 | J209: Part profit of Rs.51/- | K209: =H209-F209 -> 51.00 | L209: =K209/F209 -> 20% | M209: Successful | N209: 2017-11-17
A210: 89 | B210: 2017-06-15 | D210: KEI | E210: Accu | F210: 214.50 | H210: 262 | I210: 262.00 | J210: Profit of Rs.47.5/- | K210: =H210-F210 -> 47.50 | L210: 22.14% | M210: Successful | N210: 2017-08-30
A211: 90 | B211: 2017-07-17 | D211: MAYURUNIQ | E211: Accu | F211: 370.00 | H211: 447.5 | I211: 450.00 | J211: Target Achieved | K211: 77.50 | L211: 20.95% | M211: Successful | N211: 2017-10-27
A212: 91 | B212: 2017-07-27 | D212: RAMCOCEM | E212: Accu | F212: 657.50 | H212: 825 | I212: 820.00 | J212: Target Achieved | K212: 167.50 | L212: 25.48% | M212: Successful | N212: 2017-12-21
A213: 92 | B213: 2017-08-17 | D213: FINPIPE | E213: Accu | F213: 605.00 | H213: 750 | I213: 750.00 | J213: Profit of Rs.145/- | K213: 145.00 | L213: 23.97% | M213: Successful | N213: 2017-10-19
A214: 93 | B214: 2017-09-01 | D214: SHK | E214: Accu | F214: 255 | H214: 307.50 | I214: 320.00 | J214: Part profit of Rs.52.5/- | K214: 52.50 | L214: 21% | M214: Successful | N214: 2017-12-29
A215: 94 | B215: 2017-09-19 | D215: SKIPPER | E215: Accu | F215: 215.00 | H215: 258 | I215: 258.00 | J215: Target Achieved | K215: 43.00 | L215: 20.00% | M215: Successful | N215: 2017-11-01
A216: 95 | B216: 2017-09-20 | D216: CAMLINFINE | E216: Accu | F216: 75.00 | H216: 90 | I216: 90.00 | J216: Profit of Rs.15.00/- | K216: 15.00 | L216: 20.00% | M216: Successful | N216: 2017-10-11
A217: 96 | B217: 2017-10-03 | D217: GNA | E217: Accu | F217: 315.00 | H217: 392 | I217: 384.00 | J217: Profit of Rs.77/- | K217: 77.00 | L217: 24.44% | M217: Successful | N217: 2017-10-09
A218: 97 | B218: 2017-10-05 | D218: NOCIL | E218: Accu | F218: 145.00 | H218: 179 | I218: 180.00 | J218: Profit of Rs.34/- | K218: 34.00 | L218: 23.45% | M218: Successful | N218: 2017-10-17
A219: 98 | B219: 2017-10-06 | D219: CENTURYPLY | E219: Accu | F219: 256.00 | H219: 323 | I219: 320.00 | J219: Target Achieved | K219: 67.00 | L219: 26.17% | M219: Successful | N219: 2017-11-28
A220: 99 | B220: 2017-10-09 | D220: RECLTD | E220: Accu | F220: 152.5 | H220: 183.50 | I220: 210.00 | J220: Part Profit of Rs.31/- | K220: 31.00 | L220: 20% | M220: Successful | N220: 2017-11-03
A221: 100 | B221: 2017-10-09 | D221: EIHOTEL | E221: Accu | F221: 137.50 | H221: 184 | I221: 183.00 | J221: Profit of Rs.46.5/- | K221: 46.50 | L221: 33.82% | M221: Successful | N221: 2018-01-08
A222: 101 | B222: 2017-10-10 | D222: BOROSIL | E222: Accu | F222: 895.00 | H222: 1122.5 | I222: 1078.00 | J222: Profit of Rs.227.5/- | K222: 227.50 | L222: 25.42% | M222: Successful | N222: 2018-01-17
A223: 102 | B223: 2017-10-10 | D223: NRBBEARING | E223: Accu | F223: 125.50 | H223: 158 | I223: 155.00 | J223: Profit of Rs.32.5/- | K223: 32.50 | L223: 25.90% | M223: Successful | N223: 2017-11-28
A224: 103 | B224: 2017-10-12 | D224: CYIENT | E224: Accu | F224: 525.00 | H224: 629 | I224: 629.00 | J224: Target Achieved | K224: 104.00 | L224: 19.81% | M224: Successful | N224: 2018-01-19
A225: 104 | B225: 2017-11-07 | D225: HATSUN | E225: Accu | F225: 740.00 | H225: 892.5 | I225: 900.00 | J225: Profit of Rs.152.5/- | K225: 152.50 | L225: 20.61% | M225: Successful | N225: 2017-11-13
A226: 105 | B226: 2017-12-04 | D226: SANGHIIND | E226: Accu | F226: 118.50 | H226: 143.5 | I226: 145.00 | J226: Profit of Rs.25/- | K226: 25.00 | L226: 21.10% | M226: Successful | N226: 2017-12-28
A227: 106 | B227: 2017-12-05 | D227: ALLCARGO | E227: Accu | F227: 177.5 | H227: 215.00 | I227: 230.00 | J227: Part Profit of Rs.37.5/- | K227: 37.50 | L227: 21% | M227: Successful | N227: 2017-12-27
A228: 107 | B228: 2017-12-21 | D228: KAJARIACER | E228: Accu | F228: 710-720 | I228: 872.00 | J228: Open
A229: 108 | B229: 2017-12-29 | D229: GNA | E229: Accu | F229: 435.00 | H229: 542.5 | I229: 539.00 | J229: Target Achieved | K229: =H229-F229 -> 107.50 | L229: =K229/F229 -> 24.71% | M229: Successful | N229: 2018-04-16
A230: 109 | B230: 2017-12-29 | D230: ZENSARTECH | E230: Accu | F230: 885.00 | H230: 1090 | I230: 1084.00 | J230: Target Achieved | K230: 205.00 | L230: =K230/F230 -> 23.16% | M230: Successful | N230: 2018-04-23
A231: 110 | B231: 2018-02-07 | D231: GREAVESCOT | E231: Accu | F231: 130-132 | I231: 190.00 | J231: Open
A232: 111 | B232: 2018-02-27 | D232: MOLDTKPAC | E232: Accu | F232: 320-330 | I232: 398.00 | J232: Open
A233: 112 | B233: 2018-03-05 | D233: LICHSGFIN | E233: Accu | F233: 505-515 | I233: 672.00 | J233: Open
A234: 113 | B234: 2018-04-02 | D234: EVERESTIND | E234: Accu | F234: 485-500 | I234: 613.00 | J234: Open
A235: 114 | B235: 2018-04-04 | D235: GPPL | E235: Accu | F235: 140-143 | I235: 180.00 | J235: Open
A236: 115 | B236: 2018-04-19 | D236: MANPASAND | E236: Accu | F236: 425-435 | I236: 537.00 | J236: Open
A237: 116 | B237: 2018-04-30 | D237: HEIDELBERG | E237: Accu | F237: 154-158 | I237: 196.00 | J237: Open
F239: Reinitiated $
... 10 more rows

Sheet Call Tracker (Currency) (hidden)
A1: Master Trade High Risk
A2: Sr.no | B2: Date | C2: Company | D2: Rec | E2: Rec Price | F2: Stop Loss | G2: Call Closed At | H2: Target | I2: Remark | K2: Profit / Loss per share | L2: Gain / Loss per Lot | M2: Lot | N2: Status | O2: Closed Date
A3: 1 | B3: 2017-05-08 | C3: USDINR MAY FUT | D3: Buy | E3: 64.3935 | F3: 64.29 | G3: 64.66 | H3: 64.59 | I3: Profit of Rs.0.27/- | K3: 0.27 | L3: 266.5 | M3: 1000 | N3: Successful | O3: 2017-05-09 | R3: P
A4: 2 | B4: 2017-05-08 | C4: USDINR JUN FUT | D4: Buy | E4: 64.6535 | F4: 64.45 | G4: 64.965 | H4: 65.05 | I4: Profit of Rs 0.31/- | K4: 0.31 | L4: 311.5 | M4: 1000 | N4: Successful | O4: 2017-05-09 | R4: P
A5: 3 | B5: 2017-05-09 | C5: EUROINR MAY FUT | D5: Sell | E5: 70.65 | F5: 70.8 | G5: 70.07 | H5: 70.4 | I5: Profit of Rs 0.58/- | K5: 0.58 | L5: 580 | M5: 1000 | N5: Successful | O5: 2017-05-12 | R5: P
A6: 4 | B6: 2017-05-09 | C6: GBPINR MAY FUT | D6: Buy | E6: 83.774 | F6: 83.37 | G6: 83.37 | H6: 84.77 | I6: Loss of Rs 0.40/- | K6: -0.40 | L6: -404 | M6: 1000 | N6: Unsuccessful | O6: 2017-05-11 | R6: P
A7: 5 | B7: 2017-05-11 | C7: USDINR MAY FUT | D7: Buy | E7: 64.6555 | F7: 64.55 | G7: 64.55 | H7: 64.86 | I7: Loss of Rs.0.1055/- | K7: -0.1055 | L7: =K7*M7 -> -105.50 | M7: 1000 | N7: Unsuccessful | O7: 2017-05-11 | R7: P
A8: 6 | B8: 2017-05-15 | C8: USDINR MAY FUT | D8: Buy | E8: 64.2275 | F8: 64.08 | G8: 64.46 | H8: 64.48 | I8: Profit of Rs 0.23/- | K8: 0.23 | L8: 232.5 | M8: 1000 | N8: Successful | O8: 2017-05-18 | R8: P
A9: 7 | B9: 2017-05-19 | C9: USDINR MAY FUT | D9: Sell | E9: 64.83 | F9: 65 | G9: 65 | H9: 64.5 | I9: Loss of Rs.0.17/- | K9: -0.17 | L9: -170 | M9: 1000 | N9: Unsuccessful | O9: 2017-05-19 | R9: P
A10: 8 | B10: 2017-05-23 | C10: USDINR MAY FUT | D10: Buy | E10: 64.83 | F10: 64.62 | G10: 64.95 | H10: 65.2 | I10: Profit of Rs 0.12/- | K10: 0.12 | L10: 120 | M10: 1000 | N10: Successful | O10: 2017-05-24 | R10: P
A11: 9 | B11: 2017-05-25 | C11: USDINR MAY FUT | D11: Buy | E11: 64.57 | F11: 64.25 | G11: 64.56 | H11: 65 | I11: Loss of Rs.0.01/- | K11: -0.01 | L11: -10 | M11: 1000 | N11: Neutral | O11: 2017-05-29 | R11: P
A12: 10 | B12: 2017-05-30 | C12: USDINR JUN FUT | D12: Buy | E12: 64.9125 | F12: 64.71 | G12: 64.71 | H12: 65.31 | I12: Loss of Rs.0.20/- | K12: -0.20 | L12: -202.5 | M12: 1000 | N12: Unsuccessful | O12: 2017-05-31 | R12: P
A13: 11 | B13: 2017-06-01 | C13: USDINR JUN FUT | D13: Buy | E13: 64.655 | F13: 64.45 | G13: 64.45 | H13: 65.05 | I13: Loss of Rs.0.20/- | K13: =G13-E13 -> -0.20 | L13: =K13*M13 -> -205 | M13: 1000.00 | N13: Unsuccessful | O13: 2017-06-08 | R13: P
A14: 12 | B14: 2017-06-12 | C14: USDINR JUN FUT | D14: Buy | E14: 64.45 | F14: 64 | G14: 64.7625 | H14: 65.2 | I14: Profit of Rs 0.31/- | K14: 0.31 | L14: 312.5 | M14: 1000 | N14: Successful | O14: 2017-06-16
A15: 13 | B15: 2017-06-16 | C15: USDINR JUN FUT | D15: Buy | E15: 64.51 | F15: 64.2 | G15: 64.7 | H15: 65.11 | I15: Profit of Rs 0.19/- | K15: 0.19 | L15: 190 | M15: 1000 | N15: Successful | O15: 2017-06-21
A16: 14 | B16: 2017-06-22 | C16: USDINR JUN FUT | D16: Buy | E16: 64.56 | F16: 64.2 | G16: 64.2 | H16: 65.1 | I16: Loss of Rs.0.36/- | K16: -0.36 | L16: -360 | M16: 1000.00 | N16: Unsuccessful | O16: 2017-06-30
A17: 15 | B17: 2017-07-10 | C17: USDINR JUL FUT | D17: Buy | E17: 64.67 | F17: 64.4 | G17: 64.4 | H17: 65.15 | I17: Loss of Rs.0.27/- | K17: -0.27 | L17: -270 | M17: 1000.00 | N17: Unsuccessful | O17: 2017-07-31
A18: 16 | B18: 2017-08-02 | C18: USDINR AUG FUT | D18: Buy | E18: 64.235 | F18: 63.98 | G18: 63.98 | H18: 64.75 | I18: Loss of Rs.0.26/- | K18: -0.26 | L18: -255 | M18: 1000.00 | N18: Unsuccessful | O18: 2017-08-02
A19: 17 | B19: 2017-08-08 | C19: USDINR AUG FUT | D19: Buy | E19: 63.9425 | F19: 63.6 | G19: 64.15 | H19: 64.5 | I19: Profit of Rs 0.21/- | K19: 0.21 | L19: 207.5 | M19: 1000 | N19: Successful | O19: 2017-08-10
A20: 18 | B20: 2017-08-22 | C20: USDINR AUG FUT | D20: Buy | E20: 64.1175 | F20: 63.9 | G20: 64.01 | H20: 64.5 | I20: Loss of Rs.0.11/- | K20: =G20-E20 -> -0.11 | L20: =K20*M20 -> -107.5 | M20: 1000.00 | N20: Unsuccessful | O20: 2017-08-29
A21: 19 | B21: 2017-09-01 | C21: USDINR SEP FUT | D21: Buy | E21: 64.1 | F21: 63.8 | G21: 64.205 | H21: 64.7 | I21: Profit of Rs 0.11/- | K21: 0.11 | L21: 105 | M21: 1000 | N21: Successful | O21: 2017-09-01
A22: 20 | B22: 2017-09-04 | C22: USDINR SEP FUT | D22: Buy | E22: 64.095 | F22: 63.8 | G22: 64.195 | H22: 64.7 | I22: Profit of Rs 0.10/- | K22: 0.10 | L22: =K22*M22 -> 100 | M22: 1000 | N22: Successful | O22: 2017-09-04
A23: 21 | B23: 2017-09-05 | C23: USDINR SEP FUT | D23: Buy | E23: 64.25 | F23: 64 | G23: 64.355 | H23: 64.75 | I23: Profit of Rs 0.11/- | K23: =G23-E23 -> 0.11 | L23: =K23*M23 -> 105 | M23: 1000 | N23: Successful | O23: 2017-09-06
A24: 22 | B24: 2017-09-06 | C24: USDINR SEP FUT | D24: Sell | E24: 64.365 | F24: 64.5 | G24: 64.265 | H24: 64 | I24: Profit of Rs 0.10/- | K24: =E24-G24 -> 0.10 | L24: 100 | M24: 1000 | N24: Successful | O24: 2017-09-06
A25: 23 | B25: 2017-09-07 | C25: USDINR SEP FUT | D25: Buy | E25: 64.145 | F25: 63.9 | G25: 64.2565 | H25: 64.65 | I25: Profit of Rs 0.11/- | K25: =G25-E25 -> 0.11 | L25: =K25*M25 -> 111.5 | M25: 1000 | N25: Successful | O25: 2017-09-14
A26: 24 | B26: 2017-09-11 | C26: JPYINR SEP FUT | D26: Sell | E26: 59.0285 | F26: 59.25 | G26: 58.645 | H26: 58.5 | I26: Profit of Rs 0.38/- | K26: =E26-G26 -> 0.38 | L26: 383.5 | M26: 1000 | N26: Successful | O26: 2017-09-12
A27: 25 | B27: 2017-09-14 | C27: USDINR SEP FUT | D27: Buy | E27: 64.145 | F27: 63.95 | G27: 64.26 | H27: 64.5 | I27: Profit of Rs 0.12/- | K27: =G27-E27 -> 0.12 | L27: 115 | M27: 1000 | N27: Successful | O27: 2017-09-19
A28: 26 | B28: 2017-09-20 | C28: USDINR SEP FUT | D28: Buy | E28: 64.3515 | F28: 64.15 | G28: 64.57 | H28: 64.75 | I28: Profit of Rs 0.22/- | K28: =G28-E28 -> 0.22 | L28: =K28*M28 -> 218.5 | M28: 1000 | N28: Successful | O28: 2017-09-21
A29: 27 | B29: 2017-09-21 | C29: USDINR SEP FUT | D29: Sell | E29: 64.795 | F29: 65.05 | G29: 65.05 | H29: 64.4 | I29: Loss of Rs.0.17/- | K29: -0.17 | L29: -170 | M29: 1000.00 | N29: Unsuccessful | O29: 2017-09-22
A30: 28 | B30: 2017-09-25 | C30: USDINR SEP FUT | D30: Buy | E30: 64.77 | F30: 64.4 | G30: 64.92 | H30: 65.1 | I30: Profit of Rs 0.15/- | K30: =G30-E30 -> 0.15 | L30: =K30*M30 -> 150 | M30: 1000 | N30: Successful | O30: 2017-09-25
A31: 29 | B31: 2017-09-25 | C31: USDINR SEP FUT | D31: Sell | E31: 65.1077 | F31: 65.3 | G31: 65.3 | H31: 64.5 | I31: Loss of Rs.0.19/- | K31: -0.19 | L31: -190 | M31: 1000.00 | N31: Unsuccessful | O31: 2017-09-26
A32: 30 | B32: 2017-09-27 | C32: USDINR SEP FUT | D32: Sell | E32: 65.7225 | F32: 65.83 | G32: 65.7 | H32: 65.52 | I32: Profit of Rs 0.02/- | K32: =E32-G32 -> 0.02 | L32: =K32*M32 -> 22.5 | M32: 1000 | N32: Neutral | O32: 2017-09-27
A33: 31 | B33: 2017-09-27 | C33: USDINR OCT FUT | D33: Sell | E33: 66 | F33: 66.5 | G33: 65.895 | H33: 65 | I33: Profit of Rs 0.11/- | K33: =E33-G33 -> 0.11 | L33: 105 | M33: 1000 | N33: Successful | O33: 2017-09-27
A34: 32 | B34: 2017-09-28 | C34: USDINR OCT FUT | D34: Sell | E34: 66.075 | F34: 66.3 | G34: 65.96 | H34: 65.4 | I34: Profit of Rs 0.12/- | K34: =E34-G34 -> 0.12 | L34: =K34*M34 -> 115 | M34: 1000 | N34: Successful | O34: 2017-09-28
A35: 33 | B35: 2017-09-29 | C35: GBPINR OCT fut | D35: Buy | E35: 87.745 | F35: 87.5 | G35: 87.84 | H35: 88.25 | I35: Profit of Rs 0.09/- | K35: =G35-E35 -> 0.09 | L35: 95 | M35: 1000 | N35: Successful | O35: 2017-09-29
A36: 34 | B36: 2017-09-29 | C36: USDINR OCT FUT | D36: Buy | E36: 65.514 | F36: 65.25 | G36: 65.85 | H36: 66 | I36: Profit of Rs 0.34/- | K36: 0.34 | L36: =K36*M36 -> 336 | M36: 1000 | N36: Successful | O36: 2017-10-03
A37: 35 | B37: 2017-10-09 | C37: USDINR OCT FUT | D37: Buy | E37: 65.48 | F37: 65.23 | G37: 65.5775 | H37: 65.95 | I37: Profit of Rs 0.10/- | K37: =G37-E37 -> 0.10 | L37: =K37*M37 -> 97.5 | M37: 1000 | N37: Successful | O37: 2017-10-09
A38: 36 | B38: 2017-10-10 | C38: USDINR OCT FUT | D38: Buy | E38: 65.41 | F38: 65.15 | G38: 65.5075 | H38: 66 | I38: Profit of Rs 0.10/- | K38: 0.10 | L38: 97.5 | M38: 1000 | N38: Successful | O38: 2017-10-10
A39: 37 | B39: 2017-10-11 | C39: USDINR OCT FUT | D39: Buy | E39: 65.38 | F39: 65.13 | G39: 65.13 | H39: 65.88 | I39: Loss of Rs.0.25/- | K39: -0.25 | L39: -250 | M39: 1000.00 | N39: Unsuccessful | O39: 2017-10-13
A40: 38 | B40: 2017-10-16 | C40: USDINR OCT FUT | D40: Buy | E40: 64.7925 | F40: 64.54 | G40: 64.905 | H40: 65.3 | I40: Profit of Rs 0.11/- | K40: =G40-E40 -> 0.11 | L40: =K40*M40 -> 112.5 | M40: 1000 | N40: Successful | O40: 2017-10-17
A41: 39 | B41: 2017-10-23 | C41: USDINR OCT FUT | D41: Buy | E41: 65.115 | F41: 64.85 | G41: 65.21 | H41: 65.5 | I41: Profit of Rs 0.09/- | K41: =G41-E41 -> 0.09 | L41: =K41*M41 -> 95 | M41: 1000 | N41: Successful | O41: 2017-10-25
A42: 40 | B42: 2017-10-23 | C42: JPYINR OCT FUT | D42: Buy | E42: 57.285 | F42: 57.03 | G42: 57.38 | H42: 58.4 | I42: Profit of Rs 0.10/- | K42: =G42-E42 -> 0.10 | L42: =K42*M42 -> 95 | M42: 1000 | N42: Successful | O42: 2017-10-23
A43: 41 | B43: 2017-10-26 | C43: USDINR OCT FUT | D43: Buy | E43: 64.755 | F43: 64.5 | G43: 64.87 | H43: 65.25 | I43: Profit of Rs 0.12/- | K43: 0.12 | L43: 115 | M43: 1000 | N43: Successful | O43: 2017-10-25
A44: 42 | B44: 2017-10-30 | C44: USDINR NOV FUT | D44: Buy | E44: 65.035 | F44: 64.79 | G44: 64.79 | H44: 65.5 | I44: Loss of Rs.0.24/- | K44: -0.24 | L44: -245 | M44: 1000.00 | N44: Unsuccessful | O44: 2017-11-01
A45: 43 | B45: 2017-11-01 | C45: JPYINR NOV FUT | D45: Buy | E45: 56.9875 | F45: 56.73 | G45: 57.0959 | H45: 57.5 | I45: Profit of Rs 0.11/- | K45: =G45-E45 -> 0.11 | L45: =K45*M45 -> 108.4 | M45: 1000 | N45: Successful | O45: 2017-11-07
A46: 44 | B46: 2017-11-02 | C46: USDINR NOV FUT | D46: Buy | E46: 64.7838 | F46: 64.5 | G46: 64.89 | H46: 65.25 | I46: Profit of Rs 0.11/- | K46: =G46-E46 -> 0.11 | L46: =K46*M46 -> 106.2 | M46: 1000 | N46: Successful | O46: 2017-11-06
A47: 45 | B47: 2017-11-08 | C47: USDINR NOV FUT | D47: Buy | E47: 65.1363 | F47: 64.8375 | G47: 65.235 | H47: 65.73 | I47: Profit of Rs 0.10/- | K47: =G47-E47 -> 0.10 | L47: =K47*M47 -> 98.7 | M47: 1000 | N47: Successful | O47: 2017-11-10
A48: 46 | B48: 2017-11-08 | C48: GBPINR NOV FUT | D48: Buy | E48: 85.4983 | F48: 85.25 | G48: 85.6 | H48: 86 | I48: Profit of Rs 0.10/- | K48: =G48-E48 -> 0.10 | L48: =K48*M48 -> 101.7 | M48: 1000 | N48: Successful | O48: 2017-11-09
A49: 47 | B49: 2017-11-16 | C49: EURINR NOV FUT | D49: Buy | E49: 76.8975 | F49: 76.3975 | G49: 76.3975 | H49: 77.8975 | I49: Loss of Rs.0.50/- | K49: =G49-E49 -> -0.50 | L49: -500 | M49: 1000.00 | N49: Unsuccessful | O49: 2017-11-01
A50: 48 | B50: 2017-11-16 | C50: JPYINR NOV FUT | D50: Buy | E50: 57.6625 | F50: 57.2675 | G50: 57.8075 | H50: 58.6675 | I50: Profit of Rs 0.14/- | K50: =G50-E50 -> 0.14 | L50: =K50*M50 -> 145 | M50: 1000 | N50: Successful | O50: 2017-11-17
A51: 49 | B51: 2017-11-22 | C51: EURINR NOV FUT | D51: Buy | E51: 76.175 | F51: 75.95 | G51: 76.335 | H51: 76.6 | I51: Profit of Rs 0.16/- | K51: 0.16 | L51: =K51*M51 -> 160 | M51: 1000 | N51: Successful | O51: 2017-11-22
A52: 50 | B52: 2017-11-22 | C52: USDINR NOV FUT | D52: Buy | E52: 64.87 | F52: 64.5 | G52: 64.5 | H52: 65.5 | I52: Loss of Rs.0.37/- | K52: -0.37 | L52: -370 | M52: 1000.00 | N52: Unsuccessful | O52: 2017-11-27
A53: 51 | B53: 2017-11-28 | C53: GBPINR DEC FUT | D53: Buy | E53: 86.17 | F53: 85.85 | G53: 86.46 | H53: 87 | I53: Profit of Rs 0.29/- | K53: 0.29 | L53: =K53*M53 -> 290 | M53: 1000 | N53: Successful | O53: 2017-11-29
A54: 52 | B54: 2017-11-28 | C54: JPYINR DEC FUT | D54: Buy | E54: 58.16 | F54: 57.85 | G54: 57.85 | H54: 58.6 | I54: Loss of Rs.0.31/- | K54: -0.31 | L54: -310 | M54: 1000.00 | N54: Unsuccessful | O54: 2017-11-29
A55: 53 | B55: 2017-11-28 | C55: USDINR DEC FUT | D55: Buy | E55: 64.63 | F55: 64.13 | G55: 64.13 | H55: 65.63 | I55: Loss of Rs.0.50/- | K55: -0.50 | L55: =K55*M55 -> -500 | M55: 1000.00 | N55: Unsuccessful | O55: 2017-12-15
A56: 54 | B56: 2017-11-28 | C56: EURINR DEC FUT | D56: Buy | E56: 76.93 | F56: 76.43 | G56: 76.43 | H56: 77.93 | I56: Loss of Rs.0.50/- | K56: =G56-E56 -> -0.50 | L56: =K56*M56 -> -500 | M56: 1000.00 | N56: Unsuccessful | O56: 2017-11-29
A57: 55 | B57: 2017-12-12 | C57: EURINR DEC FUT | D57: Buy | E57: 76.105 | F57: 75.7 | G57: 76.27 | H57: 76.8 | I57: Profit of Rs 0.16/- | K57: =G57-E57 -> 0.16 | L57: 165 | M57: 1000 | N57: Successful | O57: 2017-12-14
A58: 56 | B58: 2017-12-12 | C58: JPYINR DEC FUT | D58: Buy | E58: 56.975 | F58: 56.7 | G58: 57.21 | H58: 57.6 | I58: Profit of Rs 0.23/- | K58: =G58-E58 -> 0.23 | L58: =K58*M58 -> 235 | M58: 1000 | N58: Successful | O58: 2017-12-14

Sheet Sheet2 (hidden)
A1: SYMBOL | B1: SERIES | C1: OPEN | D1: HIGH | E1: LOW | F1: CLOSE | G1: LAST | H1: PREVCLOSE | I1: TOTTRDQTY | J1: TOTTRDVAL | K1: TIMESTAMP | L1: TOTALTRADES | M1: ISIN | N1: ISIN
A2: 20MICRONS | B2: EQ | C2: 46.1 | D2: 47.2 | E2: 45.05 | F2: 45.35 | G2: 45.05 | H2: 46 | I2: 73097 | J2: 3348468.95 | K2: 2018-05-11 | L2: 546 | M2: INE144J01027
A3: 21STCENMGM | B3: EQ | C3: 41.9 | D3: 42.7 | E3: 41.25 | F3: 41.25 | G3: 41.25 | H3: 41.9 | I3: 1945 | J3: 82421.75 | K3: 2018-05-11 | L3: 12 | M3: INE253B01015
A4: 3IINFOTECH | B4: EQ | C4: 4.45 | D4: 4.45 | E4: 4.15 | F4: 4.35 | G4: 4.4 | H4: 4.35 | I4: 3244886 | J4: 13903294.3 | K4: 2018-05-11 | L4: 4029 | M4: INE748C01020
A5: 3MINDIA | B5: EQ | C5: 20350 | D5: 20500 | E5: 20300 | F5: 20400.65 | G5: 20400 | H5: 20345.2 | I5: 1104 | J5: 22550174.35 | K5: 2018-05-11 | L5: 469 | M5: INE470A01017
A6: 3PLAND | B6: EQ | C6: 14 | D6: 14 | E6: 13.8 | F6: 14 | G6: 14 | H6: 14 | I6: 741 | J6: 10286 | K6: 2018-05-11 | L6: 9 | M6: INE105C01023
A7: 5PAISA | B7: EQ | C7: 470 | D7: 484 | E7: 467.5 | F7: 473.1 | G7: 478 | H7: 470.85 | I7: 7659 | J7: 3668729.95 | K7: 2018-05-11 | L7: 432 | M7: INE618L01018
A8: 63MOONS | B8: EQ | C8: 85.9 | D8: 87.5 | E8: 83.5 | F8: 83.75 | G8: 83.5 | H8: 85.65 | I8: 142666 | J8: 12035383.75 | K8: 2018-05-11 | L8: 2690 | M8: INE111B01023
A9: 8KMILES | B9: EQ | C9: 684 | D9: 694 | E9: 671 | F9: 679.3 | G9: 675.6 | H9: 680.15 | I9: 92391 | J9: 63233017.4 | K9: 2018-05-11 | L9: 3617 | M9: INE650K01021
A10: A2ZINFRA | B10: EQ | C10: 23.45 | D10: 23.45 | E10: 21.7 | F10: 22.55 | G10: 22.3 | H10: 22.95 | I10: 527639 | J10: 11703850.25 | K10: 2018-05-11 | L10: 1805 | M10: INE619I01012
A11: AARTIDRUGS | B11: EQ | C11: 571.15 | D11: 571.15 | E11: 538.6 | F11: 555.45 | G11: 555.9 | H11: 573 | I11: 7510 | J11: 4156441.3 | K11: 2018-05-11 | L11: 425 | M11: INE767A01016
A12: AARTIIND | B12: EQ | C12: 1323.15 | D12: 1335.55 | E12: 1295 | F12: 1326.9 | G12: 1335.55 | H12: 1323.15 | I12: 12943 | J12: 17134048.8 | K12: 2018-05-11 | L12: 1536 | M12: INE769A01020
A13: AARVEEDEN | B13: EQ | C13: 42.4 | D13: 43.95 | E13: 42.4 | F13: 42.95 | G13: 43 | H13: 43.1 | I13: 11034 | J13: 474594.5 | K13: 2018-05-11 | L13: 68 | M13: INE273D01019
A14: ABAN | B14: EQ | C14: 170.15 | D14: 170.4 | E14: 166.1 | F14: 166.75 | G14: 166.65 | H14: 169.85 | I14: 454879 | J14: 76332789.65 | K14: 2018-05-11 | L14: 6159 | M14: INE421A01028
A15: ABB | B15: EQ | C15: 1275 | D15: 1276 | E15: 1235.3 | F15: 1245.15 | G15: 1238.9 | H15: 1268.15 | I15: 138565 | J15: 174347242.7 | K15: 2018-05-11 | L15: 2731 | M15: INE117A01022
A16: ABBOTINDIA | B16: EQ | C16: 6175.1 | D16: 6379 | E16: 6175.1 | F16: 6341.2 | G16: 6320 | H16: 6254.1 | I16: 8898 | J16: 56198295.65 | K16: 2018-05-11 | L16: 3759 | M16: INE358A01014
A17: ABCAPITAL | B17: EQ | C17: 155.05 | D17: 155.5 | E17: 150.7 | F17: 151.4 | G17: 151.15 | H17: 154.7 | I17: 1384798 | J17: 211246131.8 | K17: 2018-05-11 | L17: 15199 | M17: INE674K01013
A18: ABFRL | B18: EQ | C18: 145.85 | D18: 159.4 | E18: 144.15 | F18: 150.6 | G18: 148 | H18: 144.75 | I18: 4097756 | J18: 620911593.5 | K18: 2018-05-11 | L18: 24811 | M18: INE647O01011
A19: ABMINTLTD | B19: BE | C19: 23.75 | D19: 23.75 | E19: 23.75 | F19: 23.75 | G19: 23.75 | H19: 25 | I19: 181 | J19: 4298.75 | K19: 2018-05-11 | L19: 6 | M19: INE251C01017
A20: ACC | B20: EQ | C20: 1499 | D20: 1499 | E20: 1461.35 | F20: 1466.55 | G20: 1466 | H20: 1493.85 | I20: 361860 | J20: 533373180.9 | K20: 2018-05-11 | L20: 15955 | M20: INE012A01025
A21: ACCELYA | B21: EQ | C21: 1286.4 | D21: 1295 | E21: 1270 | F21: 1275.95 | G21: 1270 | H21: 1296.25 | I21: 2860 | J21: 3670666.25 | K21: 2018-05-11 | L21: 367 | M21: INE793A01012
A22: ACE | B22: EQ | C22: 181.85 | D22: 183 | E22: 177.55 | F22: 179.1 | G22: 179.45 | H22: 181.25 | I22: 388805 | J22: 69659052.85 | K22: 2018-05-11 | L22: 5558 | M22: INE731H01025
A23: ADANIENT | B23: EQ | C23: 127.55 | D23: 129.4 | E23: 123.4 | F23: 127.8 | G23: 127.85 | H23: 126.65 | I23: 5943405 | J23: 750221260 | K23: 2018-05-11 | L23: 31924 | M23: INE423A01024
A24: ADANIPORTS | B24: EQ | C24: 412.35 | D24: 414.5 | E24: 410.85 | F24: 412.7 | G24: 413 | H24: 410.8 | I24: 1442596 | J24: 595229279.3 | K24: 2018-05-11 | L24: 22672 | M24: INE742F01042
A25: ADANIPOWER | B25: EQ | C25: 24.5 | D25: 24.5 | E25: 23.5 | F25: 23.85 | G25: 23.8 | H25: 24.4 | I25: 7272649 | J25: 173874512.2 | K25: 2018-05-11 | L25: 8168 | M25: INE814H01011
A26: ADANITRANS | B26: EQ | C26: 174 | D26: 174 | E26: 163.05 | F26: 164.8 | G26: 163.4 | H26: 168.65 | I26: 939316 | J26: 156118427.1 | K26: 2018-05-11 | L26: 9913 | M26: INE931S01010
A27: ADFFOODS | B27: EQ | C27: 235.6 | D27: 249 | E27: 229.25 | F27: 244.05 | G27: 242 | H27: 235.85 | I27: 175837 | J27: 42028167.85 | K27: 2018-05-11 | L27: 3715 | M27: INE982B01019
A28: ADHUNIK | B28: EQ | C28: 3.25 | D28: 3.4 | E28: 3.2 | F28: 3.25 | G28: 3.25 | H28: 3.25 | I28: 133534 | J28: 434165.05 | K28: 2018-05-11 | L28: 64 | M28: INE400H01019
A29: ADHUNIKIND | B29: EQ | C29: 75.95 | D29: 76 | E29: 72.2 | F29: 72.4 | G29: 72.3 | H29: 76 | I29: 32370 | J29: 2377179.3 | K29: 2018-05-11 | L29: 131 | M29: INE452L01012
A30: ADLABS | B30: EQ | C30: 47.4 | D30: 47.65 | E30: 45.1 | F30: 46.3 | G30: 46.2 | H30: 46.9 | I30: 33782 | J30: 1566195.55 | K30: 2018-05-11 | L30: 471 | M30: INE172N01012
A31: ADORWELD | B31: EQ | C31: 383.35 | D31: 388 | E31: 376 | F31: 378.4 | G31: 376.5 | H31: 383.35 | I31: 8111 | J31: 3089154.45 | K31: 2018-05-11 | L31: 448 | M31: INE045A01017
A32: ADROITINFO | B32: EQ | C32: 29.7 | D32: 30 | E32: 28.35 | F32: 29.15 | G32: 29.6 | H32: 28.35 | I32: 17903 | J32: 526046.05 | K32: 2018-05-11 | L32: 65 | M32: INE737B01033
A33: ADSL | B33: EQ | C33: 18.7 | D33: 18.95 | E33: 18 | F33: 18.2 | G33: 18.65 | H33: 18.85 | I33: 12362 | J33: 227416.5 | K33: 2018-05-11 | L33: 91 | M33: INE102I01027
A34: ADVANIHOTR | B34: EQ | C34: 63 | D34: 64.65 | E34: 62 | F34: 62.45 | G34: 63.8 | H34: 63.45 | I34: 12404 | J34: 789113.3 | K34: 2018-05-11 | L34: 181 | M34: INE199C01026
A35: ADVENZYMES | B35: EQ | C35: 238.9 | D35: 241.3 | E35: 234.95 | F35: 238.15 | G35: 236.55 | H35: 238.1 | I35: 103348 | J35: 24604330.6 | K35: 2018-05-11 | L35: 2710 | M35: INE837H01020
A36: AEGISCHEM | B36: EQ | C36: 288.1 | D36: 288.15 | E36: 278 | F36: 278.85 | G36: 278 | H36: 284.6 | I36: 57872 | J36: 16294364.05 | K36: 2018-05-11 | L36: 1543 | M36: INE208C01025
A37: AFL | B37: EQ | C37: 52.25 | D37: 53.45 | E37: 52.05 | F37: 52.05 | G37: 52.05 | H37: 54.75 | I37: 20567 | J37: 1071555.75 | K37: 2018-05-11 | L37: 85 | M37: INE020G01017
A38: AGARIND | B38: BE | C38: 272.25 | D38: 287 | E38: 270.75 | F38: 285.15 | G38: 286.45 | H38: 284.95 | I38: 1184 | J38: 326337.4 | K38: 2018-05-11 | L38: 47 | M38: INE204E01012
A39: AGCNET | B39: EQ | C39: 113 | D39: 118 | E39: 113 | F39: 117.5 | G39: 117.95 | H39: 113.9 | I39: 494 | J39: 57659.35 | K39: 2018-05-11 | L39: 23 | M39: INE676A01019
A40: AGLSL | B40: EQ | C40: 105.15 | D40: 105.15 | E40: 98.1 | F40: 98.95 | G40: 98.35 | H40: 101.7 | I40: 11225 | J40: 1117698.05 | K40: 2018-05-11 | L40: 165 | M40: INE517U01013
A41: AGRITECH | B41: EQ | C41: 125.05 | D41: 127.65 | E41: 123.2 | F41: 124.85 | G41: 125.15 | H41: 126.05 | I41: 15680 | J41: 1957186.4 | K41: 2018-05-11 | L41: 534 | M41: INE449G01018
A42: AHLEAST | B42: EQ | C42: 339.7 | D42: 339.7 | E42: 322.15 | F42: 322.15 | G42: 322.15 | H42: 339.1 | I42: 1569 | J42: 507351.8 | K42: 2018-05-11 | L42: 45 | M42: INE926K01017
A43: AHLUCONT | B43: EQ | C43: 408 | D43: 429 | E43: 400.55 | F43: 417.85 | G43: 422 | H43: 406.65 | I43: 8285 | J43: 3455961.8 | K43: 2018-05-11 | L43: 483 | M43: INE758C01029
A44: AHLWEST | B44: BE | C44: 295.05 | D44: 315 | E44: 295.05 | F44: 315 | G44: 315 | H44: 305.75 | I44: 19 | J44: 5945.1 | K44: 2018-05-11 | L44: 4 | M44: INE915K01010
A45: AIAENG | B45: EQ | C45: 1449.6 | D45: 1470 | E45: 1424.75 | F45: 1462.35 | G45: 1462 | H45: 1439.35 | I45: 22568 | J45: 32822420.2 | K45: 2018-05-11 | L45: 3935 | M45: INE212H01026
A46: AIFL | B46: EQ | C46: 465.1 | D46: 470 | E46: 455.5 | F46: 459.35 | G46: 455.5 | H46: 464.85 | I46: 58925 | J46: 27209338.1 | K46: 2018-05-11 | L46: 635 | M46: INE428O01016
A47: AJANTPHARM | B47: EQ | C47: 1104 | D47: 1105 | E47: 1052.5 | F47: 1059.7 | G47: 1054 | H47: 1102.95 | I47: 417145 | J47: 444930847.6 | K47: 2018-05-11 | L47: 12811 | M47: INE031B01049
A48: AJMERA | B48: EQ | C48: 250.45 | D48: 253.95 | E48: 248 | F48: 249.8 | G48: 249.3 | H48: 248.5 | I48: 83047 | J48: 20760935.4 | K48: 2018-05-11 | L48: 1813 | M48: INE298G01027
A49: AKSHARCHEM | B49: EQ | C49: 590.1 | D49: 600.05 | E49: 590.1 | F49: 593.25 | G49: 592 | H49: 599.25 | I49: 4391 | J49: 2605219.6 | K49: 2018-05-11 | L49: 223 | M49: INE542B01011
A50: AKSHOPTFBR | B50: EQ | C50: 34.65 | D50: 34.95 | E50: 33.7 | F50: 34.05 | G50: 33.85 | H50: 34.6 | I50: 339888 | J50: 11669299.05 | K50: 2018-05-11 | L50: 1453 | M50: INE523B01011
A51: AKZOINDIA | B51: EQ | C51: 1960.35 | D51: 1969 | E51: 1925 | F51: 1941.05 | G51: 1947 | H51: 1920.4 | I51: 31752 | J51: 61724080.6 | K51: 2018-05-11 | L51: 6525 | M51: INE133A01011
A52: ALANKIT | B52: EQ | C52: 37.75 | D52: 37.75 | E52: 36 | F52: 37 | G52: 36.9 | H52: 36 | I52: 185080 | J52: 6831782.9 | K52: 2018-05-11 | L52: 1359 | M52: INE914E01040
A53: ALBERTDAVD | B53: EQ | C53: 366.65 | D53: 376 | E53: 366 | F53: 370.55 | G53: 370.5 | H53: 375.4 | I53: 1644 | J53: 607831.15 | K53: 2018-05-11 | L53: 30 | M53: INE155C01010
A54: ALBK | B54: EQ | C54: 45.7 | D54: 46.45 | E54: 45.05 | F54: 45.7 | G54: 45.4 | H54: 46 | I54: 4225728 | J54: 193181404.2 | K54: 2018-05-11 | L54: 10004 | M54: INE428A01015
A55: ALCHEM | B55: BE | C55: 8.75 | D55: 8.75 | E55: 8.1 | F55: 8.1 | G55: 8.1 | H55: 8.5 | I55: 10955 | J55: 91538.95 | K55: 2018-05-11 | L55: 19 | M55: INE964B01033
A56: ALEMBICLTD | B56: EQ | C56: 54 | D56: 54.35 | E56: 51.55 | F56: 51.95 | G56: 52.1 | H56: 53.85 | I56: 221464 | J56: 11634753.5 | K56: 2018-05-11 | L56: 2411 | M56: INE426A01027
A57: ALICON | B57: EQ | C57: 623 | D57: 637.25 | E57: 613.5 | F57: 628.05 | G57: 634.4 | H57: 618.85 | I57: 1684 | J57: 1058837.1 | K57: 2018-05-11 | L57: 134 | M57: INE062D01024
A58: ALKALI | B58: EQ | C58: 78 | D58: 83 | E58: 77.5 | F58: 82.15 | G58: 82.95 | H58: 78.5 | I58: 17446 | J58: 1420712.35 | K58: 2018-05-11 | L58: 294 | M58: INE773I01017
A59: ALKEM | B59: EQ | C59: 2032.95 | D59: 2032.95 | E59: 1960 | F59: 2005.85 | G59: 1995.1 | H59: 2024.55 | I59: 21707 | J59: 43224121.45 | K59: 2018-05-11 | L59: 3597 | M59: INE540L01014
A60: ALKYLAMINE | B60: EQ | C60: 625.05 | D60: 636.2 | E60: 618 | F60: 618.95 | G60: 618 | H60: 626.2 | I60: 2524 | J60: 1578994.75 | K60: 2018-05-11 | L60: 168 | M60: INE150B01021
A61: ALLCARGO | B61: EQ | C61: 132.85 | D61: 132.85 | E61: 128 | F61: 128.5 | G61: 128.8 | H61: 132.05 | I61: 277667 | J61: 36092686.5 | K61: 2018-05-11 | L61: 3522 | M61: INE418H01029
A62: ALLSEC | B62: EQ | C62: 372.3 | D62: 379 | E62: 363.3 | F62: 364.7 | G62: 364 | H62: 372.3 | I62: 11405 | J62: 4174767.2 | K62: 2018-05-11 | L62: 239 | M62: INE835G01018
A63: ALMONDZ | B63: BE | C63: 27.65 | D63: 30.45 | E63: 27.65 | F63: 30.45 | G63: 30.45 | H63: 29 | I63: 27227 | J63: 827010.55 | K63: 2018-05-11 | L63: 60 | M63: INE326B01027
A64: ALOKTEXT | B64: EQ | C64: 1.7 | D64: 1.8 | E64: 1.7 | F64: 1.75 | G64: 1.8 | H64: 1.75 | I64: 7525741 | J64: 13022754.3 | K64: 2018-05-11 | L64: 1867 | M64: INE270A01011
A65: ALPA | B65: EQ | C65: 37.65 | D65: 37.7 | E65: 35.2 | F65: 35.5 | G65: 35.2 | H65: 37.5 | I65: 19592 | J65: 708657.8 | K65: 2018-05-11 | L65: 160 | M65: INE385I01010
A66: ALPHAGEO | B66: EQ | C66: 790.2 | D66: 811.25 | E66: 782.5 | F66: 789.55 | G66: 789.05 | H66: 788.15 | I66: 5707 | J66: 4539534.35 | K66: 2018-05-11 | L66: 531 | M66: INE137C01018
A67: ALPSINDUS | B67: BE | C67: 2.3 | D67: 2.35 | E67: 2.2 | F67: 2.25 | G67: 2.35 | H67: 2.3 | I67: 5904 | J67: 13226.15 | K67: 2018-05-11 | L67: 18 | M67: INE093B01015
A68: AMARAJABAT | B68: EQ | C68: 874.95 | D68: 875.6 | E68: 850.85 | F68: 863.4 | G68: 860 | H68: 871.8 | I68: 500891 | J68: 430962489.1 | K68: 2018-05-11 | L68: 10464 | M68: INE885A01032
A69: AMBER | B69: EQ | C69: 1160 | D69: 1180 | E69: 1140 | F69: 1177 | G69: 1176 | H69: 1151.7 | I69: 20884 | J69: 24404935.35 | K69: 2018-05-11 | L69: 4463 | M69: INE371P01015
A70: AMBIKCO | B70: EQ | C70: 1400.05 | D70: 1415.65 | E70: 1373.05 | F70: 1378.45 | G70: 1374 | H70: 1395.55 | I70: 1694 | J70: 2353013.55 | K70: 2018-05-11 | L70: 295 | M70: INE540G01014
A71: AMBUJACEM | B71: EQ | C71: 220.5 | D71: 221.15 | E71: 216.15 | F71: 217.15 | G71: 216.5 | H71: 220.05 | I71: 3917464 | J71: 856006092.4 | K71: 2018-05-11 | L71: 16622 | M71: INE079A01024
A72: AMDIND | B72: EQ | C72: 27.3 | D72: 27.4 | E72: 26.65 | F72: 27.15 | G72: 27 | H72: 27.4 | I72: 7523 | J72: 203650.25 | K72: 2018-05-11 | L72: 62 | M72: INE005I01014
A73: AMJLAND | B73: EQ | C73: 33 | D73: 34.6 | E73: 32.5 | F73: 33.55 | G73: 33.4 | H73: 33.25 | I73: 397031 | J73: 13381187.6 | K73: 2018-05-11 | L73: 2105 | M73: INE606A01024
A74: AMRUTANJAN | B74: EQ | C74: 273 | D74: 275.8 | E74: 268.25 | F74: 274.1 | G74: 272.35 | H74: 271.6 | I74: 8250 | J74: 2243919.05 | K74: 2018-05-11 | L74: 375 | M74: INE098F01031
A75: ANANTRAJ | B75: EQ | C75: 42.9 | D75: 43 | E75: 41.5 | F75: 42.3 | G75: 42.2 | H75: 42.45 | I75: 434587 | J75: 18357653.55 | K75: 2018-05-11 | L75: 2047 | M75: INE242C01024
A76: ANDHRABANK | B76: EQ | C76: 36.2 | D76: 36.7 | E76: 35.2 | F76: 36.4 | G76: 36.35 | H76: 36.2 | I76: 3275341 | J76: 118009741.8 | K76: 2018-05-11 | L76: 6825 | M76: INE434A01013
A77: ANDHRACEMT | B77: EQ | C77: 10.95 | D77: 11 | E77: 10 | F77: 10.1 | G77: 10.2 | H77: 10.5 | I77: 189710 | J77: 1969090.2 | K77: 2018-05-11 | L77: 272 | M77: INE666E01012
A78: ANDHRSUGAR | B78: EQ | C78: 406.55 | D78: 412 | E78: 403 | F78: 407.35 | G78: 408 | H78: 408.7 | I78: 10896 | J78: 4444438.25 | K78: 2018-05-11 | L78: 461 | M78: INE715B01013
A79: ANGIND | B79: BE | C79: 3.25 | D79: 3.25 | E79: 3.1 | F79: 3.1 | G79: 3.1 | H79: 3.25 | I79: 590 | J79: 1848.5 | K79: 2018-05-11 | L79: 13 | M79: INE017D01010
A80: ANIKINDS | B80: BE | C80: 35 | D80: 36.85 | E80: 34.8 | F80: 36.4 | G80: 36.1 | H80: 35.55 | I80: 5827 | J80: 210691.2 | K80: 2018-05-11 | L80: 59 | M80: INE087B01017
A81: ANSALAPI | B81: EQ | C81: 21.75 | D81: 22.25 | E81: 21.45 | F81: 21.55 | G81: 21.5 | H81: 22 | I81: 89932 | J81: 1957523.15 | K81: 2018-05-11 | L81: 141 | M81: INE436A01026
A82: ANSALHSG | B82: EQ | C82: 19.2 | D82: 19.2 | E82: 17.8 | F82: 18.05 | G82: 18.2 | H82: 18.85 | I82: 51031 | J82: 934395.55 | K82: 2018-05-11 | L82: 265 | M82: INE880B01015
A83: ANTGRAPHIC | B83: BE | C83: 0.85 | D83: 0.85 | E83: 0.75 | F83: 0.75 | G83: 0.75 | H83: 0.8 | I83: 54508 | J83: 42200.75 | K83: 2018-05-11 | L83: 21 | M83: INE414B01021
A84: APARINDS | B84: EQ | C84: 791.95 | D84: 795 | E84: 780.95 | F84: 788.8 | G84: 790 | H84: 785.15 | I84: 4517 | J84: 3558438.95 | K84: 2018-05-11 | L84: 649 | M84: INE372A01015
A85: APCL | B85: EQ | C85: 199.9 | D85: 209.5 | E85: 190 | F85: 191.2 | G85: 193.85 | H85: 195.05 | I85: 4722 | J85: 931376.45 | K85: 2018-05-11 | L85: 126 | M85: INE071F01012
A86: APCOTEXIND | B86: EQ | C86: 550.25 | D86: 569 | E86: 550.1 | F86: 554.3 | G86: 551.05 | H86: 550.25 | I86: 11572 | J86: 6460574.9 | K86: 2018-05-11 | L86: 474 | M86: INE116A01024
A87: APEX | B87: EQ | C87: 627.7 | D87: 633.95 | E87: 615 | F87: 617.5 | G87: 618.75 | H87: 627.7 | I87: 39691 | J87: 24723176.5 | K87: 2018-05-11 | L87: 1986 | M87: INE346W01013
A88: APLAPOLLO | B88: EQ | C88: 2111.5 | D88: 2120 | E88: 2092.05 | F88: 2113.8 | G88: 2110 | H88: 2111.5 | I88: 2867 | J88: 6043135.15 | K88: 2018-05-11 | L88: 300 | M88: INE702C01019
A89: APLLTD | B89: EQ | C89: 495 | D89: 499.05 | E89: 487.1 | F89: 488.55 | G89: 487.9 | H89: 497.6 | I89: 14952 | J89: 7340682.15 | K89: 2018-05-11 | L89: 1129 | M89: INE901L01018
A90: APOLLO | B90: EQ | C90: 219 | D90: 219 | E90: 211.2 | F90: 213.95 | G90: 211.2 | H90: 217.6 | I90: 30398 | J90: 6540040.95 | K90: 2018-05-11 | L90: 662 | M90: INE713T01010
A91: APOLLOHOSP | B91: EQ | C91: 1033 | D91: 1052.55 | E91: 1012.5 | F91: 1044.9 | G91: 1050 | H91: 1024.15 | I91: 292768 | J91: 301916181 | K91: 2018-05-11 | L91: 15959 | M91: INE437A01024
A92: APOLLOTYRE | B92: EQ | C92: 288.6 | D92: 289.65 | E92: 274.1 | F92: 280 | G92: 279.85 | H92: 283.6 | I92: 3776298 | J92: 1063232857 | K92: 2018-05-11 | L92: 34195 | M92: INE438A01022
A93: APOLSINHOT | B93: EQ | C93: 1813 | D93: 1860 | E93: 1749 | F93: 1782.85 | G93: 1781.05 | H93: 1749.65 | I93: 1850 | J93: 3358094.5 | K93: 2018-05-11 | L93: 196 | M93: INE451F01016
A94: APTECHT | B94: EQ | C94: 268.75 | D94: 269.65 | E94: 262.7 | F94: 264.05 | G94: 263.2 | H94: 267.5 | I94: 177613 | J94: 47316171.35 | K94: 2018-05-11 | L94: 4320 | M94: INE266F01018
A95: ARCHIDPLY | B95: EQ | C95: 88.15 | D95: 89.85 | E95: 86.65 | F95: 87.2 | G95: 87.1 | H95: 88.2 | I95: 28306 | J95: 2496646.25 | K95: 2018-05-11 | L95: 311 | M95: INE877I01016
A96: ARCHIES | B96: BE | C96: 35.45 | D96: 35.5 | E96: 33.1 | F96: 33.8 | G96: 34.6 | H96: 34.65 | I96: 43624 | J96: 1479761.35 | K96: 2018-05-11 | L96: 218 | M96: INE731A01020
A97: ARCOTECH | B97: EQ | C97: 28.8 | D97: 29.4 | E97: 27.3 | F97: 27.55 | G97: 27.4 | H97: 28.6 | I97: 334005 | J97: 9355872.65 | K97: 2018-05-11 | L97: 2033 | M97: INE574I01035
A98: ARIES | B98: EQ | C98: 193.5 | D98: 197.45 | E98: 187.6 | F98: 189.3 | G98: 189.6 | H98: 194.2 | I98: 12293 | J98: 2350993.05 | K98: 2018-05-11 | L98: 386 | M98: INE298I01015
A99: ARIHANTSUP | B99: EQ | C99: 132.9 | D99: 145 | E99: 132.2 | F99: 142.95 | G99: 141.3 | H99: 136.65 | I99: 82094 | J99: 11564874.35 | K99: 2018-05-11 | L99: 5358 | M99: INE643K01018
A100: ARMANFIN | B100: BE | C100: 409.95 | D100: 418.95 | E100: 402 | F100: 403.9 | G100: 415 | H100: 409.9 | I100: 4686 | J100: 1896327 | K100: 2018-05-11 | L100: 45 | M100: INE109C01017
A101: AROGRANITE | B101: EQ | C101: 65.4 | D101: 65.4 | E101: 60.4 | F101: 62.05 | G101: 62 | H101: 64.15 | I101: 126451 | J101: 7915363.9 | K101: 2018-05-11 | L101: 1566 | M101: INE210C01013
A102: ARROWGREEN | B102: EQ | C102: 300.1 | D102: 304.8 | E102: 280.05 | F102: 283.65 | G102: 285.85 | H102: 299.75 | I102: 18517 | J102: 5353029.85 | K102: 2018-05-11 | L102: 959 | M102: INE570D01018
A103: ARROWTEX | B103: EQ | C103: 35.8 | D103: 35.8 | E103: 33.5 | F103: 33.75 | G103: 33.5 | H103: 34.15 | I103: 3849 | J103: 130956.45 | K103: 2018-05-11 | L103: 115 | M103: INE933J01015
A104: ARSHIYA | B104: EQ | C104: 64.5 | D104: 65.5 | E104: 61.65 | F104: 64.55 | G104: 63.6 | H104: 64 | I104: 162671 | J104: 10388620.1 | K104: 2018-05-11 | L104: 654 | M104: INE968D01022
A105: ARSSINFRA | B105: BE | C105: 37.1 | D105: 38.5 | E105: 36.9 | F105: 37.25 | G105: 37.2 | H105: 38.3 | I105: 12578 | J105: 474800.05 | K105: 2018-05-11 | L105: 80 | M105: INE267I01010
A106: ARVIND | B106: EQ | C106: 429.1 | D106: 433.45 | E106: 424.65 | F106: 429.75 | G106: 428.75 | H106: 429.1 | I106: 1314640 | J106: 563631986.4 | K106: 2018-05-11 | L106: 20371 | M106: INE034A01011
A107: ARVSMART | B107: EQ | C107: 185.2 | D107: 188.4 | E107: 183.2 | F107: 184.75 | G107: 183.25 | H107: 185.05 | I107: 15720 | J107: 2913777.6 | K107: 2018-05-11 | L107: 356 | M107: INE034S01021
A108: ASAHIINDIA | B108: EQ | C108: 368.4 | D108: 368.4 | E108: 358.5 | F108: 360.85 | G108: 362.9 | H108: 365.3 | I108: 20985 | J108: 7608906.9 | K108: 2018-05-11 | L108: 902 | M108: INE439A01020
A109: ASAHISONG | B109: EQ | C109: 340 | D109: 340 | E109: 334 | F109: 334.9 | G109: 334.05 | H109: 333.05 | I109: 1096 | J109: 368551.45 | K109: 2018-05-11 | L109: 78 | M109: INE228I01012
A110: ASAL | B110: EQ | C110: 78.25 | D110: 78.25 | E110: 73.1 | F110: 73.7 | G110: 73.1 | H110: 76.8 | I110: 19768 | J110: 1484170.05 | K110: 2018-05-11 | L110: 314 | M110: INE900C01027
A111: ASHAPURMIN | B111: EQ | C111: 65.5 | D111: 65.5 | E111: 62.7 | F111: 63.05 | G111: 63.1 | H111: 65.1 | I111: 101722 | J111: 6465433.9 | K111: 2018-05-11 | L111: 1381 | M111: INE348A01023
A112: ASHIANA | B112: EQ | C112: 160 | D112: 165.2 | E112: 157.5 | F112: 163.9 | G112: 162.75 | H112: 160.1 | I112: 55546 | J112: 9036854.5 | K112: 2018-05-11 | L112: 1018 | M112: INE365D01021
A113: ASHIMASYN | B113: EQ | C113: 27.35 | D113: 28.55 | E113: 27.35 | F113: 28.3 | G113: 27.8 | H113: 27.95 | I113: 100623 | J113: 2837788.85 | K113: 2018-05-11 | L113: 462 | M113: INE440A01010
A114: ASHOKA | B114: EQ | C114: 272.2 | D114: 273.75 | E114: 267 | F114: 271.3 | G114: 270.15 | H114: 272.3 | I114: 70094 | J114: 18914951.85 | K114: 2018-05-11 | L114: 1773 | M114: INE442H01029
A115: ASHOKLEY | B115: EQ | C115: 161.5 | D115: 162.25 | E115: 160.3 | F115: 161.85 | G115: 162 | H115: 160.65 | I115: 6824338 | J115: 1101490428 | K115: 2018-05-11 | L115: 32628 | M115: INE208A01029
A116: ASIANHOTNR | B116: EQ | C116: 306 | D116: 319.9 | E116: 305 | F116: 307.8 | G116: 305 | H116: 316.15 | I116: 1897 | J116: 590327.3 | K116: 2018-05-11 | L116: 17 | M116: INE363A01022
A117: ASIANPAINT | B117: EQ | C117: 1237 | D117: 1291.9 | E117: 1229.85 | F117: 1286.45 | G117: 1285.05 | H117: 1217.7 | I117: 4723019 | J117: 6023500942 | K117: 2018-05-11 | L117: 159284 | M117: INE021A01026
A118: ASIANTILES | B118: EQ | C118: 448.95 | D118: 452.95 | E118: 445 | F118: 451 | G118: 451.2 | H118: 448.55 | I118: 24493 | J118: 10988035.7 | K118: 2018-05-11 | L118: 1101 | M118: INE022I01019
A119: ASPINWALL | B119: EQ | C119: 370 | D119: 376.8 | E119: 355.65 | F119: 360.2 | G119: 358 | H119: 371.4 | I119: 2916 | J119: 1049125.55 | K119: 2018-05-11 | L119: 74 | M119: INE991I01015
A120: ASSAMCO | B120: EQ | C120: 4.1 | D120: 4.2 | E120: 4 | F120: 4.1 | G120: 4.1 | H120: 4.1 | I120: 398263 | J120: 1628503.05 | K120: 2018-05-11 | L120: 307 | M120: INE442A01024
A121: ASTEC | B121: EQ | C121: 665.4 | D121: 686.4 | E121: 657.95 | F121: 662.3 | G121: 662 | H121: 666.15 | I121: 20782 | J121: 13961351.7 | K121: 2018-05-11 | L121: 964 | M121: INE563J01010
A122: ASTERDM | B122: EQ | C122: 186.65 | D122: 190 | E122: 180 | F122: 183.4 | G122: 184 | H122: 187.3 | I122: 100773 | J122: 18389192 | K122: 2018-05-11 | L122: 2857 | M122: INE914M01019
A123: ASTRAL | B123: EQ | C123: 968 | D123: 968 | E123: 952.2 | F123: 960.2 | G123: 960 | H123: 960.3 | I123: 206487 | J123: 197281561.1 | K123: 2018-05-11 | L123: 3399 | M123: INE006I01046
A124: ASTRAMICRO | B124: EQ | C124: 97.5 | D124: 100.95 | E124: 96.2 | F124: 96.75 | G124: 96.4 | H124: 97.4 | I124: 359469 | J124: 35458520.4 | K124: 2018-05-11 | L124: 3971 | M124: INE386C01029
A125: ASTRAZEN | B125: EQ | C125: 1130 | D125: 1142.85 | E125: 1101.1 | F125: 1109.65 | G125: 1104 | H125: 1130.35 | I125: 2890 | J125: 3237046.35 | K125: 2018-05-11 | L125: 391 | M125: INE203A01020
A126: ASTRON | B126: EQ | C126: 126.45 | D126: 126.45 | E126: 122 | F126: 122.95 | G126: 122.25 | H126: 123.95 | I126: 105880 | J126: 13088689.45 | K126: 2018-05-11 | L126: 1913 | M126: INE646X01014
A127: ATFL | B127: EQ | C127: 697 | D127: 703.15 | E127: 675 | F127: 687.95 | G127: 685 | H127: 693.95 | I127: 14277 | J127: 9843734.45 | K127: 2018-05-11 | L127: 870 | M127: INE209A01019
A128: ATLANTA | B128: EQ | C128: 71.6 | D128: 71.65 | E128: 67.6 | F128: 69.25 | G128: 70.5 | H128: 70.9 | I128: 711978 | J128: 49284610.3 | K128: 2018-05-11 | L128: 2164 | M128: INE285H01022
A129: ATLASCYCLE | B129: BE | C129: 152 | D129: 152.8 | E129: 148 | F129: 150.2 | G129: 149 | H129: 153.1 | I129: 1009 | J129: 151693.05 | K129: 2018-05-11 | L129: 46 | M129: INE446A01025
A130: ATUL | B130: EQ | C130: 2810 | D130: 2859.9 | E130: 2802.25 | F130: 2838.25 | G130: 2850 | H130: 2812.35 | I130: 4527 | J130: 12810667.2 | K130: 2018-05-11 | L130: 595 | M130: INE100A01010
A131: ATULAUTO | B131: EQ | C131: 430.15 | D131: 437 | E131: 429 | F131: 431.6 | G131: 430.45 | H131: 431 | I131: 8903 | J131: 3834176.5 | K131: 2018-05-11 | L131: 253 | M131: INE951D01028
A132: AUBANK | B132: EQ | C132: 708.2 | D132: 716.4 | E132: 703 | F132: 711.1 | G132: 712.5 | H132: 705.6 | I132: 121654 | J132: 86376771.55 | K132: 2018-05-11 | L132: 7671 | M132: INE949L01017
A133: AURIONPRO | B133: EQ | C133: 209 | D133: 217.75 | E133: 209 | F133: 214.8 | G133: 213.1 | H133: 210.5 | I133: 21731 | J133: 4659150.4 | K133: 2018-05-11 | L133: 496 | M133: INE132H01018
A134: AUROPHARMA | B134: EQ | C134: 596 | D134: 616.5 | E134: 584.8 | F134: 611.35 | G134: 609.45 | H134: 594.3 | I134: 2123672 | J134: 1284770391 | K134: 2018-05-11 | L134: 44663 | M134: INE406A01037
A135: AUSOMENT | B135: EQ | C135: 71.95 | D135: 72 | E135: 67.65 | F135: 68.45 | G135: 68.55 | H135: 70.6 | I135: 29495 | J135: 2052121.3 | K135: 2018-05-11 | L135: 352 | M135: INE218C01016
A136: AUTOAXLES | B136: EQ | C136: 1560 | D136: 1570.1 | E136: 1521 | F136: 1532.65 | G136: 1546 | H136: 1526.55 | I136: 9902 | J136: 15279643.55 | K136: 2018-05-11 | L136: 1509 | M136: INE449A01011
A137: AUTOIND | B137: EQ | C137: 78.6 | D137: 79.95 | E137: 76.4 | F137: 77.1 | G137: 76.4 | H137: 78.55 | I137: 15633 | J137: 1218517.3 | K137: 2018-05-11 | L137: 348 | M137: INE718H01014
A138: AUTOLITIND | B138: EQ | C138: 69 | D138: 70 | E138: 68.25 | F138: 68.8 | G138: 68.5 | H138: 69.8 | I138: 9009 | J138: 619138.8 | K138: 2018-05-11 | L138: 192 | M138: INE448A01013
A139: AVADHSUGAR | B139: EQ | C139: 358.6 | D139: 369 | E139: 354 | F139: 356.95 | G139: 355 | H139: 358.4 | I139: 11162 | J139: 4015340.7 | K139: 2018-05-11 | L139: 529 | M139: INE349W01017
A140: AVANTIFEED | B140: EQ | C140: 2305 | D140: 2348.9 | E140: 2269 | F140: 2279.3 | G140: 2279 | H140: 2306.05 | I140: 80238 | J140: 184001969.3 | K140: 2018-05-11 | L140: 8253 | M140: INE871C01020
A141: AVTNPL | B141: EQ | C141: 34.4 | D141: 35.5 | E141: 33.8 | F141: 35.15 | G141: 35.25 | H141: 34.2 | I141: 89735 | J141: 3112770.9 | K141: 2018-05-11 | L141: 499 | M141: INE488D01021
A142: AXISBANK | B142: EQ | C142: 548.6 | D142: 556.5 | E142: 545.5 | F142: 553.3 | G142: 556 | H142: 547.65 | I142: 4960854 | J142: 2727391380 | K142: 2018-05-11 | L142: 73337 | M142: INE238A01034
A143: AXISCADES | B143: EQ | C143: 158 | D143: 162.65 | E143: 155.55 | F143: 158.3 | G143: 159 | H143: 159.15 | I143: 38121 | J143: 6073748.45 | K143: 2018-05-11 | L143: 1569 | M143: INE555B01013
A144: AXISGOLD | B144: EQ | C144: 2738 | D144: 2749 | E144: 2707 | F144: 2723.2 | G144: 2726.05 | H144: 2697.05 | I144: 175 | J144: 475564.05 | K144: 2018-05-11 | L144: 39 | M144: INF846K01347
A145: AXISNIFTY | B145: EQ | C145: 1085 | D145: 1085 | E145: 1078.26 | F145: 1078.81 | G145: 1078.81 | H145: 1076.63 | I145: 177 | J145: 190928.84 | K145: 2018-05-11 | L145: 6 | M145: INF846K01ZL0
A146: AYMSYNTEX | B146: EQ | C146: 66.75 | D146: 66.75 | E146: 63.2 | F146: 64.1 | G146: 64.75 | H146: 65.45 | I146: 4790 | J146: 306879.7 | K146: 2018-05-11 | L146: 68 | M146: INE193B01039
A147: BAFNAPHARM | B147: EQ | C147: 26.9 | D147: 26.9 | E147: 25.95 | F147: 26.55 | G147: 26.5 | H147: 26.4 | I147: 9343 | J147: 245111.1 | K147: 2018-05-11 | L147: 62 | M147: INE878I01014
A148: BAGFILMS | B148: EQ | C148: 5.1 | D148: 5.15 | E148: 4.9 | F148: 5 | G148: 5 | H148: 5.1 | I148: 46535 | J148: 232954.5 | K148: 2018-05-11 | L148: 84 | M148: INE116D01028
A149: BAJAJ-AUTO | B149: EQ | C149: 2845 | D149: 2845 | E149: 2801 | F149: 2815.45 | G149: 2817 | H149: 2827.5 | I149: 286976 | J149: 807672457.5 | K149: 2018-05-11 | L149: 17540 | M149: INE917I01010
A150: BAJAJCORP | B150: EQ | C150: 469 | D150: 479.5 | E150: 462 | F150: 468.35 | G150: 465.95 | H150: 470.65 | I150: 27346 | J150: 12816731.35 | K150: 2018-05-11 | L150: 4923 | M150: INE933K01021
A151: BAJAJELEC | B151: EQ | C151: 636.15 | D151: 644.9 | E151: 620.1 | F151: 624.8 | G151: 624 | H151: 635.6 | I151: 219008 | J151: 137938534.3 | K151: 2018-05-11 | L151: 5466 | M151: INE193E01025
A152: BAJAJFINSV | B152: EQ | C152: 5275 | D152: 5364.75 | E152: 5250.1 | F152: 5345.45 | G152: 5315 | H152: 5237.95 | I152: 62942 | J152: 334107034.4 | K152: 2018-05-11 | L152: 6325 | M152: INE918I01018
A153: BAJAJHIND | B153: EQ | C153: 8.25 | D153: 8.3 | E153: 7.95 | F153: 8 | G153: 8 | H153: 8.25 | I153: 2219922 | J153: 17839956.55 | K153: 2018-05-11 | L153: 2236 | M153: INE306A01021
A154: BAJAJHLDNG | B154: EQ | C154: 2650.15 | D154: 2656.1 | E154: 2641 | F154: 2651.8 | G154: 2652.95 | H154: 2649.95 | I154: 1889 | J154: 5007627.4 | K154: 2018-05-11 | L154: 418 | M154: INE118A01012
A155: BAJFINANCE | B155: EQ | C155: 1845 | D155: 1880.75 | E155: 1828.1 | F155: 1861.5 | G155: 1855 | H155: 1837.4 | I155: 483249 | J155: 901653615.2 | K155: 2018-05-11 | L155: 16335 | M155: INE296A01024
A156: BALAJITELE | B156: EQ | C156: 128 | D156: 130 | E156: 126.75 | F156: 128.5 | G156: 128 | H156: 126.7 | I156: 23335 | J156: 2998654.3 | K156: 2018-05-11 | L156: 1090 | M156: INE794B01026
A157: BALAMINES | B157: EQ | C157: 665 | D157: 674.65 | E157: 655 | F157: 661 | G157: 660 | H157: 670.55 | I157: 22085 | J157: 14642158.55 | K157: 2018-05-11 | L157: 1170 | M157: INE050E01027
A158: BALKRISHNA | B158: EQ | C158: 81 | D158: 81 | E158: 78 | F158: 78.1 | G158: 78.9 | H158: 79.15 | I158: 6858 | J158: 538933 | K158: 2018-05-11 | L158: 47 | M158: INE875R01011
A159: BALKRISIND | B159: EQ | C159: 1209.75 | D159: 1209.75 | E159: 1181.55 | F159: 1199.45 | G159: 1199 | H159: 1203.05 | I159: 177096 | J159: 211922585.4 | K159: 2018-05-11 | L159: 8563 | M159: INE787D01026
A160: BALLARPUR | B160: EQ | C160: 12.65 | D160: 12.8 | E160: 12.25 | F160: 12.35 | G160: 12.25 | H160: 12.65 | I160: 486958 | J160: 6089027.25 | K160: 2018-05-11 | L160: 1086 | M160: INE294A01037
A161: BALMLAWRIE | B161: EQ | C161: 218.25 | D161: 220.65 | E161: 216.4 | F161: 217.8 | G161: 217.5 | H161: 219.85 | I161: 62844 | J161: 13716789.2 | K161: 2018-05-11 | L161: 1273 | M161: INE164A01016
A162: BALPHARMA | B162: EQ | C162: 82.5 | D162: 83.5 | E162: 81.5 | F162: 81.6 | G162: 81.55 | H162: 82.4 | I162: 7319 | J162: 601785.75 | K162: 2018-05-11 | L162: 106 | M162: INE083D01012
A163: BALRAMCHIN | B163: EQ | C163: 66.5 | D163: 67.9 | E163: 65.7 | F163: 66.35 | G163: 66.4 | H163: 65.8 | I163: 2701498 | J163: 180725241.2 | K163: 2018-05-11 | L163: 11734 | M163: INE119A01028
A164: BANARBEADS | B164: EQ | C164: 58.9 | D164: 58.9 | E164: 57.05 | F164: 57.05 | G164: 57.05 | H164: 57.55 | I164: 11 | J164: 646.05 | K164: 2018-05-11 | L164: 3 | M164: INE655B01011
A165: BANARISUG | B165: EQ | C165: 1660 | D165: 1660 | E165: 1610 | F165: 1624.05 | G165: 1617 | H165: 1661 | I165: 138 | J165: 224941 | K165: 2018-05-11 | L165: 37 | M165: INE459A01010
A166: BANCOINDIA | B166: EQ | C166: 222.05 | D166: 230.85 | E166: 221.5 | F166: 224.05 | G166: 224.2 | H166: 222.3 | I166: 49788 | J166: 11210062.7 | K166: 2018-05-11 | L166: 1501 | M166: INE213C01025
A167: BANDHANBNK | B167: EQ | C167: 486.55 | D167: 492.2 | E167: 480.25 | F167: 484.35 | G167: 483.5 | H167: 486.45 | I167: 1030945 | J167: 499944142.5 | K167: 2018-05-11 | L167: 17764 | M167: INE545U01014
A168: BANG | B168: EQ | C168: 37 | D168: 37 | E168: 34.9 | F168: 35.25 | G168: 35.25 | H168: 36.7 | I168: 5261 | J168: 185013.9 | K168: 2018-05-11 | L168: 31 | M168: INE863I01016
A169: BANKBARODA | B169: EQ | C169: 139.55 | D169: 143.65 | E169: 137.1 | F169: 142.7 | G169: 142.4 | H169: 138.65 | I169: 11673210 | J169: 1649629912 | K169: 2018-05-11 | L169: 54541 | M169: INE028A01039
A170: BANKBEES | B170: EQ | C170: 2654.5 | D170: 2677 | E170: 2646.49 | F170: 2672.51 | G170: 2677 | H170: 2646.64 | I170: 2902 | J170: 7724230.28 | K170: 2018-05-11 | L170: 223 | M170: INF732E01078
A171: BANKINDIA | B171: EQ | C171: 100 | D171: 101.2 | E171: 98.1 | F171: 100 | G171: 99.95 | H171: 100 | I171: 4759345 | J171: 475195990.6 | K171: 2018-05-11 | L171: 18656 | M171: INE084A01016
A172: BANSWRAS | B172: EQ | C172: 98.55 | D172: 100.95 | E172: 98 | F172: 98.45 | G172: 99 | H172: 99.15 | I172: 2802 | J172: 276484.85 | K172: 2018-05-11 | L172: 56 | M172: INE629D01012
A173: BARTRONICS | B173: BE | C173: 13.05 | D173: 13.5 | E173: 12.9 | F173: 13.05 | G173: 13 | H173: 12.9 | I173: 127767 | J173: 1693181.25 | K173: 2018-05-11 | L173: 466 | M173: INE855F01034
A174: BASF | B174: EQ | C174: 2029 | D174: 2035 | E174: 1960 | F174: 1970.7 | G174: 1965.05 | H174: 1999.9 | I174: 17204 | J174: 34223157.9 | K174: 2018-05-11 | L174: 1031 | M174: INE373A01013
A175: BASML | B175: EQ | C175: 230 | D175: 230 | E175: 225.5 | F175: 228.55 | G175: 226.1 | H175: 230 | I175: 464 | J175: 105644.05 | K175: 2018-05-11 | L175: 18 | M175: INE186H01014
A176: BATAINDIA | B176: EQ | C176: 783 | D176: 792.55 | E176: 773.65 | F176: 788.6 | G176: 790 | H176: 778.25 | I176: 568076 | J176: 445357575.4 | K176: 2018-05-11 | L176: 11243 | M176: INE176A01028
A177: BAYERCROP | B177: EQ | C177: 4305 | D177: 4437.95 | E177: 4290.7 | F177: 4371 | G177: 4376 | H177: 4303.6 | I177: 6636 | J177: 28787521.55 | K177: 2018-05-11 | L177: 2412 | M177: INE462A01022
A178: BBL | B178: EQ | C178: 1647.7 | D178: 1647.7 | E178: 1531 | F178: 1566.35 | G178: 1571.75 | H178: 1627.95 | I178: 37546 | J178: 58832457.85 | K178: 2018-05-11 | L178: 3286 | M178: INE464A01028
A179: BBTC | B179: EQ | C179: 1552 | D179: 1575 | E179: 1544.05 | F179: 1568.15 | G179: 1568.2 | H179: 1551.1 | I179: 147022 | J179: 229906362.2 | K179: 2018-05-11 | L179: 5098 | M179: INE050A01025
A180: BDL | B180: EQ | C180: 388.75 | D180: 389.7 | E180: 387 | F180: 388.05 | G180: 388 | H180: 388.1 | I180: 30664 | J180: 11897319.05 | K180: 2018-05-11 | L180: 835 | M180: INE171Z01018
A181: BEARDSELL | B181: EQ | C181: 46 | D181: 48 | E181: 46 | F181: 46.25 | G181: 46 | H181: 46.6 | I181: 4434 | J181: 205652 | K181: 2018-05-11 | L181: 25 | M181: INE520H01022
A182: BEDMUTHA | B182: BE | C182: 19 | D182: 20.3 | E182: 18.65 | F182: 19.5 | G182: 20 | H182: 19.35 | I182: 19686 | J182: 386967.85 | K182: 2018-05-11 | L182: 62 | M182: INE844K01012
A183: BEL | B183: EQ | C183: 130 | D183: 130.6 | E183: 127.5 | F183: 127.85 | G183: 127.7 | H183: 129.8 | I183: 2404042 | J183: 308067055.9 | K183: 2018-05-11 | L183: 28872 | M183: INE263A01024
A184: BEML | B184: EQ | C184: 1045.9 | D184: 1093.5 | E184: 1026.9 | F184: 1085.1 | G184: 1081.05 | H184: 1043.9 | I184: 777838 | J184: 827849639.1 | K184: 2018-05-11 | L184: 22650 | M184: INE258A01016
A185: BEPL | B185: EQ | C185: 171 | D185: 172 | E185: 168 | F185: 168.55 | G185: 168.45 | H185: 169.45 | I185: 361425 | J185: 61274457.15 | K185: 2018-05-11 | L185: 4998 | M185: INE922A01025
A186: BERGEPAINT | B186: EQ | C186: 272 | D186: 280.9 | E186: 268.05 | F186: 277.15 | G186: 277.2 | H186: 266.75 | I186: 4327971 | J186: 1196331871 | K186: 2018-05-11 | L186: 38398 | M186: INE463A01038
A187: BFINVEST | B187: EQ | C187: 343.5 | D187: 350.4 | E187: 328.05 | F187: 331.6 | G187: 330.35 | H187: 340.35 | I187: 165947 | J187: 56122212.25 | K187: 2018-05-11 | L187: 7054 | M187: INE878K01010
A188: BFUTILITIE | B188: EQ | C188: 401.3 | D188: 406.95 | E188: 394.85 | F188: 397.3 | G188: 396.6 | H188: 399.3 | I188: 285359 | J188: 114011362 | K188: 2018-05-11 | L188: 7301 | M188: INE243D01012
A189: BGLOBAL | B189: BE | C189: 4.9 | D189: 5.35 | E189: 4.9 | F189: 5.25 | G189: 5.15 | H189: 5.15 | I189: 9331 | J189: 48583.6 | K189: 2018-05-11 | L189: 19 | M189: INE224M01013
A190: BGRENERGY | B190: EQ | C190: 104.4 | D190: 104.4 | E190: 102 | F190: 102.35 | G190: 102.65 | H190: 103.25 | I190: 43253 | J190: 4453206.55 | K190: 2018-05-11 | L190: 608 | M190: INE661I01014
A191: BHAGERIA | B191: EQ | C191: 285 | D191: 303 | E191: 285 | F191: 292.35 | G191: 291.65 | H191: 286.3 | I191: 28970 | J191: 8520463.25 | K191: 2018-05-11 | L191: 743 | M191: INE354C01027
A192: BHAGYANGR | B192: EQ | C192: 43.7 | D192: 44 | E192: 42.6 | F192: 43.2 | G192: 43 | H192: 43.4 | I192: 39103 | J192: 1691540.4 | K192: 2018-05-11 | L192: 315 | M192: INE458B01036
A193: BHAGYAPROP | B193: BE | C193: 21.25 | D193: 22.9 | E193: 21.2 | F193: 22.05 | G193: 21.6 | H193: 22.2 | I193: 7883 | J193: 173956.9 | K193: 2018-05-11 | L193: 36 | M193: INE363W01018
A194: BHANDARI | B194: EQ | C194: 2.7 | D194: 2.8 | E194: 2.65 | F194: 2.65 | G194: 2.7 | H194: 2.75 | I194: 297475 | J194: 796550.1 | K194: 2018-05-11 | L194: 135 | M194: INE474E01029
A195: BHARATFIN | B195: EQ | C195: 1145.1 | D195: 1167.85 | E195: 1139.15 | F195: 1165.05 | G195: 1163.5 | H195: 1144.4 | I195: 780799 | J195: 901134705.8 | K195: 2018-05-11 | L195: 21040 | M195: INE180K01011
A196: BHARATFORG | B196: EQ | C196: 726 | D196: 731.9 | E196: 721.3 | F196: 725.6 | G196: 724.9 | H196: 724.25 | I196: 273121 | J196: 198638617.7 | K196: 2018-05-11 | L196: 7450 | M196: INE465A01025
A197: BHARATGEAR | B197: EQ | C197: 173.2 | D197: 175 | E197: 170.25 | F197: 173.2 | G197: 173.95 | H197: 172.5 | I197: 15043 | J197: 2600211.8 | K197: 2018-05-11 | L197: 343 | M197: INE561C01019
A198: BHARATRAS | B198: EQ | C198: 6100.05 | D198: 6276 | E198: 6100 | F198: 6132.9 | G198: 6150 | H198: 6099.65 | I198: 1975 | J198: 12160015.2 | K198: 2018-05-11 | L198: 568 | M198: INE838B01013
A199: BHARATWIRE | B199: EQ | C199: 117.05 | D199: 121 | E199: 115.55 | F199: 120 | G199: 120.7 | H199: 117.2 | I199: 44094 | J199: 5260511.2 | K199: 2018-05-11 | L199: 666 | M199: INE316L01019
A200: BHARTIARTL | B200: EQ | C200: 400.15 | D200: 402.7 | E200: 381.5 | F200: 386.6 | G200: 386.05 | H200: 412.1 | I200: 23031948 | J200: 8963692821 | K200: 2018-05-11 | L200: 252223 | M200: INE397D01024
... 1439 more rows

Sheet Sheet1 (hidden)
